Body Name,Body,Service Label,Service Code,Service Division Label,Service Division Code,Expenditure Category,Expenditure Code,CIPFA Detailed Expenditure Type,CIPFA Detailed Expenditure Code,Date,Transaction Number,Net Amount,Capital and Revenue,Creditor Name
Brighton & Hove City Council,http://statistics.data.gov.uk/id/local-authority/00ML,Adult Social Care,BVASOC,S Svcs - Older People Svcs,PPL,Customer n Client Receipts,M,Fees n Charges,MB,01/06/2011,PAY00387133,-2180.84,Revenue,RNIB
Brighton & Hove City Council,http://statistics.data.gov.uk/id/local-authority/00ML,Adult Social Care,BVASOC,S Svcs - Older People Svcs,PPL,Third Party Payments,F,Other Establishments,FH,01/06/2011,PAY00387133,6413.20,Revenue,RNIB
Brighton & Hove City Council,http://statistics.data.gov.uk/id/local-authority/00ML,Adult Social Care,BVASOC,S Svcs - Older People Svcs,PPL,Customer n Client Receipts,M,Fees n Charges,MB,01/06/2011,PAY00387134,-8900.18,Revenue,St George`s Retreat
Brighton & Hove City Council,http://statistics.data.gov.uk/id/local-authority/00ML,Adult Social Care,BVASOC,S Svcs - Older People Svcs,PPL,Third Party Payments,F,Other Establishments,FH,01/06/2011,PAY00387134,9460.10,Revenue,St George`s Retreat
Brighton & Hove City Council,http://statistics.data.gov.uk/id/local-authority/00ML,Adult Social Care,BVASOC,S Svcs - Older People Svcs,PPL,Customer n Client Receipts,M,Fees n Charges,MB,01/06/2011,PAY00387135,-908.72,Revenue,RMBI
Brighton & Hove City Council,http://statistics.data.gov.uk/id/local-authority/00ML,Adult Social Care,BVASOC,S Svcs - Older People Svcs,PPL,Third Party Payments,F,Other Establishments,FH,01/06/2011,PAY00387135,4057.20,Revenue,RMBI
Brighton & Hove City Council,http://statistics.data.gov.uk/id/local-authority/00ML,Adult Social Care,BVASOC,S Svcs - Older People Svcs,PPL,Customer n Client Receipts,M,Fees n Charges,MB,01/06/2011,PAY00387136,-1377.00,Revenue,K Ramadas/R Janmayur Care Home
Brighton & Hove City Council,http://statistics.data.gov.uk/id/local-authority/00ML,Adult Social Care,BVASOC,S Svcs - Older People Svcs,PPL,Third Party Payments,F,Other Establishments,FH,01/06/2011,PAY00387136,4628.00,Revenue,K Ramadas/R Janmayur Care Home
Brighton & Hove City Council,http://statistics.data.gov.uk/id/local-authority/00ML,Adult Social Care,BVASOC,S Svcs - Older People Svcs,PPL,Customer n Client Receipts,M,Fees n Charges,MB,01/06/2011,PAY00387138,-2048.36,Revenue,Camelot Nursing Home
Brighton & Hove City Council,http://statistics.data.gov.uk/id/local-authority/00ML,Adult Social Care,BVASOC,S Svcs - Older People Svcs,PPL,Third Party Payments,F,Other Establishments,FH,01/06/2011,PAY00387138,6652.80,Revenue,Camelot Nursing Home
Brighton & Hove City Council,http://statistics.data.gov.uk/id/local-authority/00ML,Housing Services General Fund,BVAHOG,Homelessness,HML,Premises Related,C,Rents Payable,CC,01/06/2011,PAY00387139,850.00,Revenue,Payment to Individual
Brighton & Hove City Council,http://statistics.data.gov.uk/id/local-authority/00ML,Housing Services General Fund,BVAHOG,Homelessness,HML,Premises Related,C,Rents Payable,CC,01/06/2011,PAY00387148,750.00,Revenue,Payment to Individual
Brighton & Hove City Council,http://statistics.data.gov.uk/id/local-authority/00ML,Children�s Social Care,BVACSC,Child Srvcs - Residential Svcs,FLR,Third Party Payments,F,Other Establishments,FH,01/06/2011,PAY00387151,2750.00,Revenue,Paydens (Nursing Homes) Ltd
Brighton & Hove City Council,http://statistics.data.gov.uk/id/local-authority/00ML,Housing Services General Fund,BVAHOG,Homelessness,HML,Premises Related,C,Rents Payable,CC,01/06/2011,PAY00387153,530.00,Revenue,Payment to Individual
Brighton & Hove City Council,http://statistics.data.gov.uk/id/local-authority/00ML,Non BVACOP,BVANON,Trusts,TRT,Supplies and Services,E,Grants n Subscriptions,EK,01/06/2011,PAY00387156,750.00,Revenue,The Bevendean Bulletin
Brighton & Hove City Council,http://statistics.data.gov.uk/id/local-authority/00ML,Cultural Environment Planning,BVACEP,Management Services (DEC),MGT,Supplies and Services,E,Miscellaneous Expenses,EM,01/06/2011,PAY00387161,7198.28,Revenue,J P Lennard Limited
Brighton & Hove City Council,http://statistics.data.gov.uk/id/local-authority/00ML,Adult Social Care,BVASOC,S Svcs - Older People Svcs,PPL,Customer n Client Receipts,M,Fees n Charges,MB,01/06/2011,PAY00387162,-2197.64,Revenue,Brighton & Hove Bethesda Home
Brighton & Hove City Council,http://statistics.data.gov.uk/id/local-authority/00ML,Adult Social Care,BVASOC,S Svcs - Older People Svcs,PPL,Third Party Payments,F,Other Establishments,FH,01/06/2011,PAY00387162,6480.00,Revenue,Brighton & Hove Bethesda Home
Brighton & Hove City Council,http://statistics.data.gov.uk/id/local-authority/00ML,Adult Social Care,BVASOC,S Svcs - Mental Health,MHT,Customer n Client Receipts,M,Fees n Charges,MB,01/06/2011,PAY00387163,-1088.00,Revenue,Payment to Individual
Brighton & Hove City Council,http://statistics.data.gov.uk/id/local-authority/00ML,Adult Social Care,BVASOC,S Svcs - Mental Health,MHT,Third Party Payments,F,Other Establishments,FH,01/06/2011,PAY00387163,5172.00,Revenue,Payment to Individual
Brighton & Hove City Council,http://statistics.data.gov.uk/id/local-authority/00ML,Adult Social Care,BVASOC,S Svcs - Older People Svcs,PPL,Customer n Client Receipts,M,Fees n Charges,MB,01/06/2011,PAY00387164,-2030.76,Revenue,Rosecroft Registered Rest Home
Brighton & Hove City Council,http://statistics.data.gov.uk/id/local-authority/00ML,Adult Social Care,BVASOC,S Svcs - Older People Svcs,PPL,Third Party Payments,F,Other Establishments,FH,01/06/2011,PAY00387164,9892.00,Revenue,Rosecroft Registered Rest Home
Brighton & Hove City Council,http://statistics.data.gov.uk/id/local-authority/00ML,Adult Social Care,BVASOC,S Svcs - Older People Svcs,PPL,Customer n Client Receipts,M,Fees n Charges,MB,01/06/2011,PAY00387165,-6095.88,Revenue,Payment to Individual
Brighton & Hove City Council,http://statistics.data.gov.uk/id/local-authority/00ML,Adult Social Care,BVASOC,S Svcs - Older People Svcs,PPL,Third Party Payments,F,Other Establishments,FH,01/06/2011,PAY00387165,18780.00,Revenue,Payment to Individual
Brighton & Hove City Council,http://statistics.data.gov.uk/id/local-authority/00ML,Adult Social Care,BVASOC,S Svcs - Older People Svcs,PPL,Customer n Client Receipts,M,Fees n Charges,MB,01/06/2011,PAY00387166,-3841.08,Revenue,St Mary`s House
Brighton & Hove City Council,http://statistics.data.gov.uk/id/local-authority/00ML,Adult Social Care,BVASOC,S Svcs - Older People Svcs,PPL,Third Party Payments,F,Other Establishments,FH,01/06/2011,PAY00387166,11376.00,Revenue,St Mary`s House
Brighton & Hove City Council,http://statistics.data.gov.uk/id/local-authority/00ML,Adult Social Care,BVASOC,S Svcs - Older People Svcs,PPL,Customer n Client Receipts,M,Fees n Charges,MB,01/06/2011,PAY00387167,-918.00,Revenue,Greenways Rest Home
Brighton & Hove City Council,http://statistics.data.gov.uk/id/local-authority/00ML,Adult Social Care,BVASOC,S Svcs - Older People Svcs,PPL,Third Party Payments,F,Other Establishments,FH,01/06/2011,PAY00387167,5825.00,Revenue,Greenways Rest Home
Brighton & Hove City Council,http://statistics.data.gov.uk/id/local-authority/00ML,Adult Social Care,BVASOC,S Svcs - Learning Disability,LDY,Customer n Client Receipts,M,Fees n Charges,MB,01/06/2011,PAY00387168,-1049.00,Revenue,Oak House RH
Brighton & Hove City Council,http://statistics.data.gov.uk/id/local-authority/00ML,Adult Social Care,BVASOC,S Svcs - Learning Disability,LDY,Third Party Payments,F,Other Establishments,FH,01/06/2011,PAY00387168,10200.84,Revenue,Oak House RH
Brighton & Hove City Council,http://statistics.data.gov.uk/id/local-authority/00ML,Adult Social Care,BVASOC,S Svcs - Older People Svcs,PPL,Supplies and Services,E,Miscellaneous Expenses,EM,01/06/2011,PAY00387168,40.00,Revenue,Oak House RH
Brighton & Hove City Council,http://statistics.data.gov.uk/id/local-authority/00ML,Education Services,BVAEDU,Ed - Primary Ed,EHE,Supplies and Services,E,Services,EF,01/06/2011,PAY00387170,4019.68,Revenue,Educational Recording Agency
Brighton & Hove City Council,http://statistics.data.gov.uk/id/local-authority/00ML,Education Services,BVAEDU,Ed - Secondary Ed,EJE,Supplies and Services,E,Services,EF,01/06/2011,PAY00387170,6955.51,Revenue,Educational Recording Agency
Brighton & Hove City Council,http://statistics.data.gov.uk/id/local-authority/00ML,Adult Social Care,BVASOC,S Svcs - Learning Disability,LDY,Customer n Client Receipts,M,Fees n Charges,MB,01/06/2011,PAY00387171,-92.00,Revenue,Payment to Individual
Brighton & Hove City Council,http://statistics.data.gov.uk/id/local-authority/00ML,Adult Social Care,BVASOC,S Svcs - Learning Disability,LDY,Third Party Payments,F,Other Establishments,FH,01/06/2011,PAY00387171,1555.20,Revenue,Payment to Individual
Brighton & Hove City Council,http://statistics.data.gov.uk/id/local-authority/00ML,Housing Services General Fund,BVAHOG,Homelessness,HML,Premises Related,C,Rents Payable,CC,01/06/2011,PAY00387172,700.00,Revenue,Payment to Individual
Brighton & Hove City Council,http://statistics.data.gov.uk/id/local-authority/00ML,Cultural Environment Planning,BVACEP,Culture & Heritage,CHG,Supplies and Services,E,Goods for Resale,EG,01/06/2011,PAY00387173,725.55,Revenue,Omicways Ltd T/A Container Group Buying
Brighton & Hove City Council,http://statistics.data.gov.uk/id/local-authority/00ML,Adult Social Care,BVASOC,S Svcs - Learning Disability,LDY,Third Party Payments,F,Other Establishments,FH,01/06/2011,PAY00387185,169.74,Revenue,Mears
Brighton & Hove City Council,http://statistics.data.gov.uk/id/local-authority/00ML,Adult Social Care,BVASOC,S Svcs - Older People Svcs,PPL,Customer n Client Receipts,M,Fees n Charges,MB,01/06/2011,PAY00387185,-1716.00,Revenue,Mears
Brighton & Hove City Council,http://statistics.data.gov.uk/id/local-authority/00ML,Adult Social Care,BVASOC,S Svcs - Older People Svcs,PPL,Third Party Payments,F,Other Establishments,FH,01/06/2011,PAY00387185,7699.93,Revenue,Mears
Brighton & Hove City Council,http://statistics.data.gov.uk/id/local-authority/00ML,Adult Social Care,BVASOC,S Svcs - Physical Disability,PDY,Third Party Payments,F,Other Establishments,FH,01/06/2011,PAY00387185,1912.39,Revenue,Mears
Brighton & Hove City Council,http://statistics.data.gov.uk/id/local-authority/00ML,Adult Social Care,BVASOC,S Svcs - Older People Svcs,PPL,Customer n Client Receipts,M,Fees n Charges,MB,01/06/2011,PAY00387186,-544.00,Revenue,Cooksbridge Care Services Ltd
Brighton & Hove City Council,http://statistics.data.gov.uk/id/local-authority/00ML,Adult Social Care,BVASOC,S Svcs - Older People Svcs,PPL,Third Party Payments,F,Other Establishments,FH,01/06/2011,PAY00387186,1642.74,Revenue,Cooksbridge Care Services Ltd
Brighton & Hove City Council,http://statistics.data.gov.uk/id/local-authority/00ML,Adult Social Care,BVASOC,S Svcs - Physical Disability,PDY,Customer n Client Receipts,M,Fees n Charges,MB,01/06/2011,PAY00387186,-812.76,Revenue,Cooksbridge Care Services Ltd
Brighton & Hove City Council,http://statistics.data.gov.uk/id/local-authority/00ML,Adult Social Care,BVASOC,S Svcs - Physical Disability,PDY,Third Party Payments,F,Other Establishments,FH,01/06/2011,PAY00387186,1767.60,Revenue,Cooksbridge Care Services Ltd
Brighton & Hove City Council,http://statistics.data.gov.uk/id/local-authority/00ML,Adult Social Care,BVASOC,S Svcs - Learning Disability,LDY,Customer n Client Receipts,M,Fees n Charges,MB,01/06/2011,PAY00387187,-2231.00,Revenue,Outlook Foundation
Brighton & Hove City Council,http://statistics.data.gov.uk/id/local-authority/00ML,Adult Social Care,BVASOC,S Svcs - Learning Disability,LDY,Third Party Payments,F,Other Establishments,FH,01/06/2011,PAY00387187,30471.36,Revenue,Outlook Foundation
Brighton & Hove City Council,http://statistics.data.gov.uk/id/local-authority/00ML,Adult Social Care,BVASOC,S Svcs - Learning Disability,LDY,Premises Related,C,Repair Maint n Alterations,CA,01/06/2011,PAY00387188,249.56,Revenue,TSS Facilities Ltd
Brighton & Hove City Council,http://statistics.data.gov.uk/id/local-authority/00ML,Central Services To The Public,BVACEN,Support Services (SSC),PPT,Premises Related,C,Repair Maint n Alterations,CA,01/06/2011,PAY00387188,3476.68,Revenue,TSS Facilities Ltd
Brighton & Hove City Council,http://statistics.data.gov.uk/id/local-authority/00ML,Central Services To The Public,BVACEN,Trading Services,TRD,Premises Related,C,Repair Maint n Alterations,CA,01/06/2011,PAY00387188,48.50,Revenue,TSS Facilities Ltd
Brighton & Hove City Council,http://statistics.data.gov.uk/id/local-authority/00ML,Education Services,BVAEDU,Ed - Ed Other - Other,ENF,Premises Related,C,Repair Maint n Alterations,CA,01/06/2011,PAY00387188,52.50,Revenue,TSS Facilities Ltd
Brighton & Hove City Council,http://statistics.data.gov.uk/id/local-authority/00ML,Education Services,BVAEDU,Ed - EY - Central,EAE,Premises Related,C,Repair Maint n Alterations,CA,01/06/2011,PAY00387188,1099.50,Revenue,TSS Facilities Ltd
Brighton & Hove City Council,http://statistics.data.gov.uk/id/local-authority/00ML,Education Services,BVAEDU,Ed - Srvcs YP - Youth Srvcs,ENY,Premises Related,C,Repair Maint n Alterations,CA,01/06/2011,PAY00387188,80.00,Revenue,TSS Facilities Ltd
Brighton & Hove City Council,http://statistics.data.gov.uk/id/local-authority/00ML,Education Services,BVAEDU,Ed - Ed Other - Other,ENF,Premises Related,C,Cleaning n Domestic Supps,CH,01/06/2011,PAY00387189,1880.76,Revenue,Capital Hygiene/Capital Cleaning
Brighton & Hove City Council,http://statistics.data.gov.uk/id/local-authority/00ML,Adult Social Care,BVASOC,S Svcs - Physical Disability,PDY,Customer n Client Receipts,M,Fees n Charges,MB,01/06/2011,PAY00387190,-885.00,Revenue,The Chaseley Trust
Brighton & Hove City Council,http://statistics.data.gov.uk/id/local-authority/00ML,Adult Social Care,BVASOC,S Svcs - Physical Disability,PDY,Third Party Payments,F,Other Establishments,FH,01/06/2011,PAY00387190,21115.08,Revenue,The Chaseley Trust
Brighton & Hove City Council,http://statistics.data.gov.uk/id/local-authority/00ML,Adult Social Care,BVASOC,S Svcs - Mental Health,MHT,Customer n Client Receipts,M,Fees n Charges,MB,01/06/2011,PAY00387191,-740.00,Revenue,Payment to Individual
Brighton & Hove City Council,http://statistics.data.gov.uk/id/local-authority/00ML,Adult Social Care,BVASOC,S Svcs - Mental Health,MHT,Third Party Payments,F,Other Establishments,FH,01/06/2011,PAY00387191,5172.00,Revenue,Payment to Individual
Brighton & Hove City Council,http://statistics.data.gov.uk/id/local-authority/00ML,Education Services,BVAEDU,Ed - Special Ed,EKE,Third Party Payments,F,Other Agencies,FL,01/06/2011,PAY00387192,120850.00,Revenue,St John`s School and College
Brighton & Hove City Council,http://statistics.data.gov.uk/id/local-authority/00ML,Adult Social Care,BVASOC,S Svcs - Learning Disability,LDY,Third Party Payments,F,Other Establishments,FH,01/06/2011,PAY00387193,1609.40,Revenue,Payment to Individual
Brighton & Hove City Council,http://statistics.data.gov.uk/id/local-authority/00ML,Adult Social Care,BVASOC,S Svcs - Older People Svcs,PPL,Customer n Client Receipts,M,Fees n Charges,MB,01/06/2011,PAY00387195,-9476.25,Revenue,Jewish Care
Brighton & Hove City Council,http://statistics.data.gov.uk/id/local-authority/00ML,Adult Social Care,BVASOC,S Svcs - Older People Svcs,PPL,Third Party Payments,F,Other Establishments,FH,01/06/2011,PAY00387195,32957.97,Revenue,Jewish Care
Brighton & Hove City Council,http://statistics.data.gov.uk/id/local-authority/00ML,Housing Services General Fund,BVAHOG,Homelessness,HML,Premises Related,C,Rents Payable,CC,01/06/2011,PAY00387196,715.00,Revenue,Payment to Individual
Brighton & Hove City Council,http://statistics.data.gov.uk/id/local-authority/00ML,Children�s Social Care,BVACSC,Child Srvcs - Other Fam Supp,FFX,Supplies and Services,E,Equip't Furniture n Materials,EA,01/06/2011,PAY00387198,380.28,Revenue,The Imprest Holder
Brighton & Hove City Council,http://statistics.data.gov.uk/id/local-authority/00ML,Children�s Social Care,BVACSC,Child Srvcs - Other Fam Supp,FFX,Supplies and Services,E,Miscellaneous Expenses,EM,01/06/2011,PAY00387198,188.18,Revenue,The Imprest Holder
Brighton & Hove City Council,http://statistics.data.gov.uk/id/local-authority/00ML,Children�s Social Care,BVACSC,Child Srvcs - Other Fam Supp,FFX,Third Party Payments,F,Other Establishments,FH,01/06/2011,PAY00387198,25.00,Revenue,The Imprest Holder
Brighton & Hove City Council,http://statistics.data.gov.uk/id/local-authority/00ML,Children�s Social Care,BVACSC,Child Srvcs - Residential Svcs,FLR,Premises Related,C,Cleaning n Domestic Supps,CH,01/06/2011,PAY00387198,79.87,Revenue,The Imprest Holder
Brighton & Hove City Council,http://statistics.data.gov.uk/id/local-authority/00ML,Children�s Social Care,BVACSC,Child Srvcs - Residential Svcs,FLR,Premises Related,C,Repair Maint n Alterations,CA,01/06/2011,PAY00387198,69.18,Revenue,The Imprest Holder
Brighton & Hove City Council,http://statistics.data.gov.uk/id/local-authority/00ML,Children�s Social Care,BVACSC,Child Srvcs - Residential Svcs,FLR,Supplies and Services,E,Catering,EB,01/06/2011,PAY00387198,2429.33,Revenue,The Imprest Holder
Brighton & Hove City Council,http://statistics.data.gov.uk/id/local-authority/00ML,Children�s Social Care,BVACSC,Child Srvcs - Residential Svcs,FLR,Supplies and Services,E,Communications n Computing,EH,01/06/2011,PAY00387198,118.00,Revenue,The Imprest Holder
Brighton & Hove City Council,http://statistics.data.gov.uk/id/local-authority/00ML,Children�s Social Care,BVACSC,Child Srvcs - Residential Svcs,FLR,Supplies and Services,E,Equip't Furniture n Materials,EA,01/06/2011,PAY00387198,660.69,Revenue,The Imprest Holder
Brighton & Hove City Council,http://statistics.data.gov.uk/id/local-authority/00ML,Children�s Social Care,BVACSC,Child Srvcs - Residential Svcs,FLR,Supplies and Services,E,Miscellaneous Expenses,EM,01/06/2011,PAY00387198,223.99,Revenue,The Imprest Holder
Brighton & Hove City Council,http://statistics.data.gov.uk/id/local-authority/00ML,Children�s Social Care,BVACSC,Child Srvcs - Residential Svcs,FLR,Supplies and Services,E,Print Stat & Gen Office Exps,ED,01/06/2011,PAY00387198,9.00,Revenue,The Imprest Holder
Brighton & Hove City Council,http://statistics.data.gov.uk/id/local-authority/00ML,Children�s Social Care,BVACSC,Child Srvcs - Residential Svcs,FLR,Transport Related,D,Public Transport,DD,01/06/2011,PAY00387198,83.40,Revenue,The Imprest Holder
Brighton & Hove City Council,http://statistics.data.gov.uk/id/local-authority/00ML,Non BVACOP,BVANON,Trusts,TRT,Supplies and Services,E,Miscellaneous Expenses,EM,01/06/2011,PAY00387198,93.50,Revenue,The Imprest Holder
Brighton & Hove City Council,http://statistics.data.gov.uk/id/local-authority/00ML,Education Services,BVAEDU,Ed - Srvcs YP - Ad & Cmty Ln,ENA,Third Party Payments,F,Other Establishments,FH,01/06/2011,PAY00387200,5000.00,Revenue,The Whitehawk Inn
Brighton & Hove City Council,http://statistics.data.gov.uk/id/local-authority/00ML,Adult Social Care,BVASOC,S Svcs - Learning Disability,LDY,Third Party Payments,F,Other Establishments,FH,01/06/2011,PAY00387204,1355.28,Revenue,Payment to Individual
Brighton & Hove City Council,http://statistics.data.gov.uk/id/local-authority/00ML,Adult Social Care,BVASOC,S Svcs - Learning Disability,LDY,Third Party Payments,F,Other Establishments,FH,01/06/2011,PAY00387205,4040.00,Revenue,Families for Children (South) Ltd
Brighton & Hove City Council,http://statistics.data.gov.uk/id/local-authority/00ML,Children�s Social Care,BVACSC,Child Srvcs - Fostering,FLF,Third Party Payments,F,Other Establishments,FH,01/06/2011,PAY00387205,1432.02,Revenue,Families for Children (South) Ltd
Brighton & Hove City Council,http://statistics.data.gov.uk/id/local-authority/00ML,Highways and Transportation,BVAHRT,Parking Services,PRK,Third Party Payments,F,Private Contractors,FJ,01/06/2011,PAY00387208,190000.31,Revenue,NSL Ltd
Brighton & Hove City Council,http://statistics.data.gov.uk/id/local-authority/00ML,Adult Social Care,BVASOC,S Svcs - Learning Disability,LDY,Customer n Client Receipts,M,Fees n Charges,MB,01/06/2011,PAY00387209,-2746.20,Revenue,THF Care Estates Ltd
Brighton & Hove City Council,http://statistics.data.gov.uk/id/local-authority/00ML,Adult Social Care,BVASOC,S Svcs - Learning Disability,LDY,Third Party Payments,F,Other Establishments,FH,01/06/2011,PAY00387209,58763.16,Revenue,THF Care Estates Ltd
Brighton & Hove City Council,http://statistics.data.gov.uk/id/local-authority/00ML,Central Services To The Public,BVACEN,Support Services (SSC),PPT,Supplies and Services,E,Equip't Furniture n Materials,EA,01/06/2011,PAY00387210,1562.15,Revenue,Portsdown Office Furniture
Brighton & Hove City Council,http://statistics.data.gov.uk/id/local-authority/00ML,Housing Services Revnue Acc,BVAHOU,Hsing Management - HRA,HGM,Supplies and Services,E,Equip't Furniture n Materials,EA,01/06/2011,PAY00387210,166.00,Revenue,Portsdown Office Furniture
Brighton & Hove City Council,http://statistics.data.gov.uk/id/local-authority/00ML,Cultural Environment Planning,BVACEP,Culture & Heritage,CHG,Supplies and Services,E,Goods for Resale,EG,01/06/2011,PAY00387211,536.64,Revenue,Powell Craft (Retail) Ltd
Brighton & Hove City Council,http://statistics.data.gov.uk/id/local-authority/00ML,Cultural Environment Planning,BVACEP,Recreation and sport,REC,Transport Related,D,Direct Transport Costs,DA,01/06/2011,PAY00387212,531.25,Revenue,Premier Marinas (Brighton) Ltd
Brighton & Hove City Council,http://statistics.data.gov.uk/id/local-authority/00ML,Cultural Environment Planning,BVACEP,Culture & Heritage,CHG,Supplies and Services,E,Equip't Furniture n Materials,EA,01/06/2011,PAY00387213,477.71,Revenue,Preservation Equipment Ltd
Brighton & Hove City Council,http://statistics.data.gov.uk/id/local-authority/00ML,Adult Social Care,BVASOC,S Svcs - Older People Svcs,PPL,Customer n Client Receipts,M,Fees n Charges,MB,01/06/2011,PAY00387214,-3364.08,Revenue,Swallows Lodge Rest Home
Brighton & Hove City Council,http://statistics.data.gov.uk/id/local-authority/00ML,Adult Social Care,BVASOC,S Svcs - Older People Svcs,PPL,Third Party Payments,F,Other Establishments,FH,01/06/2011,PAY00387214,19060.00,Revenue,Swallows Lodge Rest Home
Brighton & Hove City Council,http://statistics.data.gov.uk/id/local-authority/00ML,Adult Social Care,BVASOC,S Svcs - Older People Svcs,PPL,Customer n Client Receipts,M,Fees n Charges,MB,01/06/2011,PAY00387220,-31566.37,Revenue,Anchor Trust Homes (Partridge House)
Brighton & Hove City Council,http://statistics.data.gov.uk/id/local-authority/00ML,Adult Social Care,BVASOC,S Svcs - Older People Svcs,PPL,Third Party Payments,F,Other Establishments,FH,01/06/2011,PAY00387220,104551.94,Revenue,Anchor Trust Homes (Partridge House)
Brighton & Hove City Council,http://statistics.data.gov.uk/id/local-authority/00ML,Cultural Environment Planning,BVACEP,Waste Management,WMT,Third Party Payments,F,Private Contractors,FJ,01/06/2011,PAY00387223,431.61,Revenue,Straight Recycling Systems
Brighton & Hove City Council,http://statistics.data.gov.uk/id/local-authority/00ML,Adult Social Care,BVASOC,S Svcs - Learning Disability,LDY,Customer n Client Receipts,M,Fees n Charges,MB,01/06/2011,PAY00387225,-165.00,Revenue,Caburn Support Services
Brighton & Hove City Council,http://statistics.data.gov.uk/id/local-authority/00ML,Adult Social Care,BVASOC,S Svcs - Learning Disability,LDY,Third Party Payments,F,Other Establishments,FH,01/06/2011,PAY00387225,7045.04,Revenue,Caburn Support Services
Brighton & Hove City Council,http://statistics.data.gov.uk/id/local-authority/00ML,Adult Social Care,BVASOC,S Svcs - Mental Health,MHT,Customer n Client Receipts,M,Fees n Charges,MB,01/06/2011,PAY00387225,-37.00,Revenue,Caburn Support Services
Brighton & Hove City Council,http://statistics.data.gov.uk/id/local-authority/00ML,Adult Social Care,BVASOC,S Svcs - Mental Health,MHT,Third Party Payments,F,Other Establishments,FH,01/06/2011,PAY00387225,73.80,Revenue,Caburn Support Services
Brighton & Hove City Council,http://statistics.data.gov.uk/id/local-authority/00ML,Children�s Social Care,BVACSC,Child Srvcs - Fostering,FLF,Third Party Payments,F,Other Establishments,FH,01/06/2011,PAY00387225,1050.00,Revenue,Caburn Support Services
Brighton & Hove City Council,http://statistics.data.gov.uk/id/local-authority/00ML,Children�s Social Care,BVACSC,Child Srvcs - Other Fam Supp,FFX,Transfer Payments,G,Other Transfer Payments,GD,01/06/2011,PAY00387225,58.25,Revenue,Caburn Support Services
Brighton & Hove City Council,http://statistics.data.gov.uk/id/local-authority/00ML,Adult Social Care,BVASOC,S Svcs - Older People Svcs,PPL,Customer n Client Receipts,M,Fees n Charges,MB,01/06/2011,PAY00387226,-791.60,Revenue,Seaway Nursing Home Ltd
Brighton & Hove City Council,http://statistics.data.gov.uk/id/local-authority/00ML,Adult Social Care,BVASOC,S Svcs - Older People Svcs,PPL,Third Party Payments,F,Other Establishments,FH,01/06/2011,PAY00387226,7610.69,Revenue,Seaway Nursing Home Ltd
Brighton & Hove City Council,http://statistics.data.gov.uk/id/local-authority/00ML,Adult Social Care,BVASOC,S Svcs - Older People Svcs,PPL,Customer n Client Receipts,M,Fees n Charges,MB,01/06/2011,PAY00387227,-3844.84,Revenue,Macleod Pinsent Care Ltd
Brighton & Hove City Council,http://statistics.data.gov.uk/id/local-authority/00ML,Adult Social Care,BVASOC,S Svcs - Older People Svcs,PPL,Third Party Payments,F,Other Establishments,FH,01/06/2011,PAY00387227,24640.00,Revenue,Macleod Pinsent Care Ltd
Brighton & Hove City Council,http://statistics.data.gov.uk/id/local-authority/00ML,Education Services,BVAEDU,Ed - Primary Ed,EHE,Supplies and Services,E,Services,EF,01/06/2011,PAY00387228,7810.00,Revenue,Cntr for Education & Finance Managmnt Ld
Brighton & Hove City Council,http://statistics.data.gov.uk/id/local-authority/00ML,Education Services,BVAEDU,Ed - Secondary Ed,EJE,Supplies and Services,E,Services,EF,01/06/2011,PAY00387228,7809.99,Revenue,Cntr for Education & Finance Managmnt Ld
Brighton & Hove City Council,http://statistics.data.gov.uk/id/local-authority/00ML,Adult Social Care,BVASOC,S Svcs - Learning Disability,LDY,Customer n Client Receipts,M,Fees n Charges,MB,01/06/2011,PAY00387230,-112.00,Revenue,Payment to Individual
Brighton & Hove City Council,http://statistics.data.gov.uk/id/local-authority/00ML,Adult Social Care,BVASOC,S Svcs - Learning Disability,LDY,Third Party Payments,F,Other Establishments,FH,01/06/2011,PAY00387230,4249.44,Revenue,Payment to Individual
Brighton & Hove City Council,http://statistics.data.gov.uk/id/local-authority/00ML,Adult Social Care,BVASOC,S Svcs - Older People Svcs,PPL,Customer n Client Receipts,M,Fees n Charges,MB,01/06/2011,PAY00387231,-2767.78,Revenue,Elreg House
Brighton & Hove City Council,http://statistics.data.gov.uk/id/local-authority/00ML,Adult Social Care,BVASOC,S Svcs - Older People Svcs,PPL,Third Party Payments,F,Other Establishments,FH,01/06/2011,PAY00387231,18453.00,Revenue,Elreg House
Brighton & Hove City Council,http://statistics.data.gov.uk/id/local-authority/00ML,Non BVACOP,BVANON,Cap - Mgmnt & Support Services,4PT,New Construction n Conversion,PB,Level not required,NR5026,01/06/2011,PAY00387232,1090.00,Capital,M J Zara Associates
Brighton & Hove City Council,http://statistics.data.gov.uk/id/local-authority/00ML,Non BVACOP,BVANON,Cap - Housing Services - GF,4HG,Capital Grants,PF,Level not required,NR5012,01/06/2011,PAY00387233,11344.08,Capital,Payment to Individual
Brighton & Hove City Council,http://statistics.data.gov.uk/id/local-authority/00ML,Cultural Environment Planning,BVACEP,Recreation and sport,REC,Supplies and Services,E,Services,EF,01/06/2011,PAY00387235,506.67,Revenue,Hove Lagoon Watersports Centre Ltd
Brighton & Hove City Council,http://statistics.data.gov.uk/id/local-authority/00ML,Cultural Environment Planning,BVACEP,Environmental Health,EVH,Supplies and Services,E,Equip't Furniture n Materials,EA,01/06/2011,PAY00387236,44.37,Revenue,Greenham Trading Ltd
Brighton & Hove City Council,http://statistics.data.gov.uk/id/local-authority/00ML,Cultural Environment Planning,BVACEP,Management Services (DEC),MGT,Supplies and Services,E,Equip't Furniture n Materials,EA,01/06/2011,PAY00387236,4544.09,Revenue,Greenham Trading Ltd
Brighton & Hove City Council,http://statistics.data.gov.uk/id/local-authority/00ML,Cultural Environment Planning,BVACEP,Open Spaces,PEN,Supplies and Services,E,Equip't Furniture n Materials,EA,01/06/2011,PAY00387236,36.72,Revenue,Greenham Trading Ltd
Brighton & Hove City Council,http://statistics.data.gov.uk/id/local-authority/00ML,Adult Social Care,BVASOC,S Svcs - Learning Disability,LDY,Customer n Client Receipts,M,Fees n Charges,MB,01/06/2011,PAY00387237,-459.00,Revenue,Parkview Care Home Ltd
Brighton & Hove City Council,http://statistics.data.gov.uk/id/local-authority/00ML,Adult Social Care,BVASOC,S Svcs - Learning Disability,LDY,Third Party Payments,F,Other Establishments,FH,01/06/2011,PAY00387237,2525.92,Revenue,Parkview Care Home Ltd
Brighton & Hove City Council,http://statistics.data.gov.uk/id/local-authority/00ML,Adult Social Care,BVASOC,S Svcs - Mental Health,MHT,Customer n Client Receipts,M,Fees n Charges,MB,01/06/2011,PAY00387237,-2339.44,Revenue,Parkview Care Home Ltd
Brighton & Hove City Council,http://statistics.data.gov.uk/id/local-authority/00ML,Adult Social Care,BVASOC,S Svcs - Mental Health,MHT,Third Party Payments,F,Other Establishments,FH,01/06/2011,PAY00387237,42359.52,Revenue,Parkview Care Home Ltd
Brighton & Hove City Council,http://statistics.data.gov.uk/id/local-authority/00ML,Adult Social Care,BVASOC,S Svcs - Older People Svcs,PPL,Customer n Client Receipts,M,Fees n Charges,MB,01/06/2011,PAY00387237,-310.60,Revenue,Parkview Care Home Ltd
Brighton & Hove City Council,http://statistics.data.gov.uk/id/local-authority/00ML,Adult Social Care,BVASOC,S Svcs - Older People Svcs,PPL,Third Party Payments,F,Other Establishments,FH,01/06/2011,PAY00387237,16680.00,Revenue,Parkview Care Home Ltd
Brighton & Hove City Council,http://statistics.data.gov.uk/id/local-authority/00ML,Adult Social Care,BVASOC,S Svcs - Learning Disability,LDY,Customer n Client Receipts,M,Fees n Charges,MB,01/06/2011,PAY00387238,-3542.40,Revenue,The Seagulls
Brighton & Hove City Council,http://statistics.data.gov.uk/id/local-authority/00ML,Adult Social Care,BVASOC,S Svcs - Learning Disability,LDY,Third Party Payments,F,Other Establishments,FH,01/06/2011,PAY00387238,39647.68,Revenue,The Seagulls
Brighton & Hove City Council,http://statistics.data.gov.uk/id/local-authority/00ML,Cultural Environment Planning,BVACEP,Culture & Heritage,CHG,Third Party Payments,F,Other Establishments,FH,01/06/2011,PAY00387239,173763.00,Revenue,Brighton Dome & Festival Ltd
Brighton & Hove City Council,http://statistics.data.gov.uk/id/local-authority/00ML,Housing Services General Fund,BVAHOG,Homelessness,HML,Supplies and Services,E,Miscellaneous Expenses,EM,01/06/2011,PAY00387241,480.00,Revenue,Dod`s Parliamentary Communications Ltd
Brighton & Hove City Council,http://statistics.data.gov.uk/id/local-authority/00ML,Cultural Environment Planning,BVACEP,Open Spaces,PEN,Third Party Payments,F,Private Contractors,FJ,01/06/2011,PAY00387242,750.00,Revenue,Green Space Forum (Trading) Ltd
Brighton & Hove City Council,http://statistics.data.gov.uk/id/local-authority/00ML,Cultural Environment Planning,BVACEP,Open Spaces,PEN,Third Party Payments,F,Private Contractors,FJ,01/06/2011,PAY00387243,750.00,Revenue,DCM Proj Ltd TA DCM Premier Play Surface
Brighton & Hove City Council,http://statistics.data.gov.uk/id/local-authority/00ML,Housing Services General Fund,BVAHOG,Homelessness,HML,Premises Related,C,Rents Payable,CC,01/06/2011,PAY00387246,2260.13,Revenue,Forward Properties Limited
Brighton & Hove City Council,http://statistics.data.gov.uk/id/local-authority/00ML,Housing Services Revnue Acc,BVAHOU,Hsing Management - HRA,HGM,Supplies and Services,E,Communications n Computing,EH,01/06/2011,PAY00387247,225.04,Revenue,Computerland UK Ltd
Brighton & Hove City Council,http://statistics.data.gov.uk/id/local-authority/00ML,Non BVACOP,BVANON,Cap - Housing Services - HRA,4HR,Intangible Fixed Assets,PI,Level not required,NR5023,01/06/2011,PAY00387247,1630.30,Capital,Computerland UK Ltd
Brighton & Hove City Council,http://statistics.data.gov.uk/id/local-authority/00ML,Non BVACOP,BVANON,Cap - Transport,4TR,Plant Machinery n Equipment,PE2,Level not required,NR5025,01/06/2011,PAY00387247,1832.44,Capital,Computerland UK Ltd
Brighton & Hove City Council,http://statistics.data.gov.uk/id/local-authority/00ML,Cultural Environment Planning,BVACEP,Management Services (DEC),MGT,Transport Related,D,Direct Transport Costs,DA,01/06/2011,PAY00387248,470.28,Revenue,BTR Brakes (Sussex) Ltd
Brighton & Hove City Council,http://statistics.data.gov.uk/id/local-authority/00ML,Adult Social Care,BVASOC,S Svcs - Mental Health,MHT,Customer n Client Receipts,M,Fees n Charges,MB,01/06/2011,PAY00387249,-44.41,Revenue,Drumconner Ltd
Brighton & Hove City Council,http://statistics.data.gov.uk/id/local-authority/00ML,Adult Social Care,BVASOC,S Svcs - Mental Health,MHT,Third Party Payments,F,Other Establishments,FH,01/06/2011,PAY00387249,316.11,Revenue,Drumconner Ltd
Brighton & Hove City Council,http://statistics.data.gov.uk/id/local-authority/00ML,Adult Social Care,BVASOC,S Svcs - Older People Svcs,PPL,Customer n Client Receipts,M,Fees n Charges,MB,01/06/2011,PAY00387249,-459.00,Revenue,Drumconner Ltd
Brighton & Hove City Council,http://statistics.data.gov.uk/id/local-authority/00ML,Adult Social Care,BVASOC,S Svcs - Older People Svcs,PPL,Third Party Payments,F,Other Establishments,FH,01/06/2011,PAY00387249,2212.80,Revenue,Drumconner Ltd
Brighton & Hove City Council,http://statistics.data.gov.uk/id/local-authority/00ML,Adult Social Care,BVASOC,S Svcs - Learning Disability,LDY,Customer n Client Receipts,M,Fees n Charges,MB,01/06/2011,PAY00387251,-184.00,Revenue,Heritage Care
Brighton & Hove City Council,http://statistics.data.gov.uk/id/local-authority/00ML,Adult Social Care,BVASOC,S Svcs - Learning Disability,LDY,Third Party Payments,F,Other Establishments,FH,01/06/2011,PAY00387251,12514.48,Revenue,Heritage Care
Brighton & Hove City Council,http://statistics.data.gov.uk/id/local-authority/00ML,Adult Social Care,BVASOC,S Svcs - Learning Disability,LDY,Customer n Client Receipts,M,Fees n Charges,MB,01/06/2011,PAY00387252,-754.00,Revenue,Lyndhurst Group Home
Brighton & Hove City Council,http://statistics.data.gov.uk/id/local-authority/00ML,Adult Social Care,BVASOC,S Svcs - Learning Disability,LDY,Third Party Payments,F,Other Establishments,FH,01/06/2011,PAY00387252,5902.60,Revenue,Lyndhurst Group Home
Brighton & Hove City Council,http://statistics.data.gov.uk/id/local-authority/00ML,Cultural Environment Planning,BVACEP,Ed - Ed Other - Other,ENF,Supplies and Services,E,Miscellaneous Expenses,EM,01/06/2011,PAY00387255,1066.50,Revenue,Adventure Unlimited
Brighton & Hove City Council,http://statistics.data.gov.uk/id/local-authority/00ML,Non BVACOP,BVANON,Cap - Housing Services - GF,4HG,Capital Grants,PF,Level not required,NR5012,01/06/2011,PAY00387256,6348.00,Capital,Payment to Individual
Brighton & Hove City Council,http://statistics.data.gov.uk/id/local-authority/00ML,Adult Social Care,BVASOC,S Svcs - Learning Disability,LDY,Premises Related,C,Energy Costs,CB,01/06/2011,PAY00387257,2026.88,Revenue,Southern Electric
Brighton & Hove City Council,http://statistics.data.gov.uk/id/local-authority/00ML,Adult Social Care,BVASOC,S Svcs - Mental Health,MHT,Premises Related,C,Energy Costs,CB,01/06/2011,PAY00387257,1921.72,Revenue,Southern Electric
Brighton & Hove City Council,http://statistics.data.gov.uk/id/local-authority/00ML,Adult Social Care,BVASOC,S Svcs - Older People Svcs,PPL,Premises Related,C,Energy Costs,CB,01/06/2011,PAY00387257,10698.54,Revenue,Southern Electric
Brighton & Hove City Council,http://statistics.data.gov.uk/id/local-authority/00ML,Adult Social Care,BVASOC,S Svcs - Physical Disability,PDY,Premises Related,C,Energy Costs,CB,01/06/2011,PAY00387257,1038.03,Revenue,Southern Electric
Brighton & Hove City Council,http://statistics.data.gov.uk/id/local-authority/00ML,Central Services To The Public,BVACEN,Holding Accounts,PPH,Premises Related,C,Energy Costs,CB,01/06/2011,PAY00387257,1859.55,Revenue,Southern Electric
Brighton & Hove City Council,http://statistics.data.gov.uk/id/local-authority/00ML,Central Services To The Public,BVACEN,Support Services (SSC),PPT,Premises Related,C,Energy Costs,CB,01/06/2011,PAY00387257,1225.21,Revenue,Southern Electric
Brighton & Hove City Council,http://statistics.data.gov.uk/id/local-authority/00ML,Central Services To The Public,BVACEN,Trading Services,TRD,Premises Related,C,Energy Costs,CB,01/06/2011,PAY00387257,173.95,Revenue,Southern Electric
Brighton & Hove City Council,http://statistics.data.gov.uk/id/local-authority/00ML,Children�s Social Care,BVACSC,Child Srvcs - Com & Scl Work,FCW,Premises Related,C,Energy Costs,CB,01/06/2011,PAY00387257,322.94,Revenue,Southern Electric
Brighton & Hove City Council,http://statistics.data.gov.uk/id/local-authority/00ML,Children�s Social Care,BVACSC,Child Srvcs - Family Centres,FFF,Premises Related,C,Energy Costs,CB,01/06/2011,PAY00387257,867.80,Revenue,Southern Electric
Brighton & Hove City Council,http://statistics.data.gov.uk/id/local-authority/00ML,Cultural Environment Planning,BVACEP,Cem Crem and Mortuary Services,CCM,Premises Related,C,Energy Costs,CB,01/06/2011,PAY00387257,-1058.50,Revenue,Southern Electric
Brighton & Hove City Council,http://statistics.data.gov.uk/id/local-authority/00ML,Cultural Environment Planning,BVACEP,Culture & Heritage,CHG,Premises Related,C,Energy Costs,CB,01/06/2011,PAY00387257,3741.69,Revenue,Southern Electric
Brighton & Hove City Council,http://statistics.data.gov.uk/id/local-authority/00ML,Cultural Environment Planning,BVACEP,Economic Development,ECD,Premises Related,C,Energy Costs,CB,01/06/2011,PAY00387257,499.21,Revenue,Southern Electric
Brighton & Hove City Council,http://statistics.data.gov.uk/id/local-authority/00ML,Cultural Environment Planning,BVACEP,Environmental Health,EVH,Premises Related,C,Energy Costs,CB,01/06/2011,PAY00387257,1533.67,Revenue,Southern Electric
Brighton & Hove City Council,http://statistics.data.gov.uk/id/local-authority/00ML,Cultural Environment Planning,BVACEP,Highways and Roads - Mntnce,HRM,Premises Related,C,Energy Costs,CB,01/06/2011,PAY00387257,2079.42,Revenue,Southern Electric
Brighton & Hove City Council,http://statistics.data.gov.uk/id/local-authority/00ML,Cultural Environment Planning,BVACEP,Library Service,LBR,Premises Related,C,Energy Costs,CB,01/06/2011,PAY00387257,2460.14,Revenue,Southern Electric
Brighton & Hove City Council,http://statistics.data.gov.uk/id/local-authority/00ML,Cultural Environment Planning,BVACEP,Management Services (DEC),MGT,Premises Related,C,Energy Costs,CB,01/06/2011,PAY00387257,7638.98,Revenue,Southern Electric
Brighton & Hove City Council,http://statistics.data.gov.uk/id/local-authority/00ML,Cultural Environment Planning,BVACEP,Open Spaces,PEN,Premises Related,C,Energy Costs,CB,01/06/2011,PAY00387257,422.64,Revenue,Southern Electric
Brighton & Hove City Council,http://statistics.data.gov.uk/id/local-authority/00ML,Cultural Environment Planning,BVACEP,Recreation and sport,REC,Premises Related,C,Energy Costs,CB,01/06/2011,PAY00387257,2171.13,Revenue,Southern Electric
Brighton & Hove City Council,http://statistics.data.gov.uk/id/local-authority/00ML,Education Services,BVAEDU,Ed - EY - Central,EAE,Premises Related,C,Energy Costs,CB,01/06/2011,PAY00387257,4715.15,Revenue,Southern Electric
Brighton & Hove City Council,http://statistics.data.gov.uk/id/local-authority/00ML,Education Services,BVAEDU,Ed - Mgmt & Support Services,EMG,Premises Related,C,Energy Costs,CB,01/06/2011,PAY00387257,418.14,Revenue,Southern Electric
Brighton & Hove City Council,http://statistics.data.gov.uk/id/local-authority/00ML,Education Services,BVAEDU,Ed - Nursery schools,EAA,Premises Related,C,Energy Costs,CB,01/06/2011,PAY00387257,312.02,Revenue,Southern Electric
Brighton & Hove City Council,http://statistics.data.gov.uk/id/local-authority/00ML,Education Services,BVAEDU,Ed - Primary schools,EHH,Premises Related,C,Energy Costs,CB,01/06/2011,PAY00387257,19331.84,Revenue,Southern Electric
Brighton & Hove City Council,http://statistics.data.gov.uk/id/local-authority/00ML,Education Services,BVAEDU,Ed - Secondary Schools,EJJ,Premises Related,C,Energy Costs,CB,01/06/2011,PAY00387257,2098.59,Revenue,Southern Electric
Brighton & Hove City Council,http://statistics.data.gov.uk/id/local-authority/00ML,Education Services,BVAEDU,Ed - Special Schools,EKK,Premises Related,C,Energy Costs,CB,01/06/2011,PAY00387257,3976.52,Revenue,Southern Electric
Brighton & Hove City Council,http://statistics.data.gov.uk/id/local-authority/00ML,Education Services,BVAEDU,Ed - Srvcs YP - Ad & Cmty Ln,ENA,Premises Related,C,Energy Costs,CB,01/06/2011,PAY00387257,3995.60,Revenue,Southern Electric
Brighton & Hove City Council,http://statistics.data.gov.uk/id/local-authority/00ML,Education Services,BVAEDU,Ed - Srvcs YP - Youth Srvcs,ENY,Premises Related,C,Energy Costs,CB,01/06/2011,PAY00387257,2520.39,Revenue,Southern Electric
Brighton & Hove City Council,http://statistics.data.gov.uk/id/local-authority/00ML,Highways and Transportation,BVAHRT,Highways and Roads - Mntnce,HRM,Premises Related,C,Energy Costs,CB,01/06/2011,PAY00387257,2361.30,Revenue,Southern Electric
Brighton & Hove City Council,http://statistics.data.gov.uk/id/local-authority/00ML,Highways and Transportation,BVAHRT,Parking Services,PRK,Premises Related,C,Energy Costs,CB,01/06/2011,PAY00387257,2504.04,Revenue,Southern Electric
Brighton & Hove City Council,http://statistics.data.gov.uk/id/local-authority/00ML,Housing Services Revnue Acc,BVAHOU,Hsing Management - HRA,HGM,Premises Related,C,Energy Costs,CB,01/06/2011,PAY00387257,55582.57,Revenue,Southern Electric
Brighton & Hove City Council,http://statistics.data.gov.uk/id/local-authority/00ML,Housing Services Revnue Acc,BVAHOU,Hsing Strategy - HRA,HGT,Premises Related,C,Energy Costs,CB,01/06/2011,PAY00387257,496.32,Revenue,Southern Electric
Brighton & Hove City Council,http://statistics.data.gov.uk/id/local-authority/00ML,Adult Social Care,BVASOC,S Svcs - Learning Disability,LDY,Customer n Client Receipts,M,Fees n Charges,MB,01/06/2011,PAY00387258,-600.00,Revenue,Payment to Individual
Brighton & Hove City Council,http://statistics.data.gov.uk/id/local-authority/00ML,Adult Social Care,BVASOC,S Svcs - Learning Disability,LDY,Third Party Payments,F,Other Establishments,FH,01/06/2011,PAY00387258,5569.20,Revenue,Payment to Individual
Brighton & Hove City Council,http://statistics.data.gov.uk/id/local-authority/00ML,Adult Social Care,BVASOC,S Svcs - Older People Svcs,PPL,Customer n Client Receipts,M,Fees n Charges,MB,01/06/2011,PAY00387261,-459.00,Revenue,The White House
Brighton & Hove City Council,http://statistics.data.gov.uk/id/local-authority/00ML,Adult Social Care,BVASOC,S Svcs - Older People Svcs,PPL,Third Party Payments,F,Other Establishments,FH,01/06/2011,PAY00387261,1644.00,Revenue,The White House
Brighton & Hove City Council,http://statistics.data.gov.uk/id/local-authority/00ML,Cultural Environment Planning,BVACEP,Culture & Heritage,CHG,Supplies and Services,E,Miscellaneous Expenses,EM,01/06/2011,PAY00387263,480.00,Revenue,Select Security & Stewarding Ltd
Brighton & Hove City Council,http://statistics.data.gov.uk/id/local-authority/00ML,Adult Social Care,BVASOC,S Svcs - Mental Health,MHT,Customer n Client Receipts,M,Fees n Charges,MB,01/06/2011,PAY00387264,-520.00,Revenue,Payment to Individual
Brighton & Hove City Council,http://statistics.data.gov.uk/id/local-authority/00ML,Adult Social Care,BVASOC,S Svcs - Mental Health,MHT,Third Party Payments,F,Other Establishments,FH,01/06/2011,PAY00387264,3448.00,Revenue,Payment to Individual
Brighton & Hove City Council,http://statistics.data.gov.uk/id/local-authority/00ML,Children�s Social Care,BVACSC,Child Srvcs - Other,FAX,Supplies and Services,E,Catering,EB,01/06/2011,PAY00387268,17.03,Revenue,The Imprest Holder
Brighton & Hove City Council,http://statistics.data.gov.uk/id/local-authority/00ML,Children�s Social Care,BVACSC,Child Srvcs - Other,FAX,Supplies and Services,E,Communications n Computing,EH,01/06/2011,PAY00387268,25.90,Revenue,The Imprest Holder
Brighton & Hove City Council,http://statistics.data.gov.uk/id/local-authority/00ML,Children�s Social Care,BVACSC,Child Srvcs - Other,FAX,Supplies and Services,E,Equip't Furniture n Materials,EA,01/06/2011,PAY00387268,24.99,Revenue,The Imprest Holder
Brighton & Hove City Council,http://statistics.data.gov.uk/id/local-authority/00ML,Children�s Social Care,BVACSC,Child Srvcs - Other,FAX,Supplies and Services,E,Expenses,EJ,01/06/2011,PAY00387268,2.48,Revenue,The Imprest Holder
Brighton & Hove City Council,http://statistics.data.gov.uk/id/local-authority/00ML,Children�s Social Care,BVACSC,Child Srvcs - Other,FAX,Supplies and Services,E,Services,EF,01/06/2011,PAY00387268,492.79,Revenue,The Imprest Holder
Brighton & Hove City Council,http://statistics.data.gov.uk/id/local-authority/00ML,Children�s Social Care,BVACSC,Child Srvcs - Other,FAX,Third Party Payments,F,Other Establishments,FH,01/06/2011,PAY00387268,68.33,Revenue,The Imprest Holder
Brighton & Hove City Council,http://statistics.data.gov.uk/id/local-authority/00ML,Children�s Social Care,BVACSC,Child Srvcs - Other,FAX,Transport Related,D,Public Transport,DD,01/06/2011,PAY00387268,8.70,Revenue,The Imprest Holder
Brighton & Hove City Council,http://statistics.data.gov.uk/id/local-authority/00ML,Adult Social Care,BVASOC,S Svcs - Older People Svcs,PPL,Customer n Client Receipts,M,Fees n Charges,MB,01/06/2011,PAY00387269,-6201.93,Revenue,Mount Hermon Care Home
Brighton & Hove City Council,http://statistics.data.gov.uk/id/local-authority/00ML,Adult Social Care,BVASOC,S Svcs - Older People Svcs,PPL,Third Party Payments,F,Other Establishments,FH,01/06/2011,PAY00387269,14874.29,Revenue,Mount Hermon Care Home
Brighton & Hove City Council,http://statistics.data.gov.uk/id/local-authority/00ML,Adult Social Care,BVASOC,S Svcs - Mental Health,MHT,Customer n Client Receipts,M,Fees n Charges,MB,01/06/2011,PAY00387270,-1676.00,Revenue,Payment to Individual
Brighton & Hove City Council,http://statistics.data.gov.uk/id/local-authority/00ML,Adult Social Care,BVASOC,S Svcs - Mental Health,MHT,Third Party Payments,F,Other Establishments,FH,01/06/2011,PAY00387270,5172.00,Revenue,Payment to Individual
Brighton & Hove City Council,http://statistics.data.gov.uk/id/local-authority/00ML,Adult Social Care,BVASOC,S Svcs - Older People Svcs,PPL,Customer n Client Receipts,M,Fees n Charges,MB,01/06/2011,PAY00387271,-1109.12,Revenue,Oaklodge Nursing Home
Brighton & Hove City Council,http://statistics.data.gov.uk/id/local-authority/00ML,Adult Social Care,BVASOC,S Svcs - Older People Svcs,PPL,Third Party Payments,F,Other Establishments,FH,01/06/2011,PAY00387271,6888.00,Revenue,Oaklodge Nursing Home
Brighton & Hove City Council,http://statistics.data.gov.uk/id/local-authority/00ML,Central Services To The Public,BVACEN,Support Services (SSC),PPT,Supplies and Services,E,Communications n Computing,EH,01/06/2011,PAY00387272,2686.57,Revenue,Virgin Media Business
Brighton & Hove City Council,http://statistics.data.gov.uk/id/local-authority/00ML,Children�s Social Care,BVACSC,Child Srvcs - Com & Scl Work,FCW,Supplies and Services,E,Communications n Computing,EH,01/06/2011,PAY00387272,25.67,Revenue,Virgin Media Business
Brighton & Hove City Council,http://statistics.data.gov.uk/id/local-authority/00ML,Education Services,BVAEDU,Ed - Srvcs YP - Ad & Cmty Ln,ENA,Supplies and Services,E,Communications n Computing,EH,01/06/2011,PAY00387272,68.02,Revenue,Virgin Media Business
Brighton & Hove City Council,http://statistics.data.gov.uk/id/local-authority/00ML,Adult Social Care,BVASOC,S Svcs - Older People Svcs,PPL,Customer n Client Receipts,M,Fees n Charges,MB,01/06/2011,PAY00387273,-767.92,Revenue,Westholme Clinic Ltd
Brighton & Hove City Council,http://statistics.data.gov.uk/id/local-authority/00ML,Adult Social Care,BVASOC,S Svcs - Older People Svcs,PPL,Third Party Payments,F,Other Establishments,FH,01/06/2011,PAY00387273,4425.60,Revenue,Westholme Clinic Ltd
Brighton & Hove City Council,http://statistics.data.gov.uk/id/local-authority/00ML,Education Services,BVAEDU,Ed - EY - Central,EAE,Third Party Payments,F,Other Establishments,FH,01/06/2011,PAY00387274,500.00,Revenue,Brighton Day Nursery
Brighton & Hove City Council,http://statistics.data.gov.uk/id/local-authority/00ML,Central Services To The Public,BVACEN,Support Services (SSC),PPT,Premises Related,C,Repair Maint n Alterations,CA,01/06/2011,PAY00387276,260.44,Revenue,Fireline Ltd
Brighton & Hove City Council,http://statistics.data.gov.uk/id/local-authority/00ML,Cultural Environment Planning,BVACEP,Cem Crem and Mortuary Services,CCM,Premises Related,C,Repair Maint n Alterations,CA,01/06/2011,PAY00387276,81.39,Revenue,Fireline Ltd
Brighton & Hove City Council,http://statistics.data.gov.uk/id/local-authority/00ML,Cultural Environment Planning,BVACEP,Culture & Heritage,CHG,Premises Related,C,Repair Maint n Alterations,CA,01/06/2011,PAY00387276,68.33,Revenue,Fireline Ltd
Brighton & Hove City Council,http://statistics.data.gov.uk/id/local-authority/00ML,Education Services,BVAEDU,Ed - Ed Other - Other,ENF,Premises Related,C,Repair Maint n Alterations,CA,01/06/2011,PAY00387276,109.17,Revenue,Fireline Ltd
Brighton & Hove City Council,http://statistics.data.gov.uk/id/local-authority/00ML,Housing Services General Fund,BVAHOG,Homelessness,HML,Premises Related,C,Repair Maint n Alterations,CA,01/06/2011,PAY00387276,116.41,Revenue,Fireline Ltd
Brighton & Hove City Council,http://statistics.data.gov.uk/id/local-authority/00ML,Housing Services Revnue Acc,BVAHOU,Hsing Management - HRA,HGM,Premises Related,C,Repair Maint n Alterations,CA,01/06/2011,PAY00387276,364.46,Revenue,Fireline Ltd
Brighton & Hove City Council,http://statistics.data.gov.uk/id/local-authority/00ML,Non BVACOP,BVANON,Cap - Education Services,4ED,Plant Machinery n Equipment,PE2,Level not required,NR5025,01/06/2011,PAY00387276,621.37,Capital,Fireline Ltd
Brighton & Hove City Council,http://statistics.data.gov.uk/id/local-authority/00ML,Adult Social Care,BVASOC,S Svcs - Learning Disability,LDY,Third Party Payments,F,Other Establishments,FH,01/06/2011,PAY00387277,1683.53,Revenue,Carers Centre for Brighton & Hove Ltd
Brighton & Hove City Council,http://statistics.data.gov.uk/id/local-authority/00ML,Education Services,BVAEDU,Ed - Mgmt & Support Services,EMG,Supplies and Services,E,Catering,EB,01/06/2011,PAY00387278,2023.15,Revenue,Cliffords Catering Limited
Brighton & Hove City Council,http://statistics.data.gov.uk/id/local-authority/00ML,Housing Services General Fund,BVAHOG,Homelessness,HML,Premises Related,C,Rents Payable,CC,01/06/2011,PAY00387280,825.00,Revenue,Payment to Individual
Brighton & Hove City Council,http://statistics.data.gov.uk/id/local-authority/00ML,Adult Social Care,BVASOC,S Svcs - Learning Disability,LDY,Third Party Payments,F,Other Establishments,FH,01/06/2011,PAY00387281,12155.00,Revenue,Brighton & Hove Speak Out
Brighton & Hove City Council,http://statistics.data.gov.uk/id/local-authority/00ML,Adult Social Care,BVASOC,S Svcs - Learning Disability,LDY,Customer n Client Receipts,M,Fees n Charges,MB,01/06/2011,PAY00387282,-3508.00,Revenue,Payment to Individual
Brighton & Hove City Council,http://statistics.data.gov.uk/id/local-authority/00ML,Adult Social Care,BVASOC,S Svcs - Learning Disability,LDY,Third Party Payments,F,Other Establishments,FH,01/06/2011,PAY00387282,14512.00,Revenue,Payment to Individual
Brighton & Hove City Council,http://statistics.data.gov.uk/id/local-authority/00ML,Adult Social Care,BVASOC,S Svcs - Older People Svcs,PPL,Customer n Client Receipts,M,Fees n Charges,MB,01/06/2011,PAY00387282,-459.00,Revenue,Payment to Individual
Brighton & Hove City Council,http://statistics.data.gov.uk/id/local-authority/00ML,Adult Social Care,BVASOC,S Svcs - Older People Svcs,PPL,Third Party Payments,F,Other Establishments,FH,01/06/2011,PAY00387282,1904.00,Revenue,Payment to Individual
Brighton & Hove City Council,http://statistics.data.gov.uk/id/local-authority/00ML,Non BVACOP,BVANON,Cap - Housing Services - GF,4HG,Capital Grants,PF,Level not required,NR5012,01/06/2011,PAY00387283,4263.82,Capital,Brighton Trade Windows Ltd
Brighton & Hove City Council,http://statistics.data.gov.uk/id/local-authority/00ML,Education Services,BVAEDU,Ed - Ed Other - Standards Fund,ENN,Third Party Payments,F,Other Establishments,FH,01/06/2011,PAY00387285,4000.00,Revenue,East Sussex Fire Authority
Brighton & Hove City Council,http://statistics.data.gov.uk/id/local-authority/00ML,Central Services To The Public,BVACEN,Elections,ELE,Supplies and Services,E,Communications n Computing,EH,01/06/2011,PAY00387286,2205.70,Revenue,Royal Mail Group Ltd
Brighton & Hove City Council,http://statistics.data.gov.uk/id/local-authority/00ML,Central Services To The Public,BVACEN,Holding Accounts,PPH,Supplies and Services,E,Communications n Computing,EH,01/06/2011,PAY00387286,1178.24,Revenue,Royal Mail Group Ltd
Brighton & Hove City Council,http://statistics.data.gov.uk/id/local-authority/00ML,Central Services To The Public,BVACEN,Local Tax Collection,LTC,Supplies and Services,E,Communications n Computing,EH,01/06/2011,PAY00387286,1349.65,Revenue,Royal Mail Group Ltd
Brighton & Hove City Council,http://statistics.data.gov.uk/id/local-authority/00ML,Adult Social Care,BVASOC,S Svcs - Learning Disability,LDY,Customer n Client Receipts,M,Fees n Charges,MB,01/06/2011,PAY00387288,-68.00,Revenue,Payment to Individual
Brighton & Hove City Council,http://statistics.data.gov.uk/id/local-authority/00ML,Adult Social Care,BVASOC,S Svcs - Learning Disability,LDY,Third Party Payments,F,Other Establishments,FH,01/06/2011,PAY00387288,8213.92,Revenue,Payment to Individual
Brighton & Hove City Council,http://statistics.data.gov.uk/id/local-authority/00ML,Cultural Environment Planning,BVACEP,Economic Development,ECD,Supplies and Services,E,Miscellaneous Expenses,EM,01/06/2011,PAY00387292,2667.46,Revenue,Central Sussex College
Brighton & Hove City Council,http://statistics.data.gov.uk/id/local-authority/00ML,Education Services,BVAEDU,Ed - Srvcs YP - Ad & Cmty Ln,ENA,Third Party Payments,F,Other Establishments,FH,01/06/2011,PAY00387295,5000.00,Revenue,Brighton & Hove Working Together Project
Brighton & Hove City Council,http://statistics.data.gov.uk/id/local-authority/00ML,Housing Services General Fund,BVAHOG,Homelessness,HML,Premises Related,C,Rents Payable,CC,01/06/2011,PAY00387296,850.00,Revenue,Payment to Individual
Brighton & Hove City Council,http://statistics.data.gov.uk/id/local-authority/00ML,Adult Social Care,BVASOC,S Svcs - Older People Svcs,PPL,Customer n Client Receipts,M,Fees n Charges,MB,01/06/2011,PAY00387300,-829.12,Revenue,Hillersden Court Rest Home
Brighton & Hove City Council,http://statistics.data.gov.uk/id/local-authority/00ML,Adult Social Care,BVASOC,S Svcs - Older People Svcs,PPL,Third Party Payments,F,Other Establishments,FH,01/06/2011,PAY00387300,1484.00,Revenue,Hillersden Court Rest Home
Brighton & Hove City Council,http://statistics.data.gov.uk/id/local-authority/00ML,Adult Social Care,BVASOC,S Svcs - Learning Disability,LDY,Third Party Payments,F,Other Establishments,FH,01/06/2011,PAY00387301,1925.00,Revenue,The Bevern Trust
Brighton & Hove City Council,http://statistics.data.gov.uk/id/local-authority/00ML,Non BVACOP,BVANON,Cap - Education Services,4ED,New Construction n Conversion,PB,Level not required,NR5026,01/06/2011,PAY00387306,570.00,Capital,Evac + Chair International Ltd
Brighton & Hove City Council,http://statistics.data.gov.uk/id/local-authority/00ML,Cultural Environment Planning,BVACEP,Recreation and sport,REC,Premises Related,C,Repair Maint n Alterations,CA,01/06/2011,PAY00387307,650.00,Revenue,Woodland Building Services Ltd
Brighton & Hove City Council,http://statistics.data.gov.uk/id/local-authority/00ML,Non BVACOP,BVANON,Cap - Sport & Recreation,4RC,New Construction n Conversion,PB,Level not required,NR5026,01/06/2011,PAY00387307,9585.00,Capital,Woodland Building Services Ltd
Brighton & Hove City Council,http://statistics.data.gov.uk/id/local-authority/00ML,Adult Social Care,BVASOC,S Svcs - Mental Health,MHT,Third Party Payments,F,Other Establishments,FH,01/06/2011,PAY00387308,156.25,Revenue,Care UK Homecare
Brighton & Hove City Council,http://statistics.data.gov.uk/id/local-authority/00ML,Adult Social Care,BVASOC,S Svcs - Older People Svcs,PPL,Customer n Client Receipts,M,Fees n Charges,MB,01/06/2011,PAY00387308,-506.00,Revenue,Care UK Homecare
Brighton & Hove City Council,http://statistics.data.gov.uk/id/local-authority/00ML,Adult Social Care,BVASOC,S Svcs - Older People Svcs,PPL,Third Party Payments,F,Other Establishments,FH,01/06/2011,PAY00387308,2564.65,Revenue,Care UK Homecare
Brighton & Hove City Council,http://statistics.data.gov.uk/id/local-authority/00ML,Adult Social Care,BVASOC,S Svcs - Physical Disability,PDY,Customer n Client Receipts,M,Fees n Charges,MB,01/06/2011,PAY00387308,-196.00,Revenue,Care UK Homecare
Brighton & Hove City Council,http://statistics.data.gov.uk/id/local-authority/00ML,Adult Social Care,BVASOC,S Svcs - Physical Disability,PDY,Third Party Payments,F,Other Establishments,FH,01/06/2011,PAY00387308,2478.51,Revenue,Care UK Homecare
Brighton & Hove City Council,http://statistics.data.gov.uk/id/local-authority/00ML,Cultural Environment Planning,BVACEP,Management Services (DEC),MGT,Supplies and Services,E,Equip't Furniture n Materials,EA,01/06/2011,PAY00387309,3442.50,Revenue,Scarab Sweepers Ltd
Brighton & Hove City Council,http://statistics.data.gov.uk/id/local-authority/00ML,Adult Social Care,BVASOC,S Svcs - Older People Svcs,PPL,Customer n Client Receipts,M,Fees n Charges,MB,01/06/2011,PAY00387311,-560.64,Revenue,Yourcare T/A Kelstone Court Home
Brighton & Hove City Council,http://statistics.data.gov.uk/id/local-authority/00ML,Adult Social Care,BVASOC,S Svcs - Older People Svcs,PPL,Third Party Payments,F,Other Establishments,FH,01/06/2011,PAY00387311,2629.20,Revenue,Yourcare T/A Kelstone Court Home
Brighton & Hove City Council,http://statistics.data.gov.uk/id/local-authority/00ML,Housing Services General Fund,BVAHOG,Homelessness,HML,Premises Related,C,Rents Payable,CC,01/06/2011,PAY00387312,1996.17,Revenue,Sussex Central YMCA
Brighton & Hove City Council,http://statistics.data.gov.uk/id/local-authority/00ML,Education Services,BVAEDU,Ed - Ed Other LAA,ELL,Supplies and Services,E,Grants n Subscriptions,EK,01/06/2011,PAY00387314,600.00,Revenue,Brighton & Hove Inclusion Project
Brighton & Hove City Council,http://statistics.data.gov.uk/id/local-authority/00ML,Central Services To The Public,BVACEN,Non service costs,NVC,Capital Financing Costs,J,Capital Financing Costs,JA,01/06/2011,PAY00387317,2130.00,Revenue,KBC Lease (UK) Ltd
Brighton & Hove City Council,http://statistics.data.gov.uk/id/local-authority/00ML,Adult Social Care,BVASOC,S Svcs - Mental Health,MHT,Third Party Payments,F,Other Establishments,FH,01/06/2011,PAY00387320,31220.08,Revenue,MIND in Brighton & Hove
Brighton & Hove City Council,http://statistics.data.gov.uk/id/local-authority/00ML,Adult Social Care,BVASOC,S Svcs - Learning Disability,LDY,Customer n Client Receipts,M,Fees n Charges,MB,01/06/2011,PAY00387321,-295.00,Revenue,Solor Care Group Ltd
Brighton & Hove City Council,http://statistics.data.gov.uk/id/local-authority/00ML,Adult Social Care,BVASOC,S Svcs - Learning Disability,LDY,Third Party Payments,F,Other Establishments,FH,01/06/2011,PAY00387321,11829.68,Revenue,Solor Care Group Ltd
Brighton & Hove City Council,http://statistics.data.gov.uk/id/local-authority/00ML,Adult Social Care,BVASOC,S Svcs - Older People Svcs,PPL,Customer n Client Receipts,M,Fees n Charges,MB,01/06/2011,PAY00387323,-252.00,Revenue,Payment to Individual
Brighton & Hove City Council,http://statistics.data.gov.uk/id/local-authority/00ML,Adult Social Care,BVASOC,S Svcs - Older People Svcs,PPL,Third Party Payments,F,Other Establishments,FH,01/06/2011,PAY00387323,1496.00,Revenue,Payment to Individual
Brighton & Hove City Council,http://statistics.data.gov.uk/id/local-authority/00ML,Education Services,BVAEDU,Ed - Srvcs YP - Ad & Cmty Ln,ENA,Third Party Payments,F,Other Establishments,FH,01/06/2011,PAY00387324,5000.00,Revenue,The Hangleton & Knoll Project
Brighton & Hove City Council,http://statistics.data.gov.uk/id/local-authority/00ML,Adult Social Care,BVASOC,S Svcs - Mental Health,MHT,Customer n Client Receipts,M,Fees n Charges,MB,01/06/2011,PAY00387325,-612.00,Revenue,Victoria Lodge Care Home
Brighton & Hove City Council,http://statistics.data.gov.uk/id/local-authority/00ML,Adult Social Care,BVASOC,S Svcs - Mental Health,MHT,Third Party Payments,F,Other Establishments,FH,01/06/2011,PAY00387325,3448.00,Revenue,Victoria Lodge Care Home
Brighton & Hove City Council,http://statistics.data.gov.uk/id/local-authority/00ML,Adult Social Care,BVASOC,S Svcs - Learning Disability,LDY,Premises Related,C,Cleaning n Domestic Supps,CH,01/06/2011,PAY00387327,109.40,Revenue,The Imprest Holder
Brighton & Hove City Council,http://statistics.data.gov.uk/id/local-authority/00ML,Adult Social Care,BVASOC,S Svcs - Learning Disability,LDY,Supplies and Services,E,Catering,EB,01/06/2011,PAY00387327,1046.99,Revenue,The Imprest Holder
Brighton & Hove City Council,http://statistics.data.gov.uk/id/local-authority/00ML,Adult Social Care,BVASOC,S Svcs - Learning Disability,LDY,Supplies and Services,E,Equip't Furniture n Materials,EA,01/06/2011,PAY00387327,37.36,Revenue,The Imprest Holder
Brighton & Hove City Council,http://statistics.data.gov.uk/id/local-authority/00ML,Adult Social Care,BVASOC,S Svcs - Learning Disability,LDY,Supplies and Services,E,Expenses,EJ,01/06/2011,PAY00387327,73.68,Revenue,The Imprest Holder
Brighton & Hove City Council,http://statistics.data.gov.uk/id/local-authority/00ML,Adult Social Care,BVASOC,S Svcs - Learning Disability,LDY,Supplies and Services,E,Miscellaneous Expenses,EM,01/06/2011,PAY00387327,190.00,Revenue,The Imprest Holder
Brighton & Hove City Council,http://statistics.data.gov.uk/id/local-authority/00ML,Adult Social Care,BVASOC,S Svcs - Learning Disability,LDY,Third Party Payments,F,Other Establishments,FH,01/06/2011,PAY00387327,155.28,Revenue,The Imprest Holder
Brighton & Hove City Council,http://statistics.data.gov.uk/id/local-authority/00ML,Adult Social Care,BVASOC,S Svcs - Learning Disability,LDY,Transport Related,D,Public Transport,DD,01/06/2011,PAY00387327,52.30,Revenue,The Imprest Holder
Brighton & Hove City Council,http://statistics.data.gov.uk/id/local-authority/00ML,Central Services To The Public,BVACEN,Elections,ELE,Supplies and Services,E,Communications n Computing,EH,01/06/2011,PAY00387330,657.78,Revenue,Smith & Ouzman Ltd
Brighton & Hove City Council,http://statistics.data.gov.uk/id/local-authority/00ML,Housing Services General Fund,BVAHOG,Homelessness,HML,Premises Related,C,Rents Payable,CC,01/06/2011,PAY00387332,620.00,Revenue,Payment to Individual
Brighton & Hove City Council,http://statistics.data.gov.uk/id/local-authority/00ML,Central Services To The Public,BVACEN,Support Services (SSC),PPT,Premises Related,C,Repair Maint n Alterations,CA,01/06/2011,PAY00387334,1632.12,Revenue,Clivet Aircon Ltd
Brighton & Hove City Council,http://statistics.data.gov.uk/id/local-authority/00ML,Children�s Social Care,BVACSC,Child Srvcs - Fostering,FLF,Third Party Payments,F,Other Establishments,FH,01/06/2011,PAY00387337,4671.15,Revenue,The National Fostering Agency Ltd
Brighton & Hove City Council,http://statistics.data.gov.uk/id/local-authority/00ML,Housing Services Revnue Acc,BVAHOU,Hsing Management - HRA,HGM,Premises Related,C,Repair Maint n Alterations,CA,01/06/2011,PAY00387340,1146.48,Revenue,Homebase Limited
Brighton & Hove City Council,http://statistics.data.gov.uk/id/local-authority/00ML,Adult Social Care,BVASOC,S Svcs - Older People Svcs,PPL,Third Party Payments,F,Other Establishments,FH,01/06/2011,PAY00387344,835.05,Revenue,Sussex Home Care (Hove) Ltd
Brighton & Hove City Council,http://statistics.data.gov.uk/id/local-authority/00ML,Adult Social Care,BVASOC,S Svcs - Learning Disability,LDY,Customer n Client Receipts,M,Fees n Charges,MB,01/06/2011,PAY00387345,-12177.29,Revenue,CMG Limited
Brighton & Hove City Council,http://statistics.data.gov.uk/id/local-authority/00ML,Adult Social Care,BVASOC,S Svcs - Learning Disability,LDY,Third Party Payments,F,Other Establishments,FH,01/06/2011,PAY00387345,234527.76,Revenue,CMG Limited
Brighton & Hove City Council,http://statistics.data.gov.uk/id/local-authority/00ML,Adult Social Care,BVASOC,S Svcs - Older People Svcs,PPL,Customer n Client Receipts,M,Fees n Charges,MB,01/06/2011,PAY00387347,-5148.68,Revenue,Evans Care Ltd
Brighton & Hove City Council,http://statistics.data.gov.uk/id/local-authority/00ML,Adult Social Care,BVASOC,S Svcs - Older People Svcs,PPL,Third Party Payments,F,Other Establishments,FH,01/06/2011,PAY00387347,11530.12,Revenue,Evans Care Ltd
Brighton & Hove City Council,http://statistics.data.gov.uk/id/local-authority/00ML,Adult Social Care,BVASOC,S Svcs - Learning Disability,LDY,Third Party Payments,F,Other Establishments,FH,01/06/2011,PAY00387349,26.20,Revenue,Prime Care Community Services Ltd
Brighton & Hove City Council,http://statistics.data.gov.uk/id/local-authority/00ML,Adult Social Care,BVASOC,S Svcs - Mental Health,MHT,Customer n Client Receipts,M,Fees n Charges,MB,01/06/2011,PAY00387349,-92.00,Revenue,Prime Care Community Services Ltd
Brighton & Hove City Council,http://statistics.data.gov.uk/id/local-authority/00ML,Adult Social Care,BVASOC,S Svcs - Mental Health,MHT,Third Party Payments,F,Other Establishments,FH,01/06/2011,PAY00387349,1270.21,Revenue,Prime Care Community Services Ltd
Brighton & Hove City Council,http://statistics.data.gov.uk/id/local-authority/00ML,Adult Social Care,BVASOC,S Svcs - Older People Svcs,PPL,Customer n Client Receipts,M,Fees n Charges,MB,01/06/2011,PAY00387349,-2977.00,Revenue,Prime Care Community Services Ltd
Brighton & Hove City Council,http://statistics.data.gov.uk/id/local-authority/00ML,Adult Social Care,BVASOC,S Svcs - Older People Svcs,PPL,Third Party Payments,F,Other Establishments,FH,01/06/2011,PAY00387349,14207.16,Revenue,Prime Care Community Services Ltd
Brighton & Hove City Council,http://statistics.data.gov.uk/id/local-authority/00ML,Adult Social Care,BVASOC,S Svcs - Physical Disability,PDY,Customer n Client Receipts,M,Fees n Charges,MB,01/06/2011,PAY00387349,-519.28,Revenue,Prime Care Community Services Ltd
Brighton & Hove City Council,http://statistics.data.gov.uk/id/local-authority/00ML,Adult Social Care,BVASOC,S Svcs - Physical Disability,PDY,Third Party Payments,F,Other Establishments,FH,01/06/2011,PAY00387349,6714.69,Revenue,Prime Care Community Services Ltd
Brighton & Hove City Council,http://statistics.data.gov.uk/id/local-authority/00ML,Housing Services General Fund,BVAHOG,Homelessness,HML,Premises Related,C,Rents Payable,CC,01/06/2011,PAY00387356,3722.63,Revenue,Sanctuary Housing Association
Brighton & Hove City Council,http://statistics.data.gov.uk/id/local-authority/00ML,Housing Services General Fund,BVAHOG,Homelessness,HML,Premises Related,C,Rents Payable,CC,01/06/2011,PAY00387357,89738.14,Revenue,KEM Property Services Ltd
Brighton & Hove City Council,http://statistics.data.gov.uk/id/local-authority/00ML,Central Services To The Public,BVACEN,Elections,ELE,Supplies and Services,E,Equip't Furniture n Materials,EA,01/06/2011,PAY00387358,12.00,Revenue,Corporate Petty Cash
Brighton & Hove City Council,http://statistics.data.gov.uk/id/local-authority/00ML,Central Services To The Public,BVACEN,Local Tax Collection,LTC,Supplies and Services,E,Expenses,EJ,01/06/2011,PAY00387358,62.93,Revenue,Corporate Petty Cash
Brighton & Hove City Council,http://statistics.data.gov.uk/id/local-authority/00ML,Central Services To The Public,BVACEN,Support Services (SSC),PPT,Indirect Employees,B,Misc Employee Costs,BP,01/06/2011,PAY00387358,16.50,Revenue,Corporate Petty Cash
Brighton & Hove City Council,http://statistics.data.gov.uk/id/local-authority/00ML,Central Services To The Public,BVACEN,Support Services (SSC),PPT,Premises Related,C,Repair Maint n Alterations,CA,01/06/2011,PAY00387358,10.00,Revenue,Corporate Petty Cash
Brighton & Hove City Council,http://statistics.data.gov.uk/id/local-authority/00ML,Central Services To The Public,BVACEN,Support Services (SSC),PPT,Supplies and Services,E,Communications n Computing,EH,01/06/2011,PAY00387358,3.49,Revenue,Corporate Petty Cash
Brighton & Hove City Council,http://statistics.data.gov.uk/id/local-authority/00ML,Central Services To The Public,BVACEN,Support Services (SSC),PPT,Supplies and Services,E,Equip't Furniture n Materials,EA,01/06/2011,PAY00387358,27.65,Revenue,Corporate Petty Cash
Brighton & Hove City Council,http://statistics.data.gov.uk/id/local-authority/00ML,Central Services To The Public,BVACEN,Support Services (SSC),PPT,Supplies and Services,E,Print Stat & Gen Office Exps,ED,01/06/2011,PAY00387358,3.97,Revenue,Corporate Petty Cash
Brighton & Hove City Council,http://statistics.data.gov.uk/id/local-authority/00ML,Central Services To The Public,BVACEN,Support Services (SSC),PPT,Transport Related,D,Public Transport,DD,01/06/2011,PAY00387358,52.67,Revenue,Corporate Petty Cash
Brighton & Hove City Council,http://statistics.data.gov.uk/id/local-authority/00ML,Cultural Environment Planning,BVACEP,Consumer Protection,CNP,Supplies and Services,E,Miscellaneous Expenses,EM,01/06/2011,PAY00387358,7.98,Revenue,Corporate Petty Cash
Brighton & Hove City Council,http://statistics.data.gov.uk/id/local-authority/00ML,Cultural Environment Planning,BVACEP,Consumer Protection,CNP,Transport Related,D,Public Transport,DD,01/06/2011,PAY00387358,73.22,Revenue,Corporate Petty Cash
Brighton & Hove City Council,http://statistics.data.gov.uk/id/local-authority/00ML,Cultural Environment Planning,BVACEP,Development Control,DEV,Transport Related,D,Public Transport,DD,01/06/2011,PAY00387358,70.20,Revenue,Corporate Petty Cash
Brighton & Hove City Council,http://statistics.data.gov.uk/id/local-authority/00ML,Cultural Environment Planning,BVACEP,Environmental Health,EVH,Supplies and Services,E,Communications n Computing,EH,01/06/2011,PAY00387358,11.04,Revenue,Corporate Petty Cash
Brighton & Hove City Council,http://statistics.data.gov.uk/id/local-authority/00ML,Cultural Environment Planning,BVACEP,Environmental Health,EVH,Supplies and Services,E,Equip't Furniture n Materials,EA,01/06/2011,PAY00387358,119.29,Revenue,Corporate Petty Cash
Brighton & Hove City Council,http://statistics.data.gov.uk/id/local-authority/00ML,Cultural Environment Planning,BVACEP,Environmental Health,EVH,Supplies and Services,E,Miscellaneous Expenses,EM,01/06/2011,PAY00387358,7.50,Revenue,Corporate Petty Cash
Brighton & Hove City Council,http://statistics.data.gov.uk/id/local-authority/00ML,Cultural Environment Planning,BVACEP,Environmental Health,EVH,Transport Related,D,Other Transport Costs,DG,01/06/2011,PAY00387358,11.60,Revenue,Corporate Petty Cash
Brighton & Hove City Council,http://statistics.data.gov.uk/id/local-authority/00ML,Cultural Environment Planning,BVACEP,Environmental Health,EVH,Transport Related,D,Public Transport,DD,01/06/2011,PAY00387358,113.40,Revenue,Corporate Petty Cash
Brighton & Hove City Council,http://statistics.data.gov.uk/id/local-authority/00ML,Cultural Environment Planning,BVACEP,Management Services (DEC),MGT,Supplies and Services,E,Print Stat & Gen Office Exps,ED,01/06/2011,PAY00387358,16.66,Revenue,Corporate Petty Cash
Brighton & Hove City Council,http://statistics.data.gov.uk/id/local-authority/00ML,Cultural Environment Planning,BVACEP,Management Services (DEC),MGT,Transport Related,D,Public Transport,DD,01/06/2011,PAY00387358,92.50,Revenue,Corporate Petty Cash
Brighton & Hove City Council,http://statistics.data.gov.uk/id/local-authority/00ML,Cultural Environment Planning,BVACEP,Tourism,TRM,Supplies and Services,E,Miscellaneous Expenses,EM,01/06/2011,PAY00387358,32.10,Revenue,Corporate Petty Cash
Brighton & Hove City Council,http://statistics.data.gov.uk/id/local-authority/00ML,Education Services,BVAEDU,Ed - EY - Central,EAE,Transport Related,D,Public Transport,DD,01/06/2011,PAY00387358,21.60,Revenue,Corporate Petty Cash
Brighton & Hove City Council,http://statistics.data.gov.uk/id/local-authority/00ML,Highways and Transportation,BVAHRT,Highways and Roads - Mntnce,HRM,Supplies and Services,E,Equip't Furniture n Materials,EA,01/06/2011,PAY00387358,62.12,Revenue,Corporate Petty Cash
Brighton & Hove City Council,http://statistics.data.gov.uk/id/local-authority/00ML,Highways and Transportation,BVAHRT,Highways and Roads - Mntnce,HRM,Supplies and Services,E,Print Stat & Gen Office Exps,ED,01/06/2011,PAY00387358,92.06,Revenue,Corporate Petty Cash
Brighton & Hove City Council,http://statistics.data.gov.uk/id/local-authority/00ML,Highways and Transportation,BVAHRT,Highways and Roads - Mntnce,HRM,Transport Related,D,Other Transport Costs,DG,01/06/2011,PAY00387358,51.40,Revenue,Corporate Petty Cash
Brighton & Hove City Council,http://statistics.data.gov.uk/id/local-authority/00ML,Highways and Transportation,BVAHRT,Parking Services,PRK,Premises Related,C,Repair Maint n Alterations,CA,01/06/2011,PAY00387358,25.58,Revenue,Corporate Petty Cash
Brighton & Hove City Council,http://statistics.data.gov.uk/id/local-authority/00ML,Highways and Transportation,BVAHRT,Parking Services,PRK,Supplies and Services,E,Clothing Uniforms n Laundry,EC,01/06/2011,PAY00387358,26.25,Revenue,Corporate Petty Cash
Brighton & Hove City Council,http://statistics.data.gov.uk/id/local-authority/00ML,Highways and Transportation,BVAHRT,Parking Services,PRK,Supplies and Services,E,Print Stat & Gen Office Exps,ED,01/06/2011,PAY00387358,22.97,Revenue,Corporate Petty Cash
Brighton & Hove City Council,http://statistics.data.gov.uk/id/local-authority/00ML,Highways and Transportation,BVAHRT,Parking Services,PRK,Supplies and Services,E,Services,EF,01/06/2011,PAY00387358,16.50,Revenue,Corporate Petty Cash
Brighton & Hove City Council,http://statistics.data.gov.uk/id/local-authority/00ML,Highways and Transportation,BVAHRT,Parking Services,PRK,Transport Related,D,Other Transport Costs,DG,01/06/2011,PAY00387358,8.40,Revenue,Corporate Petty Cash
Brighton & Hove City Council,http://statistics.data.gov.uk/id/local-authority/00ML,Highways and Transportation,BVAHRT,Parking Services,PRK,Transport Related,D,Public Transport,DD,01/06/2011,PAY00387358,18.70,Revenue,Corporate Petty Cash
Brighton & Hove City Council,http://statistics.data.gov.uk/id/local-authority/00ML,Highways and Transportation,BVAHRT,Public transport,PTR,Supplies and Services,E,Miscellaneous Expenses,EM,01/06/2011,PAY00387358,12.00,Revenue,Corporate Petty Cash
Brighton & Hove City Council,http://statistics.data.gov.uk/id/local-authority/00ML,Highways and Transportation,BVAHRT,Public transport,PTR,Transport Related,D,Public Transport,DD,01/06/2011,PAY00387358,1.60,Revenue,Corporate Petty Cash
Brighton & Hove City Council,http://statistics.data.gov.uk/id/local-authority/00ML,Highways and Transportation,BVAHRT,Traffic Mgmnt and Road Safety,TMR,Premises Related,C,Repair Maint n Alterations,CA,01/06/2011,PAY00387358,3.10,Revenue,Corporate Petty Cash
Brighton & Hove City Council,http://statistics.data.gov.uk/id/local-authority/00ML,Highways and Transportation,BVAHRT,Traffic Mgmnt and Road Safety,TMR,Supplies and Services,E,Miscellaneous Expenses,EM,01/06/2011,PAY00387358,5.38,Revenue,Corporate Petty Cash
Brighton & Hove City Council,http://statistics.data.gov.uk/id/local-authority/00ML,Highways and Transportation,BVAHRT,Traffic Mgmnt and Road Safety,TMR,Transport Related,D,Public Transport,DD,01/06/2011,PAY00387358,130.90,Revenue,Corporate Petty Cash
Brighton & Hove City Council,http://statistics.data.gov.uk/id/local-authority/00ML,Highways and Transportation,BVAHRT,Transport plan policy strategy,TPP,Direct Employees,A,Salaries,AA,01/06/2011,PAY00387358,3.70,Revenue,Corporate Petty Cash
Brighton & Hove City Council,http://statistics.data.gov.uk/id/local-authority/00ML,Highways and Transportation,BVAHRT,Transport plan policy strategy,TPP,Supplies and Services,E,Miscellaneous Expenses,EM,01/06/2011,PAY00387358,7.44,Revenue,Corporate Petty Cash
Brighton & Hove City Council,http://statistics.data.gov.uk/id/local-authority/00ML,Highways and Transportation,BVAHRT,Transport plan policy strategy,TPP,Transport Related,D,Public Transport,DD,01/06/2011,PAY00387358,33.76,Revenue,Corporate Petty Cash
Brighton & Hove City Council,http://statistics.data.gov.uk/id/local-authority/00ML,Housing Services General Fund,BVAHOG,Homelessness,HML,Premises Related,C,Energy Costs,CB,01/06/2011,PAY00387358,35.00,Revenue,Corporate Petty Cash
Brighton & Hove City Council,http://statistics.data.gov.uk/id/local-authority/00ML,Housing Services General Fund,BVAHOG,Homelessness,HML,Supplies and Services,E,Print Stat & Gen Office Exps,ED,01/06/2011,PAY00387358,55.10,Revenue,Corporate Petty Cash
Brighton & Hove City Council,http://statistics.data.gov.uk/id/local-authority/00ML,Housing Services General Fund,BVAHOG,Homelessness,HML,Transport Related,D,Direct Transport Costs,DA,01/06/2011,PAY00387358,7.90,Revenue,Corporate Petty Cash
Brighton & Hove City Council,http://statistics.data.gov.uk/id/local-authority/00ML,Housing Services General Fund,BVAHOG,Homelessness,HML,Transport Related,D,Other Transport Costs,DG,01/06/2011,PAY00387358,35.05,Revenue,Corporate Petty Cash
Brighton & Hove City Council,http://statistics.data.gov.uk/id/local-authority/00ML,Housing Services General Fund,BVAHOG,Homelessness,HML,Transport Related,D,Public Transport,DD,01/06/2011,PAY00387358,150.73,Revenue,Corporate Petty Cash
Brighton & Hove City Council,http://statistics.data.gov.uk/id/local-authority/00ML,Housing Services General Fund,BVAHOG,Hsing Benefits,HGB,Transport Related,D,Public Transport,DD,01/06/2011,PAY00387358,44.10,Revenue,Corporate Petty Cash
Brighton & Hove City Council,http://statistics.data.gov.uk/id/local-authority/00ML,Housing Services General Fund,BVAHOG,Hsing Strat Advice and RSLs,HGR,Indirect Employees,B,Training,BM,01/06/2011,PAY00387358,10.00,Revenue,Corporate Petty Cash
Brighton & Hove City Council,http://statistics.data.gov.uk/id/local-authority/00ML,Housing Services General Fund,BVAHOG,Hsing Strat Advice and RSLs,HGR,Supplies and Services,E,Equip't Furniture n Materials,EA,01/06/2011,PAY00387358,73.73,Revenue,Corporate Petty Cash
Brighton & Hove City Council,http://statistics.data.gov.uk/id/local-authority/00ML,Housing Services General Fund,BVAHOG,Hsing Strat Advice and RSLs,HGR,Supplies and Services,E,Miscellaneous Expenses,EM,01/06/2011,PAY00387358,23.58,Revenue,Corporate Petty Cash
Brighton & Hove City Council,http://statistics.data.gov.uk/id/local-authority/00ML,Housing Services General Fund,BVAHOG,Hsing Strat Advice and RSLs,HGR,Supplies and Services,E,Print Stat & Gen Office Exps,ED,01/06/2011,PAY00387358,4.66,Revenue,Corporate Petty Cash
Brighton & Hove City Council,http://statistics.data.gov.uk/id/local-authority/00ML,Housing Services General Fund,BVAHOG,Hsing Strat Advice and RSLs,HGR,Supplies and Services,E,Services,EF,01/06/2011,PAY00387358,128.21,Revenue,Corporate Petty Cash
Brighton & Hove City Council,http://statistics.data.gov.uk/id/local-authority/00ML,Housing Services General Fund,BVAHOG,Hsing Strat Advice and RSLs,HGR,Transport Related,D,Other Transport Costs,DG,01/06/2011,PAY00387358,67.90,Revenue,Corporate Petty Cash
Brighton & Hove City Council,http://statistics.data.gov.uk/id/local-authority/00ML,Housing Services General Fund,BVAHOG,Hsing Strat Advice and RSLs,HGR,Transport Related,D,Public Transport,DD,01/06/2011,PAY00387358,84.10,Revenue,Corporate Petty Cash
Brighton & Hove City Council,http://statistics.data.gov.uk/id/local-authority/00ML,Housing Services General Fund,BVAHOG,Private Sector Hsing Renewal,PHR,Indirect Employees,B,Misc Employee Costs,BP,01/06/2011,PAY00387358,49.95,Revenue,Corporate Petty Cash
Brighton & Hove City Council,http://statistics.data.gov.uk/id/local-authority/00ML,Housing Services General Fund,BVAHOG,Private Sector Hsing Renewal,PHR,Supplies and Services,E,Communications n Computing,EH,01/06/2011,PAY00387358,2.30,Revenue,Corporate Petty Cash
Brighton & Hove City Council,http://statistics.data.gov.uk/id/local-authority/00ML,Housing Services General Fund,BVAHOG,Private Sector Hsing Renewal,PHR,Supplies and Services,E,Print Stat & Gen Office Exps,ED,01/06/2011,PAY00387358,2.13,Revenue,Corporate Petty Cash
Brighton & Hove City Council,http://statistics.data.gov.uk/id/local-authority/00ML,Housing Services General Fund,BVAHOG,Private Sector Hsing Renewal,PHR,Transport Related,D,Car Allowances,DE,01/06/2011,PAY00387358,17.00,Revenue,Corporate Petty Cash
Brighton & Hove City Council,http://statistics.data.gov.uk/id/local-authority/00ML,Housing Services General Fund,BVAHOG,Private Sector Hsing Renewal,PHR,Transport Related,D,Public Transport,DD,01/06/2011,PAY00387358,12.70,Revenue,Corporate Petty Cash
Brighton & Hove City Council,http://statistics.data.gov.uk/id/local-authority/00ML,Housing Services General Fund,BVAHOG,Support Services (SSC),PPT,Transport Related,D,Public Transport,DD,01/06/2011,PAY00387358,35.10,Revenue,Corporate Petty Cash
Brighton & Hove City Council,http://statistics.data.gov.uk/id/local-authority/00ML,Housing Services Revnue Acc,BVAHOU,Hsing Management - HRA,HGM,Supplies and Services,E,Equip't Furniture n Materials,EA,01/06/2011,PAY00387358,275.11,Revenue,Corporate Petty Cash
Brighton & Hove City Council,http://statistics.data.gov.uk/id/local-authority/00ML,Housing Services Revnue Acc,BVAHOU,Hsing Management - HRA,HGM,Supplies and Services,E,Grants n Subscriptions,EK,01/06/2011,PAY00387358,17.16,Revenue,Corporate Petty Cash
Brighton & Hove City Council,http://statistics.data.gov.uk/id/local-authority/00ML,Housing Services Revnue Acc,BVAHOU,Hsing Management - HRA,HGM,Supplies and Services,E,Print Stat & Gen Office Exps,ED,01/06/2011,PAY00387358,109.17,Revenue,Corporate Petty Cash
Brighton & Hove City Council,http://statistics.data.gov.uk/id/local-authority/00ML,Housing Services Revnue Acc,BVAHOU,Hsing Management - HRA,HGM,Transport Related,D,Other Transport Costs,DG,01/06/2011,PAY00387358,58.61,Revenue,Corporate Petty Cash
Brighton & Hove City Council,http://statistics.data.gov.uk/id/local-authority/00ML,Housing Services Revnue Acc,BVAHOU,Hsing Management - HRA,HGM,Transport Related,D,Public Transport,DD,01/06/2011,PAY00387358,159.86,Revenue,Corporate Petty Cash
Brighton & Hove City Council,http://statistics.data.gov.uk/id/local-authority/00ML,Adult Social Care,BVASOC,Management Services (DEC),MGT,Indirect Employees,B,Training,BM,01/06/2011,PAY00387359,0.88,Revenue,Carlisle Staffing Plc
Brighton & Hove City Council,http://statistics.data.gov.uk/id/local-authority/00ML,Adult Social Care,BVASOC,S Svcs - Learning Disability,LDY,Direct Employees,A,Salaries,AA,01/06/2011,PAY00387359,1533.15,Revenue,Carlisle Staffing Plc
Brighton & Hove City Council,http://statistics.data.gov.uk/id/local-authority/00ML,Adult Social Care,BVASOC,S Svcs - Mental Health,MHT,Direct Employees,A,Salaries,AA,01/06/2011,PAY00387359,1765.86,Revenue,Carlisle Staffing Plc
Brighton & Hove City Council,http://statistics.data.gov.uk/id/local-authority/00ML,Adult Social Care,BVASOC,S Svcs - Older People Svcs,PPL,Direct Employees,A,Salaries,AA,01/06/2011,PAY00387359,3584.61,Revenue,Carlisle Staffing Plc
Brighton & Hove City Council,http://statistics.data.gov.uk/id/local-authority/00ML,Adult Social Care,BVASOC,Support Services (SSC),PPT,Direct Employees,A,Salaries,AA,01/06/2011,PAY00387359,5.63,Revenue,Carlisle Staffing Plc
Brighton & Hove City Council,http://statistics.data.gov.uk/id/local-authority/00ML,Central Services To The Public,BVACEN,Local Tax Collection,LTC,Direct Employees,A,Salaries,AA,01/06/2011,PAY00387359,5.69,Revenue,Carlisle Staffing Plc
Brighton & Hove City Council,http://statistics.data.gov.uk/id/local-authority/00ML,Central Services To The Public,BVACEN,Reg - Birth Death and Marriage,RBD,Direct Employees,A,Salaries,AA,01/06/2011,PAY00387359,22.51,Revenue,Carlisle Staffing Plc
Brighton & Hove City Council,http://statistics.data.gov.uk/id/local-authority/00ML,Central Services To The Public,BVACEN,Support Services (SSC),PPT,Direct Employees,A,Salaries,AA,01/06/2011,PAY00387359,2773.27,Revenue,Carlisle Staffing Plc
Brighton & Hove City Council,http://statistics.data.gov.uk/id/local-authority/00ML,Children�s Social Care,BVACSC,Child Srvcs - Com & Scl Work,FCW,Direct Employees,A,Salaries,AA,01/06/2011,PAY00387359,11564.03,Revenue,Carlisle Staffing Plc
Brighton & Hove City Council,http://statistics.data.gov.uk/id/local-authority/00ML,Children�s Social Care,BVACSC,Child Srvcs - Fostering,FLF,Direct Employees,A,Salaries,AA,01/06/2011,PAY00387359,77.49,Revenue,Carlisle Staffing Plc
Brighton & Hove City Council,http://statistics.data.gov.uk/id/local-authority/00ML,Children�s Social Care,BVACSC,Child Srvcs - Leaving Care,FAL,Direct Employees,A,Salaries,AA,01/06/2011,PAY00387359,24.27,Revenue,Carlisle Staffing Plc
Brighton & Hove City Council,http://statistics.data.gov.uk/id/local-authority/00ML,Children�s Social Care,BVACSC,Child Srvcs - Other,FAX,Direct Employees,A,Salaries,AA,01/06/2011,PAY00387359,21.51,Revenue,Carlisle Staffing Plc
Brighton & Hove City Council,http://statistics.data.gov.uk/id/local-authority/00ML,Children�s Social Care,BVACSC,Child Srvcs - Other Fam Supp,FFX,Direct Employees,A,Salaries,AA,01/06/2011,PAY00387359,82.68,Revenue,Carlisle Staffing Plc
Brighton & Hove City Council,http://statistics.data.gov.uk/id/local-authority/00ML,Children�s Social Care,BVACSC,Child Srvcs - Other Yth Jstce,FYX,Direct Employees,A,Salaries,AA,01/06/2011,PAY00387359,3.00,Revenue,Carlisle Staffing Plc
Brighton & Hove City Council,http://statistics.data.gov.uk/id/local-authority/00ML,Children�s Social Care,BVACSC,Child Srvcs - Residential Svcs,FLR,Direct Employees,A,Salaries,AA,01/06/2011,PAY00387359,585.55,Revenue,Carlisle Staffing Plc
Brighton & Hove City Council,http://statistics.data.gov.uk/id/local-authority/00ML,Cultural Environment Planning,BVACEP,Court Services,CRT,Direct Employees,A,Salaries,AA,01/06/2011,PAY00387359,171.71,Revenue,Carlisle Staffing Plc
Brighton & Hove City Council,http://statistics.data.gov.uk/id/local-authority/00ML,Cultural Environment Planning,BVACEP,Culture & Heritage,CHG,Direct Employees,A,Salaries,AA,01/06/2011,PAY00387359,6.19,Revenue,Carlisle Staffing Plc
Brighton & Hove City Council,http://statistics.data.gov.uk/id/local-authority/00ML,Cultural Environment Planning,BVACEP,Culture & Heritage,CHG,Direct Employees,A,Wages,AB,01/06/2011,PAY00387359,9.38,Revenue,Carlisle Staffing Plc
Brighton & Hove City Council,http://statistics.data.gov.uk/id/local-authority/00ML,Cultural Environment Planning,BVACEP,Economic Development,ECD,Direct Employees,A,Salaries,AA,01/06/2011,PAY00387359,366.99,Revenue,Carlisle Staffing Plc
Brighton & Hove City Council,http://statistics.data.gov.uk/id/local-authority/00ML,Cultural Environment Planning,BVACEP,Environmental Health,EVH,Direct Employees,A,Salaries,AA,01/06/2011,PAY00387359,326.15,Revenue,Carlisle Staffing Plc
Brighton & Hove City Council,http://statistics.data.gov.uk/id/local-authority/00ML,Cultural Environment Planning,BVACEP,Management Services (DEC),MGT,Direct Employees,A,Salaries,AA,01/06/2011,PAY00387359,1111.34,Revenue,Carlisle Staffing Plc
Brighton & Hove City Council,http://statistics.data.gov.uk/id/local-authority/00ML,Cultural Environment Planning,BVACEP,Open Spaces,PEN,Direct Employees,A,Salaries,AA,01/06/2011,PAY00387359,533.26,Revenue,Carlisle Staffing Plc
Brighton & Hove City Council,http://statistics.data.gov.uk/id/local-authority/00ML,Cultural Environment Planning,BVACEP,Street Cleansing,CLE,Direct Employees,A,Salaries,AA,01/06/2011,PAY00387359,8226.24,Revenue,Carlisle Staffing Plc
Brighton & Hove City Council,http://statistics.data.gov.uk/id/local-authority/00ML,Cultural Environment Planning,BVACEP,Waste Management,WMT,Direct Employees,A,Salaries,AA,01/06/2011,PAY00387359,3430.68,Revenue,Carlisle Staffing Plc
Brighton & Hove City Council,http://statistics.data.gov.uk/id/local-authority/00ML,Education Services,BVAEDU,Ed - Ed Other - LA Attrib Sch,ELA,Direct Employees,A,Salaries,AA,01/06/2011,PAY00387359,5.63,Revenue,Carlisle Staffing Plc
Brighton & Hove City Council,http://statistics.data.gov.uk/id/local-authority/00ML,Education Services,BVAEDU,Ed - EY - Central,EAE,Direct Employees,A,Salaries,AA,01/06/2011,PAY00387359,2874.15,Revenue,Carlisle Staffing Plc
Brighton & Hove City Council,http://statistics.data.gov.uk/id/local-authority/00ML,Education Services,BVAEDU,Ed - Mgmt & Support Services,EMG,Direct Employees,A,Salaries,AA,01/06/2011,PAY00387359,4.13,Revenue,Carlisle Staffing Plc
Brighton & Hove City Council,http://statistics.data.gov.uk/id/local-authority/00ML,Education Services,BVAEDU,Ed - Primary schools,EHH,Direct Employees,A,Salaries,AA,01/06/2011,PAY00387359,63.68,Revenue,Carlisle Staffing Plc
Brighton & Hove City Council,http://statistics.data.gov.uk/id/local-authority/00ML,Education Services,BVAEDU,Ed - Secondary Ed,EJE,Direct Employees,A,Salaries,AA,01/06/2011,PAY00387359,326.42,Revenue,Carlisle Staffing Plc
Brighton & Hove City Council,http://statistics.data.gov.uk/id/local-authority/00ML,Education Services,BVAEDU,Ed - Secondary Schools,EJJ,Direct Employees,A,Salaries,AA,01/06/2011,PAY00387359,1132.92,Revenue,Carlisle Staffing Plc
Brighton & Hove City Council,http://statistics.data.gov.uk/id/local-authority/00ML,Education Services,BVAEDU,Ed - Special Ed,EKE,Direct Employees,A,Salaries,AA,01/06/2011,PAY00387359,3.31,Revenue,Carlisle Staffing Plc
Brighton & Hove City Council,http://statistics.data.gov.uk/id/local-authority/00ML,Highways and Transportation,BVAHRT,Highways and Roads - Mntnce,HRM,Direct Employees,A,Salaries,AA,01/06/2011,PAY00387359,21.25,Revenue,Carlisle Staffing Plc
Brighton & Hove City Council,http://statistics.data.gov.uk/id/local-authority/00ML,Highways and Transportation,BVAHRT,Transport plan policy strategy,TPP,Direct Employees,A,Salaries,AA,01/06/2011,PAY00387359,256.20,Revenue,Carlisle Staffing Plc
Brighton & Hove City Council,http://statistics.data.gov.uk/id/local-authority/00ML,Housing Services General Fund,BVAHOG,Homelessness,HML,Direct Employees,A,Salaries,AA,01/06/2011,PAY00387359,3462.95,Revenue,Carlisle Staffing Plc
Brighton & Hove City Council,http://statistics.data.gov.uk/id/local-authority/00ML,Housing Services General Fund,BVAHOG,Homelessness,HML,Direct Employees,A,Wages,AB,01/06/2011,PAY00387359,445.74,Revenue,Carlisle Staffing Plc
Brighton & Hove City Council,http://statistics.data.gov.uk/id/local-authority/00ML,Housing Services General Fund,BVAHOG,Hsing Benefits,HGB,Direct Employees,A,Salaries,AA,01/06/2011,PAY00387359,262.57,Revenue,Carlisle Staffing Plc
Brighton & Hove City Council,http://statistics.data.gov.uk/id/local-authority/00ML,Housing Services Revnue Acc,BVAHOU,Hsing Management - HRA,HGM,Direct Employees,A,Salaries,AA,01/06/2011,PAY00387359,6712.41,Revenue,Carlisle Staffing Plc
Brighton & Hove City Council,http://statistics.data.gov.uk/id/local-authority/00ML,Non BVACOP,BVANON,Cap - Mgmnt & Support Services,4PT,Plant Machinery n Equipment,PE2,Level not required,NR5025,01/06/2011,PAY00387359,482.69,Capital,Carlisle Staffing Plc
Brighton & Hove City Council,http://statistics.data.gov.uk/id/local-authority/00ML,Housing Services General Fund,BVAHOG,Hsing Strat Advice and RSLs,HGR,Supplies and Services,E,Equip't Furniture n Materials,EA,01/06/2011,PAY00387360,12.49,Revenue,The Imprest Holder
Brighton & Hove City Council,http://statistics.data.gov.uk/id/local-authority/00ML,Housing Services General Fund,BVAHOG,Hsing Strat Advice and RSLs,HGR,Supplies and Services,E,Miscellaneous Expenses,EM,01/06/2011,PAY00387360,19.95,Revenue,The Imprest Holder
Brighton & Hove City Council,http://statistics.data.gov.uk/id/local-authority/00ML,Housing Services General Fund,BVAHOG,Hsing Strat Advice and RSLs,HGR,Transport Related,D,Public Transport,DD,01/06/2011,PAY00387360,55.00,Revenue,The Imprest Holder
Brighton & Hove City Council,http://statistics.data.gov.uk/id/local-authority/00ML,Housing Services Revnue Acc,BVAHOU,Hsing Management - HRA,HGM,Transport Related,D,Other Transport Costs,DG,01/06/2011,PAY00387360,36.31,Revenue,The Imprest Holder
Brighton & Hove City Council,http://statistics.data.gov.uk/id/local-authority/00ML,Housing Services Revnue Acc,BVAHOU,Hsing Management - HRA,HGM,Transport Related,D,Public Transport,DD,01/06/2011,PAY00387360,62.40,Revenue,The Imprest Holder
Brighton & Hove City Council,http://statistics.data.gov.uk/id/local-authority/00ML,Housing Services Revnue Acc,BVAHOU,Hsing Strategy - HRA,HGT,Supplies and Services,E,Miscellaneous Expenses,EM,01/06/2011,PAY00387360,414.91,Revenue,The Imprest Holder
Brighton & Hove City Council,http://statistics.data.gov.uk/id/local-authority/00ML,Housing Services General Fund,BVAHOG,Homelessness,HML,Premises Related,C,Rents Payable,CC,01/06/2011,PAY00387364,565.00,Revenue,Payment to Individual
Brighton & Hove City Council,http://statistics.data.gov.uk/id/local-authority/00ML,Cultural Environment Planning,BVACEP,Economic Development,ECD,Supplies and Services,E,Grants n Subscriptions,EK,01/06/2011,PAY00387365,3800.00,Revenue,Brighton & Hove Black History
Brighton & Hove City Council,http://statistics.data.gov.uk/id/local-authority/00ML,Adult Social Care,BVASOC,S Svcs - Older People Svcs,PPL,Customer n Client Receipts,M,Fees n Charges,MB,01/06/2011,PAY00387366,-1216.40,Revenue,Bramble Care Homes Ltd
Brighton & Hove City Council,http://statistics.data.gov.uk/id/local-authority/00ML,Adult Social Care,BVASOC,S Svcs - Older People Svcs,PPL,Third Party Payments,F,Other Establishments,FH,01/06/2011,PAY00387366,2540.00,Revenue,Bramble Care Homes Ltd
Brighton & Hove City Council,http://statistics.data.gov.uk/id/local-authority/00ML,Education Services,BVAEDU,Ed - Srvcs YP - Youth Srvcs,ENY,Premises Related,C,Rents Payable,CC,01/06/2011,PAY00387367,678.13,Revenue,ScottishPower
Brighton & Hove City Council,http://statistics.data.gov.uk/id/local-authority/00ML,Cultural Environment Planning,BVACEP,Culture & Heritage,CHG,Supplies and Services,E,Print Stat & Gen Office Exps,ED,01/06/2011,PAY00387368,736.56,Revenue,Westcountry Paper
Brighton & Hove City Council,http://statistics.data.gov.uk/id/local-authority/00ML,Adult Social Care,BVASOC,S Svcs - Learning Disability,LDY,Indirect Employees,B,Training,BM,01/06/2011,PAY00387369,85.00,Revenue,a.i.d Training & Operations Ltd
Brighton & Hove City Council,http://statistics.data.gov.uk/id/local-authority/00ML,Adult Social Care,BVASOC,S Svcs - Other Adult Services,ADT,Indirect Employees,B,Training,BM,01/06/2011,PAY00387369,480.00,Revenue,a.i.d Training & Operations Ltd
Brighton & Hove City Council,http://statistics.data.gov.uk/id/local-authority/00ML,Central Services To The Public,BVACEN,Support Services (SSC),PPT,Indirect Employees,B,Training,BM,01/06/2011,PAY00387369,85.00,Revenue,a.i.d Training & Operations Ltd
Brighton & Hove City Council,http://statistics.data.gov.uk/id/local-authority/00ML,Adult Social Care,BVASOC,S Svcs - Older People Svcs,PPL,Customer n Client Receipts,M,Fees n Charges,MB,01/06/2011,PAY00387372,-459.00,Revenue,Rectory House (Sompting) Ltd
Brighton & Hove City Council,http://statistics.data.gov.uk/id/local-authority/00ML,Adult Social Care,BVASOC,S Svcs - Older People Svcs,PPL,Third Party Payments,F,Other Establishments,FH,01/06/2011,PAY00387372,6812.00,Revenue,Rectory House (Sompting) Ltd
Brighton & Hove City Council,http://statistics.data.gov.uk/id/local-authority/00ML,Adult Social Care,BVASOC,S Svcs - Older People Svcs,PPL,Customer n Client Receipts,M,Fees n Charges,MB,01/06/2011,PAY00387374,-19736.88,Revenue,Anchor Trust Homes (Sycamore Court)
Brighton & Hove City Council,http://statistics.data.gov.uk/id/local-authority/00ML,Adult Social Care,BVASOC,S Svcs - Older People Svcs,PPL,Third Party Payments,F,Other Establishments,FH,01/06/2011,PAY00387374,89503.80,Revenue,Anchor Trust Homes (Sycamore Court)
Brighton & Hove City Council,http://statistics.data.gov.uk/id/local-authority/00ML,Adult Social Care,BVASOC,S Svcs - Older People Svcs,PPL,Customer n Client Receipts,M,Fees n Charges,MB,01/06/2011,PAY00387377,-2108.32,Revenue,Payment to Individual
Brighton & Hove City Council,http://statistics.data.gov.uk/id/local-authority/00ML,Adult Social Care,BVASOC,S Svcs - Older People Svcs,PPL,Third Party Payments,F,Other Establishments,FH,01/06/2011,PAY00387377,3540.00,Revenue,Payment to Individual
Brighton & Hove City Council,http://statistics.data.gov.uk/id/local-authority/00ML,Adult Social Care,BVASOC,S Svcs - Learning Disability,LDY,Customer n Client Receipts,M,Fees n Charges,MB,01/06/2011,PAY00387378,-2124.00,Revenue,Payment to Individual
Brighton & Hove City Council,http://statistics.data.gov.uk/id/local-authority/00ML,Adult Social Care,BVASOC,S Svcs - Learning Disability,LDY,Third Party Payments,F,Other Establishments,FH,01/06/2011,PAY00387378,5297.36,Revenue,Payment to Individual
Brighton & Hove City Council,http://statistics.data.gov.uk/id/local-authority/00ML,Adult Social Care,BVASOC,S Svcs - Older People Svcs,PPL,Customer n Client Receipts,M,Fees n Charges,MB,01/06/2011,PAY00387379,-5795.88,Revenue,Macleod Pinsent Care Conifer Limited
Brighton & Hove City Council,http://statistics.data.gov.uk/id/local-authority/00ML,Adult Social Care,BVASOC,S Svcs - Older People Svcs,PPL,Third Party Payments,F,Other Establishments,FH,01/06/2011,PAY00387379,14171.68,Revenue,Macleod Pinsent Care Conifer Limited
Brighton & Hove City Council,http://statistics.data.gov.uk/id/local-authority/00ML,Cultural Environment Planning,BVACEP,Tourism,TRM,Supplies and Services,E,Communications n Computing,EH,01/06/2011,PAY00387381,8789.37,Revenue,Velvet Software Ltd
Brighton & Hove City Council,http://statistics.data.gov.uk/id/local-authority/00ML,Adult Social Care,BVASOC,S Svcs - Learning Disability,LDY,Third Party Payments,F,Other Establishments,FH,01/06/2011,PAY00387382,4180.00,Revenue,Birchgrove Healthcare (Sussex) Ltd
Brighton & Hove City Council,http://statistics.data.gov.uk/id/local-authority/00ML,Adult Social Care,BVASOC,S Svcs - Older People Svcs,PPL,Customer n Client Receipts,M,Fees n Charges,MB,01/06/2011,PAY00387382,-7498.09,Revenue,Birchgrove Healthcare (Sussex) Ltd
Brighton & Hove City Council,http://statistics.data.gov.uk/id/local-authority/00ML,Adult Social Care,BVASOC,S Svcs - Older People Svcs,PPL,Supplies and Services,E,Miscellaneous Expenses,EM,01/06/2011,PAY00387382,66.78,Revenue,Birchgrove Healthcare (Sussex) Ltd
Brighton & Hove City Council,http://statistics.data.gov.uk/id/local-authority/00ML,Adult Social Care,BVASOC,S Svcs - Older People Svcs,PPL,Third Party Payments,F,Other Establishments,FH,01/06/2011,PAY00387382,40760.81,Revenue,Birchgrove Healthcare (Sussex) Ltd
Brighton & Hove City Council,http://statistics.data.gov.uk/id/local-authority/00ML,Cultural Environment Planning,BVACEP,Economic Development,ECD,Supplies and Services,E,Miscellaneous Expenses,EM,01/06/2011,PAY00387383,2450.10,Revenue,The Basement South East Ltd
Brighton & Hove City Council,http://statistics.data.gov.uk/id/local-authority/00ML,Children�s Social Care,BVACSC,Child Srvcs - Other Fam Supp,FFX,Transfer Payments,G,Other Transfer Payments,GD,01/06/2011,PAY00387385,1170.00,Revenue,Seven Ways (Support) Ltd
Brighton & Hove City Council,http://statistics.data.gov.uk/id/local-authority/00ML,Cultural Environment Planning,BVACEP,Open Spaces,PEN,Supplies and Services,E,Equip't Furniture n Materials,EA,01/06/2011,PAY00387386,810.00,Revenue,Hugh Page (Sussex) Ltd
Brighton & Hove City Council,http://statistics.data.gov.uk/id/local-authority/00ML,Central Services To The Public,BVACEN,Support Services (SSC),PPT,Direct Employees,A,Salaries,AA,01/06/2011,PAY00387387,500.00,Revenue,Made In Hove
Brighton & Hove City Council,http://statistics.data.gov.uk/id/local-authority/00ML,Non BVACOP,BVANON,Cap - Other Env Services,4EV,New Construction n Conversion,PB,Level not required,NR5026,01/06/2011,PAY00387388,2723.00,Capital,Tim Jordan Grounds Maintenance Ltd
Brighton & Hove City Council,http://statistics.data.gov.uk/id/local-authority/00ML,Non BVACOP,BVANON,Cap - Housing Services - GF,4HG,Capital Grants,PF,Level not required,NR5012,01/06/2011,PAY00387391,2448.00,Capital,SG Building Services Ltd
Brighton & Hove City Council,http://statistics.data.gov.uk/id/local-authority/00ML,Central Services To The Public,BVACEN,Reg - Birth Death and Marriage,RBD,Supplies and Services,E,Miscellaneous Expenses,EM,01/06/2011,PAY00387392,1052.79,Revenue,Lawton Communications Group Ltd
Brighton & Hove City Council,http://statistics.data.gov.uk/id/local-authority/00ML,Highways and Transportation,BVAHRT,Parking Services,PRK,Premises Related,C,Repair Maint n Alterations,CA,01/06/2011,PAY00387392,1623.94,Revenue,Lawton Communications Group Ltd
Brighton & Hove City Council,http://statistics.data.gov.uk/id/local-authority/00ML,Highways and Transportation,BVAHRT,Traffic Mgmnt and Road Safety,TMR,Supplies and Services,E,Miscellaneous Expenses,EM,01/06/2011,PAY00387392,1278.85,Revenue,Lawton Communications Group Ltd
Brighton & Hove City Council,http://statistics.data.gov.uk/id/local-authority/00ML,Highways and Transportation,BVAHRT,Traffic Mgmnt and Road Safety,TMR,Third Party Payments,F,Private Contractors,FJ,01/06/2011,PAY00387392,783.38,Revenue,Lawton Communications Group Ltd
Brighton & Hove City Council,http://statistics.data.gov.uk/id/local-authority/00ML,Adult Social Care,BVASOC,S Svcs - Learning Disability,LDY,Customer n Client Receipts,M,Fees n Charges,MB,01/06/2011,PAY00387396,-590.00,Revenue,Progress Housing-Bramshaw House
Brighton & Hove City Council,http://statistics.data.gov.uk/id/local-authority/00ML,Adult Social Care,BVASOC,S Svcs - Learning Disability,LDY,Third Party Payments,F,Other Establishments,FH,01/06/2011,PAY00387396,13043.76,Revenue,Progress Housing-Bramshaw House
Brighton & Hove City Council,http://statistics.data.gov.uk/id/local-authority/00ML,Adult Social Care,BVASOC,S Svcs - Learning Disability,LDY,Third Party Payments,F,Other Establishments,FH,01/06/2011,PAY00387397,2400.48,Revenue,Payment to Individual
Brighton & Hove City Council,http://statistics.data.gov.uk/id/local-authority/00ML,Central Services To The Public,BVACEN,Support Services (SSC),PPT,Supplies and Services,E,Services,EF,01/06/2011,PAY00387398,684.00,Revenue,SMS (Southern) Ltd
Brighton & Hove City Council,http://statistics.data.gov.uk/id/local-authority/00ML,Education Services,BVAEDU,Ed - EY - Central,EAE,Supplies and Services,E,Equip't Furniture n Materials,EA,01/06/2011,PAY00387399,49.95,Revenue,Findel Education Ltd
Brighton & Hove City Council,http://statistics.data.gov.uk/id/local-authority/00ML,Education Services,BVAEDU,Ed - Special Ed,EKE,Supplies and Services,E,Equip't Furniture n Materials,EA,01/06/2011,PAY00387399,304.90,Revenue,Findel Education Ltd
Brighton & Hove City Council,http://statistics.data.gov.uk/id/local-authority/00ML,Non BVACOP,BVANON,Cap - Education Services,4ED,Plant Machinery n Equipment,PE2,Level not required,NR5025,01/06/2011,PAY00387399,499.95,Capital,Findel Education Ltd
Brighton & Hove City Council,http://statistics.data.gov.uk/id/local-authority/00ML,Adult Social Care,BVASOC,S Svcs - Older People Svcs,PPL,Customer n Client Receipts,M,Fees n Charges,MB,01/06/2011,PAY00387401,-2245.20,Revenue,Fairlight Manor Ltd
Brighton & Hove City Council,http://statistics.data.gov.uk/id/local-authority/00ML,Adult Social Care,BVASOC,S Svcs - Older People Svcs,PPL,Third Party Payments,F,Other Establishments,FH,01/06/2011,PAY00387401,8984.84,Revenue,Fairlight Manor Ltd
Brighton & Hove City Council,http://statistics.data.gov.uk/id/local-authority/00ML,Adult Social Care,BVASOC,S Svcs - Older People Svcs,PPL,Customer n Client Receipts,M,Fees n Charges,MB,01/06/2011,PAY00387402,-7963.61,Revenue,Glentworth Nursing Home
Brighton & Hove City Council,http://statistics.data.gov.uk/id/local-authority/00ML,Adult Social Care,BVASOC,S Svcs - Older People Svcs,PPL,Third Party Payments,F,Other Establishments,FH,01/06/2011,PAY00387402,28324.00,Revenue,Glentworth Nursing Home
Brighton & Hove City Council,http://statistics.data.gov.uk/id/local-authority/00ML,Adult Social Care,BVASOC,S Svcs - Older People Svcs,PPL,Customer n Client Receipts,M,Fees n Charges,MB,01/06/2011,PAY00387404,-1481.00,Revenue,Ashdown NH - Newcare Homes Ltd
Brighton & Hove City Council,http://statistics.data.gov.uk/id/local-authority/00ML,Adult Social Care,BVASOC,S Svcs - Older People Svcs,PPL,Third Party Payments,F,Other Establishments,FH,01/06/2011,PAY00387404,16824.80,Revenue,Ashdown NH - Newcare Homes Ltd
Brighton & Hove City Council,http://statistics.data.gov.uk/id/local-authority/00ML,Adult Social Care,BVASOC,S Svcs - Physical Disability,PDY,Third Party Payments,F,Other Establishments,FH,01/06/2011,PAY00387404,2577.60,Revenue,Ashdown NH - Newcare Homes Ltd
Brighton & Hove City Council,http://statistics.data.gov.uk/id/local-authority/00ML,Central Services To The Public,BVACEN,Support Services (SSC),PPT,Supplies and Services,E,Communications n Computing,EH,01/06/2011,PAY00387406,1970.10,Revenue,Virgin Media Business
Brighton & Hove City Council,http://statistics.data.gov.uk/id/local-authority/00ML,Cultural Environment Planning,BVACEP,Management Services (DEC),MGT,Supplies and Services,E,Communications n Computing,EH,01/06/2011,PAY00387406,218.49,Revenue,Virgin Media Business
Brighton & Hove City Council,http://statistics.data.gov.uk/id/local-authority/00ML,Cultural Environment Planning,BVACEP,Tourism,TRM,Supplies and Services,E,Communications n Computing,EH,01/06/2011,PAY00387406,11.32,Revenue,Virgin Media Business
Brighton & Hove City Council,http://statistics.data.gov.uk/id/local-authority/00ML,Education Services,BVAEDU,Ed - Ed Other - Standards Fund,ENN,Supplies and Services,E,Communications n Computing,EH,01/06/2011,PAY00387406,215.06,Revenue,Virgin Media Business
Brighton & Hove City Council,http://statistics.data.gov.uk/id/local-authority/00ML,Education Services,BVAEDU,Ed - Srvcs YP - Ad & Cmty Ln,ENA,Third Party Payments,F,Other Establishments,FH,01/06/2011,PAY00387407,5000.00,Revenue,Bridge Community Education Centre
Brighton & Hove City Council,http://statistics.data.gov.uk/id/local-authority/00ML,Central Services To The Public,BVACEN,Elections,ELE,Premises Related,C,Rents Payable,CC,01/06/2011,PAY00387410,4914.00,Revenue,Portakabin Limited
Brighton & Hove City Council,http://statistics.data.gov.uk/id/local-authority/00ML,Cultural Environment Planning,BVACEP,Agricultural and Fisheries,AGF,Third Party Payments,F,Independent Units of Council,FA,01/06/2011,PAY00387411,617.50,Revenue,Smiths Gore
Brighton & Hove City Council,http://statistics.data.gov.uk/id/local-authority/00ML,Non BVACOP,BVANON,Non service costs,NVC,Premises Related,C,Departmental Administration,CHA,01/06/2011,PAY00387411,972.95,Revenue,Smiths Gore
Brighton & Hove City Council,http://statistics.data.gov.uk/id/local-authority/00ML,Adult Social Care,BVASOC,S Svcs - Mental Health,MHT,Third Party Payments,F,Other Establishments,FH,01/06/2011,PAY00387412,2000.00,Revenue,The New Grange Care Home Ltd
Brighton & Hove City Council,http://statistics.data.gov.uk/id/local-authority/00ML,Adult Social Care,BVASOC,S Svcs - Older People Svcs,PPL,Customer n Client Receipts,M,Fees n Charges,MB,01/06/2011,PAY00387412,-459.00,Revenue,The New Grange Care Home Ltd
Brighton & Hove City Council,http://statistics.data.gov.uk/id/local-authority/00ML,Adult Social Care,BVASOC,S Svcs - Older People Svcs,PPL,Third Party Payments,F,Other Establishments,FH,01/06/2011,PAY00387412,1680.00,Revenue,The New Grange Care Home Ltd
Brighton & Hove City Council,http://statistics.data.gov.uk/id/local-authority/00ML,Adult Social Care,BVASOC,S Svcs - Older People Svcs,PPL,Customer n Client Receipts,M,Fees n Charges,MB,01/06/2011,PAY00387414,-9288.12,Revenue,Cavendish Care Ltd
Brighton & Hove City Council,http://statistics.data.gov.uk/id/local-authority/00ML,Adult Social Care,BVASOC,S Svcs - Older People Svcs,PPL,Third Party Payments,F,Other Establishments,FH,01/06/2011,PAY00387414,37684.00,Revenue,Cavendish Care Ltd
Brighton & Hove City Council,http://statistics.data.gov.uk/id/local-authority/00ML,Adult Social Care,BVASOC,S Svcs - Older People Svcs,PPL,Third Party Payments,F,Other Establishments,FH,01/06/2011,PAY00387415,2303.17,Revenue,Agincare UK Ltd
Brighton & Hove City Council,http://statistics.data.gov.uk/id/local-authority/00ML,Housing Services General Fund,BVAHOG,Homelessness,HML,Premises Related,C,Rents Payable,CC,01/06/2011,PAY00387416,24006.82,Revenue,West Pier Services Limited
Brighton & Hove City Council,http://statistics.data.gov.uk/id/local-authority/00ML,Housing Services Revnue Acc,BVAHOU,Hsing Management - HRA,HGM,Premises Related,C,Energy Costs,CB,01/06/2011,PAY00387417,2203.25,Revenue,EDF Energy 1 Ltd
Brighton & Hove City Council,http://statistics.data.gov.uk/id/local-authority/00ML,Adult Social Care,BVASOC,S Svcs - Older People Svcs,PPL,Customer n Client Receipts,M,Fees n Charges,MB,01/06/2011,PAY00387418,-480.28,Revenue,Beachside Rest Home
Brighton & Hove City Council,http://statistics.data.gov.uk/id/local-authority/00ML,Adult Social Care,BVASOC,S Svcs - Older People Svcs,PPL,Third Party Payments,F,Other Establishments,FH,01/06/2011,PAY00387418,4728.00,Revenue,Beachside Rest Home
Brighton & Hove City Council,http://statistics.data.gov.uk/id/local-authority/00ML,Cultural Environment Planning,BVACEP,Culture & Heritage,CHG,Supplies and Services,E,Goods for Resale,EG,01/06/2011,PAY00387421,528.35,Revenue,Temple Island Collection
Brighton & Hove City Council,http://statistics.data.gov.uk/id/local-authority/00ML,Cultural Environment Planning,BVACEP,Tourism,TRM,Supplies and Services,E,Miscellaneous Expenses,EM,01/06/2011,PAY00387423,1872.50,Revenue,Rooster Creative Limited
Brighton & Hove City Council,http://statistics.data.gov.uk/id/local-authority/00ML,Adult Social Care,BVASOC,S Svcs - Learning Disability,LDY,Customer n Client Receipts,M,Fees n Charges,MB,01/06/2011,PAY00387426,-295.00,Revenue,Scope
Brighton & Hove City Council,http://statistics.data.gov.uk/id/local-authority/00ML,Adult Social Care,BVASOC,S Svcs - Learning Disability,LDY,Third Party Payments,F,Other Establishments,FH,01/06/2011,PAY00387426,3697.72,Revenue,Scope
Brighton & Hove City Council,http://statistics.data.gov.uk/id/local-authority/00ML,Adult Social Care,BVASOC,S Svcs - Older People Svcs,PPL,Customer n Client Receipts,M,Fees n Charges,MB,01/06/2011,PAY00387426,-459.00,Revenue,Scope
Brighton & Hove City Council,http://statistics.data.gov.uk/id/local-authority/00ML,Adult Social Care,BVASOC,S Svcs - Older People Svcs,PPL,Third Party Payments,F,Other Establishments,FH,01/06/2011,PAY00387426,3015.64,Revenue,Scope
Brighton & Hove City Council,http://statistics.data.gov.uk/id/local-authority/00ML,Adult Social Care,BVASOC,S Svcs - Physical Disability,PDY,Customer n Client Receipts,M,Fees n Charges,MB,01/06/2011,PAY00387426,-624.00,Revenue,Scope
Brighton & Hove City Council,http://statistics.data.gov.uk/id/local-authority/00ML,Adult Social Care,BVASOC,S Svcs - Physical Disability,PDY,Third Party Payments,F,Other Establishments,FH,01/06/2011,PAY00387426,10047.92,Revenue,Scope
Brighton & Hove City Council,http://statistics.data.gov.uk/id/local-authority/00ML,Cultural Environment Planning,BVACEP,Culture & Heritage,CHG,Supplies and Services,E,Goods for Resale,EG,01/06/2011,PAY00387427,590.00,Revenue,Crisp Litho Ltd
Brighton & Hove City Council,http://statistics.data.gov.uk/id/local-authority/00ML,Adult Social Care,BVASOC,S Svcs - Learning Disability,LDY,Customer n Client Receipts,M,Fees n Charges,MB,01/06/2011,PAY00387431,-2460.04,Revenue,Aitch Care Homes (London) Ltd
Brighton & Hove City Council,http://statistics.data.gov.uk/id/local-authority/00ML,Adult Social Care,BVASOC,S Svcs - Learning Disability,LDY,Third Party Payments,F,Other Establishments,FH,01/06/2011,PAY00387431,45796.00,Revenue,Aitch Care Homes (London) Ltd
Brighton & Hove City Council,http://statistics.data.gov.uk/id/local-authority/00ML,Adult Social Care,BVASOC,S Svcs - Learning Disability,LDY,Premises Related,C,Rents Payable,CC,01/06/2011,PAY00387432,875.00,Revenue,Payment to Individual
Brighton & Hove City Council,http://statistics.data.gov.uk/id/local-authority/00ML,Highways and Transportation,BVAHRT,Parking Services,PRK,Supplies and Services,E,Equip't Furniture n Materials,EA,01/06/2011,PAY00387433,629.50,Revenue,Parkeon Ltd
Brighton & Hove City Council,http://statistics.data.gov.uk/id/local-authority/00ML,Adult Social Care,BVASOC,S Svcs - Older People Svcs,PPL,Customer n Client Receipts,M,Fees n Charges,MB,01/06/2011,PAY00387437,-458.12,Revenue,Chaseborough House
Brighton & Hove City Council,http://statistics.data.gov.uk/id/local-authority/00ML,Adult Social Care,BVASOC,S Svcs - Older People Svcs,PPL,Third Party Payments,F,Other Establishments,FH,01/06/2011,PAY00387437,1716.00,Revenue,Chaseborough House
Brighton & Hove City Council,http://statistics.data.gov.uk/id/local-authority/00ML,Education Services,BVAEDU,Ed - Mgmt & Support Services,EMG,Supplies and Services,E,Miscellaneous Expenses,EM,01/06/2011,PAY00387438,842.55,Revenue,YMCA Fairthorne Group
Brighton & Hove City Council,http://statistics.data.gov.uk/id/local-authority/00ML,Central Services To The Public,BVACEN,Holding Accounts,PPH,Transport Related,D,Direct Transport Costs,DA,01/06/2011,PAY00387439,434.10,Revenue,Brighton Honda
Brighton & Hove City Council,http://statistics.data.gov.uk/id/local-authority/00ML,Cultural Environment Planning,BVACEP,Waste Management,WMT,Third Party Payments,F,Private Contractors,FJ,01/06/2011,PAY00387440,2730.00,Revenue,Spider UK Ltd
Brighton & Hove City Council,http://statistics.data.gov.uk/id/local-authority/00ML,Children�s Social Care,BVACSC,Child Srvcs - Fostering,FLF,Supplies and Services,E,Services,EF,01/06/2011,PAY00387442,590.00,Revenue,Payment to Individual
Brighton & Hove City Council,http://statistics.data.gov.uk/id/local-authority/00ML,Central Services To The Public,BVACEN,Support Services (SSC),PPT,Premises Related,C,Repair Maint n Alterations,CA,01/06/2011,PAY00387443,200.00,Revenue,E N V Surveys Ltd
Brighton & Hove City Council,http://statistics.data.gov.uk/id/local-authority/00ML,Non BVACOP,BVANON,Cap - Housing Services - HRA,4HR,New Construction n Conversion,PB,Level not required,NR5026,01/06/2011,PAY00387443,250.00,Capital,E N V Surveys Ltd
Brighton & Hove City Council,http://statistics.data.gov.uk/id/local-authority/00ML,Housing Services General Fund,BVAHOG,Homelessness,HML,Premises Related,C,Rents Payable,CC,01/06/2011,PAY00387445,685.00,Revenue,Marchmont Estates Ltd
Brighton & Hove City Council,http://statistics.data.gov.uk/id/local-authority/00ML,Housing Services General Fund,BVAHOG,Homelessness,HML,Premises Related,C,Rents Payable,CC,01/06/2011,PAY00387446,725.00,Revenue,Payment to Individual
Brighton & Hove City Council,http://statistics.data.gov.uk/id/local-authority/00ML,Cultural Environment Planning,BVACEP,Culture & Heritage,CHG,Supplies and Services,E,Goods for Resale,EG,01/06/2011,PAY00387447,3420.00,Revenue,Keel Toys Ltd
Brighton & Hove City Council,http://statistics.data.gov.uk/id/local-authority/00ML,Adult Social Care,BVASOC,S Svcs - Older People Svcs,PPL,Customer n Client Receipts,M,Fees n Charges,MB,01/06/2011,PAY00387448,-3749.47,Revenue,Kingsland House Barchester Healthcare
Brighton & Hove City Council,http://statistics.data.gov.uk/id/local-authority/00ML,Adult Social Care,BVASOC,S Svcs - Older People Svcs,PPL,Third Party Payments,F,Other Establishments,FH,01/06/2011,PAY00387448,9775.49,Revenue,Kingsland House Barchester Healthcare
Brighton & Hove City Council,http://statistics.data.gov.uk/id/local-authority/00ML,Cultural Environment Planning,BVACEP,Tourism,TRM,Supplies and Services,E,Communications n Computing,EH,01/06/2011,PAY00387449,118.90,Revenue,Complete Fulfilment Solutions Ltd t/a CFS Swift
Brighton & Hove City Council,http://statistics.data.gov.uk/id/local-authority/00ML,Education Services,BVAEDU,Ed - Ed Other - Strat Mgt,ENM,Supplies and Services,E,Miscellaneous Expenses,EM,01/06/2011,PAY00387449,298.00,Revenue,Complete Fulfilment Solutions Ltd t/a CFS Swift
Brighton & Hove City Council,http://statistics.data.gov.uk/id/local-authority/00ML,Cultural Environment Planning,BVACEP,Open Spaces,PEN,Supplies and Services,E,Equip't Furniture n Materials,EA,01/06/2011,PAY00387453,480.00,Revenue,Brighton Community Compost Centre Ltd
Brighton & Hove City Council,http://statistics.data.gov.uk/id/local-authority/00ML,Cultural Environment Planning,BVACEP,Culture & Heritage,CHG,Supplies and Services,E,Goods for Resale,EG,01/06/2011,PAY00387459,455.00,Revenue,Judges Postcards Limited
Brighton & Hove City Council,http://statistics.data.gov.uk/id/local-authority/00ML,Adult Social Care,BVASOC,S Svcs - Learning Disability,LDY,Third Party Payments,F,Other Establishments,FH,01/06/2011,PAY00387464,12000.00,Revenue,South West Independence Ltd
Brighton & Hove City Council,http://statistics.data.gov.uk/id/local-authority/00ML,Central Services To The Public,BVACEN,Holding Accounts,PPH,Premises Related,C,Repair Maint n Alterations,CA,01/06/2011,PAY00387465,190.00,Revenue,J P Garrett Electrical Ltd
Brighton & Hove City Council,http://statistics.data.gov.uk/id/local-authority/00ML,Central Services To The Public,BVACEN,Support Services (SSC),PPT,Premises Related,C,Repair Maint n Alterations,CA,01/06/2011,PAY00387465,457.73,Revenue,J P Garrett Electrical Ltd
Brighton & Hove City Council,http://statistics.data.gov.uk/id/local-authority/00ML,Cultural Environment Planning,BVACEP,Building Control,BLD,Supplies and Services,E,Services,EF,01/06/2011,PAY00387465,75.00,Revenue,J P Garrett Electrical Ltd
Brighton & Hove City Council,http://statistics.data.gov.uk/id/local-authority/00ML,Cultural Environment Planning,BVACEP,Management Services (DEC),MGT,Premises Related,C,Repair Maint n Alterations,CA,01/06/2011,PAY00387465,1201.76,Revenue,J P Garrett Electrical Ltd
Brighton & Hove City Council,http://statistics.data.gov.uk/id/local-authority/00ML,Adult Social Care,BVASOC,S Svcs - Other Adult Services,ADT,Third Party Payments,F,Other Establishments,FH,01/06/2011,PAY00387466,18319.50,Revenue,The Sussex Beacon Limited
Brighton & Hove City Council,http://statistics.data.gov.uk/id/local-authority/00ML,Cultural Environment Planning,BVACEP,Management Services (DEC),MGT,Premises Related,C,Repair Maint n Alterations,CA,01/06/2011,PAY00387469,230.20,Revenue,AM Security Ltd t/a AM Fire & Security Group
Brighton & Hove City Council,http://statistics.data.gov.uk/id/local-authority/00ML,Non BVACOP,BVANON,Cap - Mgmnt & Support Services,4PT,New Construction n Conversion,PB,Level not required,NR5026,01/06/2011,PAY00387469,475.00,Capital,AM Security Ltd t/a AM Fire & Security Group
Brighton & Hove City Council,http://statistics.data.gov.uk/id/local-authority/00ML,Adult Social Care,BVASOC,S Svcs - Mental Health,MHT,Third Party Payments,F,Other Establishments,FH,01/06/2011,PAY00387470,5933.00,Revenue,The Baron Homes Corporation Ltd
Brighton & Hove City Council,http://statistics.data.gov.uk/id/local-authority/00ML,Housing Services General Fund,BVAHOG,Homelessness,HML,Premises Related,C,Rents Payable,CC,01/06/2011,PAY00387470,198.00,Revenue,The Baron Homes Corporation Ltd
Brighton & Hove City Council,http://statistics.data.gov.uk/id/local-authority/00ML,Adult Social Care,BVASOC,S Svcs - Older People Svcs,PPL,Supplies and Services,E,Catering,EB,01/06/2011,PAY00387474,453.66,Revenue,3663 BFS Group Ltd
Brighton & Hove City Council,http://statistics.data.gov.uk/id/local-authority/00ML,Housing Services General Fund,BVAHOG,Homelessness,HML,Direct Employees,A,Wages,AB,01/06/2011,PAY00387474,30.94,Revenue,3663 BFS Group Ltd
Brighton & Hove City Council,http://statistics.data.gov.uk/id/local-authority/00ML,Housing Services General Fund,BVAHOG,Homelessness,HML,Premises Related,C,Cleaning n Domestic Supps,CH,01/06/2011,PAY00387474,63.48,Revenue,3663 BFS Group Ltd
Brighton & Hove City Council,http://statistics.data.gov.uk/id/local-authority/00ML,Housing Services General Fund,BVAHOG,Homelessness,HML,Supplies and Services,E,Equip't Furniture n Materials,EA,01/06/2011,PAY00387474,151.41,Revenue,3663 BFS Group Ltd
Brighton & Hove City Council,http://statistics.data.gov.uk/id/local-authority/00ML,Adult Social Care,BVASOC,S Svcs - Mental Health,MHT,Customer n Client Receipts,M,Fees n Charges,MB,01/06/2011,PAY00387478,-638.40,Revenue,Brighton Housing Trust
Brighton & Hove City Council,http://statistics.data.gov.uk/id/local-authority/00ML,Adult Social Care,BVASOC,S Svcs - Mental Health,MHT,Third Party Payments,F,Other Establishments,FH,01/06/2011,PAY00387478,13583.00,Revenue,Brighton Housing Trust
Brighton & Hove City Council,http://statistics.data.gov.uk/id/local-authority/00ML,Adult Social Care,BVASOC,S Svcs - Older People Svcs,PPL,Customer n Client Receipts,M,Fees n Charges,MB,01/06/2011,PAY00387478,-459.00,Revenue,Brighton Housing Trust
Brighton & Hove City Council,http://statistics.data.gov.uk/id/local-authority/00ML,Adult Social Care,BVASOC,S Svcs - Older People Svcs,PPL,Third Party Payments,F,Other Establishments,FH,01/06/2011,PAY00387478,1156.00,Revenue,Brighton Housing Trust
Brighton & Hove City Council,http://statistics.data.gov.uk/id/local-authority/00ML,Adult Social Care,BVASOC,Management Services (DEC),MGT,Third Party Payments,F,Other Establishments,FH,01/06/2011,PAY00387480,81751.50,Revenue,Brighton & Hove Federation of Disabled People 
Brighton & Hove City Council,http://statistics.data.gov.uk/id/local-authority/00ML,Cultural Environment Planning,BVACEP,Culture & Heritage,CHG,Supplies and Services,E,Goods for Resale,EG,01/06/2011,PAY00387483,784.69,Revenue,Carole Group Ltd
Brighton & Hove City Council,http://statistics.data.gov.uk/id/local-authority/00ML,Education Services,BVAEDU,Ed - Ed Other - LA Attrib Sch,ELA,Transport Related,D,Other Transport Costs,DG,01/06/2011,PAY00387485,7900.80,Revenue,Community Transport(Bton Hove & Area)Ltd
Brighton & Hove City Council,http://statistics.data.gov.uk/id/local-authority/00ML,Highways and Transportation,BVAHRT,Public transport,PTR,Third Party Payments,F,Private Contractors,FJ,01/06/2011,PAY00387485,3403.35,Revenue,Community Transport(Bton Hove & Area)Ltd
Brighton & Hove City Council,http://statistics.data.gov.uk/id/local-authority/00ML,Highways and Transportation,BVAHRT,Public transport,PTR,Transport Related,D,Public Transport,DD,01/06/2011,PAY00387485,26.25,Revenue,Community Transport(Bton Hove & Area)Ltd
Brighton & Hove City Council,http://statistics.data.gov.uk/id/local-authority/00ML,Housing Services General Fund,BVAHOG,Homelessness,HML,Premises Related,C,Rents Payable,CC,01/06/2011,PAY00387488,900.00,Revenue,Payment to Individual
Brighton & Hove City Council,http://statistics.data.gov.uk/id/local-authority/00ML,Adult Social Care,BVASOC,S Svcs - Learning Disability,LDY,Customer n Client Receipts,M,Fees n Charges,MB,01/06/2011,PAY00387489,-600.00,Revenue,Payment to Individual
Brighton & Hove City Council,http://statistics.data.gov.uk/id/local-authority/00ML,Adult Social Care,BVASOC,S Svcs - Learning Disability,LDY,Third Party Payments,F,Other Establishments,FH,01/06/2011,PAY00387489,2437.96,Revenue,Payment to Individual
Brighton & Hove City Council,http://statistics.data.gov.uk/id/local-authority/00ML,Children�s Social Care,BVACSC,Child Srvcs - Other,FAX,Supplies and Services,E,Print Stat & Gen Office Exps,ED,01/06/2011,PAY00387490,296.30,Revenue,Dell Computer Corporation Ltd
Brighton & Hove City Council,http://statistics.data.gov.uk/id/local-authority/00ML,Children�s Social Care,BVACSC,Child Srvcs - Other,FAX,Third Party Payments,F,Other Establishments,FH,01/06/2011,PAY00387490,268.49,Revenue,Dell Computer Corporation Ltd
Brighton & Hove City Council,http://statistics.data.gov.uk/id/local-authority/00ML,Cultural Environment Planning,BVACEP,Management Services (DEC),MGT,Supplies and Services,E,Communications n Computing,EH,01/06/2011,PAY00387490,108.42,Revenue,Dell Computer Corporation Ltd
Brighton & Hove City Council,http://statistics.data.gov.uk/id/local-authority/00ML,Highways and Transportation,BVAHRT,Parking Services,PRK,Supplies and Services,E,Communications n Computing,EH,01/06/2011,PAY00387490,139.62,Revenue,Dell Computer Corporation Ltd
Brighton & Hove City Council,http://statistics.data.gov.uk/id/local-authority/00ML,Cultural Environment Planning,BVACEP,Library Service,LBR,Transport Related,D,Direct Transport Costs,DA,01/06/2011,PAY00387497,58.33,Revenue,East Sussex County Council
Brighton & Hove City Council,http://statistics.data.gov.uk/id/local-authority/00ML,Cultural Environment Planning,BVACEP,Waste Management,WMT,Supplies and Services,E,Miscellaneous Expenses,EM,01/06/2011,PAY00387497,1178.00,Revenue,East Sussex County Council
Brighton & Hove City Council,http://statistics.data.gov.uk/id/local-authority/00ML,Central Services To The Public,BVACEN,Support Services (SSC),PPT,Premises Related,C,Repair Maint n Alterations,CA,01/06/2011,PAY00387498,6970.00,Revenue,Fowler Building Contractors Ltd
Brighton & Hove City Council,http://statistics.data.gov.uk/id/local-authority/00ML,Non BVACOP,BVANON,Cap - Education Services,4ED,New Construction n Conversion,PB,Level not required,NR5026,01/06/2011,PAY00387498,9714.50,Capital,Fowler Building Contractors Ltd
Brighton & Hove City Council,http://statistics.data.gov.uk/id/local-authority/00ML,Adult Social Care,BVASOC,S Svcs - Learning Disability,LDY,Third Party Payments,F,Other Establishments,FH,01/06/2011,PAY00387499,1555.20,Revenue,Payment to Individual
Brighton & Hove City Council,http://statistics.data.gov.uk/id/local-authority/00ML,Adult Social Care,BVASOC,S Svcs - Learning Disability,LDY,Customer n Client Receipts,M,Fees n Charges,MB,01/06/2011,PAY00387500,-180.00,Revenue,Payment to Individual
Brighton & Hove City Council,http://statistics.data.gov.uk/id/local-authority/00ML,Adult Social Care,BVASOC,S Svcs - Learning Disability,LDY,Third Party Payments,F,Other Establishments,FH,01/06/2011,PAY00387500,1556.00,Revenue,Payment to Individual
Brighton & Hove City Council,http://statistics.data.gov.uk/id/local-authority/00ML,Education Services,BVAEDU,Ed - Ed Other - Other,ENF,Premises Related,C,Repair Maint n Alterations,CA,01/06/2011,PAY00387504,4391.77,Revenue,H A Pocock Ltd
Brighton & Hove City Council,http://statistics.data.gov.uk/id/local-authority/00ML,Non BVACOP,BVANON,Non service costs,NVC,Third Party Payments,F,Other Agencies,FL,01/06/2011,PAY00387505,660.80,Revenue,Hanover Crescent Enclosure Committee
Brighton & Hove City Council,http://statistics.data.gov.uk/id/local-authority/00ML,Highways and Transportation,BVAHRT,Parking Services,PRK,Premises Related,C,Repair Maint n Alterations,CA,01/06/2011,PAY00387506,3758.45,Revenue,Hi Way Services Ltd
Brighton & Hove City Council,http://statistics.data.gov.uk/id/local-authority/00ML,Non BVACOP,BVANON,Cap - Housing Services - GF,4HG,Capital Grants,PF,Level not required,NR5012,01/06/2011,PAY00387510,3995.00,Capital,Payment to Individual
Brighton & Hove City Council,http://statistics.data.gov.uk/id/local-authority/00ML,Non BVACOP,BVANON,Non service costs,NVC,Third Party Payments,F,Other Agencies,FL,01/06/2011,PAY00387517,1510.00,Revenue,Marine Square Enclosure Committee
Brighton & Hove City Council,http://statistics.data.gov.uk/id/local-authority/00ML,Cultural Environment Planning,BVACEP,Culture & Heritage,CHG,Supplies and Services,E,Communications n Computing,EH,01/06/2011,PAY00387519,40.00,Revenue,McLaggan Smith Mugs Ltd
Brighton & Hove City Council,http://statistics.data.gov.uk/id/local-authority/00ML,Cultural Environment Planning,BVACEP,Culture & Heritage,CHG,Supplies and Services,E,Goods for Resale,EG,01/06/2011,PAY00387519,825.60,Revenue,McLaggan Smith Mugs Ltd
Brighton & Hove City Council,http://statistics.data.gov.uk/id/local-authority/00ML,Cultural Environment Planning,BVACEP,Culture & Heritage,CHG,Indirect Employees,B,Training,BM,01/06/2011,PAY00387522,2625.00,Revenue,The Museums Association
Brighton & Hove City Council,http://statistics.data.gov.uk/id/local-authority/00ML,Cultural Environment Planning,BVACEP,Management Services (DEC),MGT,Supplies and Services,E,Equip't Furniture n Materials,EA,01/06/2011,PAY00387523,1397.50,Revenue,Teksweep Ltd t/a Munitech 
Brighton & Hove City Council,http://statistics.data.gov.uk/id/local-authority/00ML,Central Services To The Public,BVACEN,Support Services (SSC),PPT,Supplies and Services,E,Communications n Computing,EH,01/06/2011,PAY00387525,3267.38,Revenue,Newsquest (Sussex) Ltd
Brighton & Hove City Council,http://statistics.data.gov.uk/id/local-authority/00ML,Education Services,BVAEDU,Ed - Srvcs YP - Ad & Cmty Ln,ENA,Supplies and Services,E,Miscellaneous Expenses,EM,01/06/2011,PAY00387525,260.00,Revenue,Newsquest (Sussex) Ltd
Brighton & Hove City Council,http://statistics.data.gov.uk/id/local-authority/00ML,Adult Social Care,BVASOC,Hsing Welfare,HGW,Supplies and Services,E,Print Stat & Gen Office Exps,ED,01/06/2011,PAY00387527,73.22,Revenue,Office Depot UK Limited
Brighton & Hove City Council,http://statistics.data.gov.uk/id/local-authority/00ML,Adult Social Care,BVASOC,Management Services (DEC),MGT,Supplies and Services,E,Print Stat & Gen Office Exps,ED,01/06/2011,PAY00387527,45.31,Revenue,Office Depot UK Limited
Brighton & Hove City Council,http://statistics.data.gov.uk/id/local-authority/00ML,Adult Social Care,BVASOC,S Svcs - Learning Disability,LDY,Supplies and Services,E,Catering,EB,01/06/2011,PAY00387527,6.28,Revenue,Office Depot UK Limited
Brighton & Hove City Council,http://statistics.data.gov.uk/id/local-authority/00ML,Adult Social Care,BVASOC,S Svcs - Learning Disability,LDY,Supplies and Services,E,Equip't Furniture n Materials,EA,01/06/2011,PAY00387527,135.98,Revenue,Office Depot UK Limited
Brighton & Hove City Council,http://statistics.data.gov.uk/id/local-authority/00ML,Adult Social Care,BVASOC,S Svcs - Learning Disability,LDY,Supplies and Services,E,Miscellaneous Expenses,EM,01/06/2011,PAY00387527,244.66,Revenue,Office Depot UK Limited
Brighton & Hove City Council,http://statistics.data.gov.uk/id/local-authority/00ML,Adult Social Care,BVASOC,S Svcs - Learning Disability,LDY,Supplies and Services,E,Print Stat & Gen Office Exps,ED,01/06/2011,PAY00387527,724.89,Revenue,Office Depot UK Limited
Brighton & Hove City Council,http://statistics.data.gov.uk/id/local-authority/00ML,Adult Social Care,BVASOC,S Svcs - Older People Svcs,PPL,Supplies and Services,E,Equip't Furniture n Materials,EA,01/06/2011,PAY00387527,205.08,Revenue,Office Depot UK Limited
Brighton & Hove City Council,http://statistics.data.gov.uk/id/local-authority/00ML,Adult Social Care,BVASOC,S Svcs - Older People Svcs,PPL,Supplies and Services,E,Print Stat & Gen Office Exps,ED,01/06/2011,PAY00387527,1365.24,Revenue,Office Depot UK Limited
Brighton & Hove City Council,http://statistics.data.gov.uk/id/local-authority/00ML,Adult Social Care,BVASOC,S Svcs - Other Adult Services,ADT,Supplies and Services,E,Print Stat & Gen Office Exps,ED,01/06/2011,PAY00387527,58.12,Revenue,Office Depot UK Limited
Brighton & Hove City Council,http://statistics.data.gov.uk/id/local-authority/00ML,Adult Social Care,BVASOC,S Svcs - Supported Employment,EMP,Supplies and Services,E,Miscellaneous Expenses,EM,01/06/2011,PAY00387527,11.97,Revenue,Office Depot UK Limited
Brighton & Hove City Council,http://statistics.data.gov.uk/id/local-authority/00ML,Adult Social Care,BVASOC,S Svcs - Supported Employment,EMP,Supplies and Services,E,Print Stat & Gen Office Exps,ED,01/06/2011,PAY00387527,9.84,Revenue,Office Depot UK Limited
Brighton & Hove City Council,http://statistics.data.gov.uk/id/local-authority/00ML,Adult Social Care,BVASOC,Support Services (SSC),PPT,Supplies and Services,E,Print Stat & Gen Office Exps,ED,01/06/2011,PAY00387527,213.10,Revenue,Office Depot UK Limited
Brighton & Hove City Council,http://statistics.data.gov.uk/id/local-authority/00ML,Central Services To The Public,BVACEN,Ed - EY - Central,EAE,Supplies and Services,E,Equip't Furniture n Materials,EA,01/06/2011,PAY00387527,0.36,Revenue,Office Depot UK Limited
Brighton & Hove City Council,http://statistics.data.gov.uk/id/local-authority/00ML,Central Services To The Public,BVACEN,Ed - EY - Central,EAE,Supplies and Services,E,Print Stat & Gen Office Exps,ED,01/06/2011,PAY00387527,46.88,Revenue,Office Depot UK Limited
Brighton & Hove City Council,http://statistics.data.gov.uk/id/local-authority/00ML,Central Services To The Public,BVACEN,Elections,ELE,Supplies and Services,E,Communications n Computing,EH,01/06/2011,PAY00387527,92.00,Revenue,Office Depot UK Limited
Brighton & Hove City Council,http://statistics.data.gov.uk/id/local-authority/00ML,Central Services To The Public,BVACEN,Elections,ELE,Supplies and Services,E,Print Stat & Gen Office Exps,ED,01/06/2011,PAY00387527,503.52,Revenue,Office Depot UK Limited
Brighton & Hove City Council,http://statistics.data.gov.uk/id/local-authority/00ML,Central Services To The Public,BVACEN,Holding Accounts,PPH,Premises Related,C,Repair Maint n Alterations,CA,01/06/2011,PAY00387527,75.46,Revenue,Office Depot UK Limited
Brighton & Hove City Council,http://statistics.data.gov.uk/id/local-authority/00ML,Central Services To The Public,BVACEN,Holding Accounts,PPH,Supplies and Services,E,Print Stat & Gen Office Exps,ED,01/06/2011,PAY00387527,65.76,Revenue,Office Depot UK Limited
Brighton & Hove City Council,http://statistics.data.gov.uk/id/local-authority/00ML,Central Services To The Public,BVACEN,Local Land Charges,LLC,Supplies and Services,E,Print Stat & Gen Office Exps,ED,01/06/2011,PAY00387527,16.20,Revenue,Office Depot UK Limited
Brighton & Hove City Council,http://statistics.data.gov.uk/id/local-authority/00ML,Central Services To The Public,BVACEN,Local Tax Collection,LTC,Supplies and Services,E,Print Stat & Gen Office Exps,ED,01/06/2011,PAY00387527,199.66,Revenue,Office Depot UK Limited
Brighton & Hove City Council,http://statistics.data.gov.uk/id/local-authority/00ML,Central Services To The Public,BVACEN,Management Services (DEC),MGT,Supplies and Services,E,Equip't Furniture n Materials,EA,01/06/2011,PAY00387527,80.89,Revenue,Office Depot UK Limited
Brighton & Hove City Council,http://statistics.data.gov.uk/id/local-authority/00ML,Central Services To The Public,BVACEN,Management Services (DEC),MGT,Supplies and Services,E,Print Stat & Gen Office Exps,ED,01/06/2011,PAY00387527,797.91,Revenue,Office Depot UK Limited
Brighton & Hove City Council,http://statistics.data.gov.uk/id/local-authority/00ML,Central Services To The Public,BVACEN,Reg - Birth Death and Marriage,RBD,Supplies and Services,E,Print Stat & Gen Office Exps,ED,01/06/2011,PAY00387527,411.87,Revenue,Office Depot UK Limited
Brighton & Hove City Council,http://statistics.data.gov.uk/id/local-authority/00ML,Central Services To The Public,BVACEN,Support Services (SSC),PPT,Supplies and Services,E,Catering,EB,01/06/2011,PAY00387527,35.32,Revenue,Office Depot UK Limited
Brighton & Hove City Council,http://statistics.data.gov.uk/id/local-authority/00ML,Central Services To The Public,BVACEN,Support Services (SSC),PPT,Supplies and Services,E,Equip't Furniture n Materials,EA,01/06/2011,PAY00387527,61.35,Revenue,Office Depot UK Limited
Brighton & Hove City Council,http://statistics.data.gov.uk/id/local-authority/00ML,Central Services To The Public,BVACEN,Support Services (SSC),PPT,Supplies and Services,E,Miscellaneous Expenses,EM,01/06/2011,PAY00387527,14.31,Revenue,Office Depot UK Limited
Brighton & Hove City Council,http://statistics.data.gov.uk/id/local-authority/00ML,Central Services To The Public,BVACEN,Support Services (SSC),PPT,Supplies and Services,E,Print Stat & Gen Office Exps,ED,01/06/2011,PAY00387527,1772.82,Revenue,Office Depot UK Limited
Brighton & Hove City Council,http://statistics.data.gov.uk/id/local-authority/00ML,Children�s Social Care,BVACSC,Child Srvcs - Adoption,FAA,Supplies and Services,E,Print Stat & Gen Office Exps,ED,01/06/2011,PAY00387527,205.58,Revenue,Office Depot UK Limited
Brighton & Hove City Council,http://statistics.data.gov.uk/id/local-authority/00ML,Children�s Social Care,BVACSC,Child Srvcs - Asylum Seekers,FAY,Supplies and Services,E,Communications n Computing,EH,01/06/2011,PAY00387527,82.89,Revenue,Office Depot UK Limited
Brighton & Hove City Council,http://statistics.data.gov.uk/id/local-authority/00ML,Children�s Social Care,BVACSC,Child Srvcs - Com & Scl Work,FCW,Supplies and Services,E,Communications n Computing,EH,01/06/2011,PAY00387527,46.00,Revenue,Office Depot UK Limited
Brighton & Hove City Council,http://statistics.data.gov.uk/id/local-authority/00ML,Children�s Social Care,BVACSC,Child Srvcs - Com & Scl Work,FCW,Supplies and Services,E,Equip't Furniture n Materials,EA,01/06/2011,PAY00387527,205.54,Revenue,Office Depot UK Limited
Brighton & Hove City Council,http://statistics.data.gov.uk/id/local-authority/00ML,Children�s Social Care,BVACSC,Child Srvcs - Com & Scl Work,FCW,Supplies and Services,E,Print Stat & Gen Office Exps,ED,01/06/2011,PAY00387527,2016.54,Revenue,Office Depot UK Limited
Brighton & Hove City Council,http://statistics.data.gov.uk/id/local-authority/00ML,Children�s Social Care,BVACSC,Child Srvcs - Family Centres,FFF,Supplies and Services,E,Print Stat & Gen Office Exps,ED,01/06/2011,PAY00387527,71.81,Revenue,Office Depot UK Limited
Brighton & Hove City Council,http://statistics.data.gov.uk/id/local-authority/00ML,Children�s Social Care,BVACSC,Child Srvcs - Fostering,FLF,Supplies and Services,E,Communications n Computing,EH,01/06/2011,PAY00387527,7.55,Revenue,Office Depot UK Limited
Brighton & Hove City Council,http://statistics.data.gov.uk/id/local-authority/00ML,Children�s Social Care,BVACSC,Child Srvcs - Fostering,FLF,Supplies and Services,E,Equip't Furniture n Materials,EA,01/06/2011,PAY00387527,39.82,Revenue,Office Depot UK Limited
Brighton & Hove City Council,http://statistics.data.gov.uk/id/local-authority/00ML,Children�s Social Care,BVACSC,Child Srvcs - Fostering,FLF,Supplies and Services,E,Print Stat & Gen Office Exps,ED,01/06/2011,PAY00387527,438.61,Revenue,Office Depot UK Limited
Brighton & Hove City Council,http://statistics.data.gov.uk/id/local-authority/00ML,Children�s Social Care,BVACSC,Child Srvcs - Leaving Care,FAL,Supplies and Services,E,Print Stat & Gen Office Exps,ED,01/06/2011,PAY00387527,201.13,Revenue,Office Depot UK Limited
Brighton & Hove City Council,http://statistics.data.gov.uk/id/local-authority/00ML,Children�s Social Care,BVACSC,Child Srvcs - Other,FAX,Supplies and Services,E,Print Stat & Gen Office Exps,ED,01/06/2011,PAY00387527,146.55,Revenue,Office Depot UK Limited
Brighton & Hove City Council,http://statistics.data.gov.uk/id/local-authority/00ML,Children�s Social Care,BVACSC,Child Srvcs - Residential Svcs,FLR,Supplies and Services,E,Equip't Furniture n Materials,EA,01/06/2011,PAY00387527,62.64,Revenue,Office Depot UK Limited
Brighton & Hove City Council,http://statistics.data.gov.uk/id/local-authority/00ML,Children�s Social Care,BVACSC,Child Srvcs - Residential Svcs,FLR,Supplies and Services,E,Print Stat & Gen Office Exps,ED,01/06/2011,PAY00387527,29.19,Revenue,Office Depot UK Limited
Brighton & Hove City Council,http://statistics.data.gov.uk/id/local-authority/00ML,Children�s Social Care,BVACSC,Ed - Ed Other - Strat Mgt,ENM,Supplies and Services,E,Print Stat & Gen Office Exps,ED,01/06/2011,PAY00387527,204.43,Revenue,Office Depot UK Limited
Brighton & Hove City Council,http://statistics.data.gov.uk/id/local-authority/00ML,Children�s Social Care,BVACSC,Management Services (DEC),MGT,Supplies and Services,E,Print Stat & Gen Office Exps,ED,01/06/2011,PAY00387527,24.30,Revenue,Office Depot UK Limited
Brighton & Hove City Council,http://statistics.data.gov.uk/id/local-authority/00ML,Cultural Environment Planning,BVACEP,Building Control,BLD,Supplies and Services,E,Print Stat & Gen Office Exps,ED,01/06/2011,PAY00387527,145.28,Revenue,Office Depot UK Limited
Brighton & Hove City Council,http://statistics.data.gov.uk/id/local-authority/00ML,Cultural Environment Planning,BVACEP,Cem Crem and Mortuary Services,CCM,Supplies and Services,E,Equip't Furniture n Materials,EA,01/06/2011,PAY00387527,121.43,Revenue,Office Depot UK Limited
Brighton & Hove City Council,http://statistics.data.gov.uk/id/local-authority/00ML,Cultural Environment Planning,BVACEP,Cem Crem and Mortuary Services,CCM,Supplies and Services,E,Print Stat & Gen Office Exps,ED,01/06/2011,PAY00387527,238.93,Revenue,Office Depot UK Limited
Brighton & Hove City Council,http://statistics.data.gov.uk/id/local-authority/00ML,Cultural Environment Planning,BVACEP,Community Development,CDV,Supplies and Services,E,Print Stat & Gen Office Exps,ED,01/06/2011,PAY00387527,16.92,Revenue,Office Depot UK Limited
Brighton & Hove City Council,http://statistics.data.gov.uk/id/local-authority/00ML,Cultural Environment Planning,BVACEP,Community Safety,CMY,Supplies and Services,E,Grants n Subscriptions,EK,01/06/2011,PAY00387527,161.98,Revenue,Office Depot UK Limited
Brighton & Hove City Council,http://statistics.data.gov.uk/id/local-authority/00ML,Cultural Environment Planning,BVACEP,Community Safety,CMY,Supplies and Services,E,Print Stat & Gen Office Exps,ED,01/06/2011,PAY00387527,146.28,Revenue,Office Depot UK Limited
Brighton & Hove City Council,http://statistics.data.gov.uk/id/local-authority/00ML,Cultural Environment Planning,BVACEP,Consumer Protection,CNP,Supplies and Services,E,Equip't Furniture n Materials,EA,01/06/2011,PAY00387527,283.50,Revenue,Office Depot UK Limited
Brighton & Hove City Council,http://statistics.data.gov.uk/id/local-authority/00ML,Cultural Environment Planning,BVACEP,Consumer Protection,CNP,Supplies and Services,E,Print Stat & Gen Office Exps,ED,01/06/2011,PAY00387527,16.44,Revenue,Office Depot UK Limited
Brighton & Hove City Council,http://statistics.data.gov.uk/id/local-authority/00ML,Cultural Environment Planning,BVACEP,Court Services,CRT,Supplies and Services,E,Print Stat & Gen Office Exps,ED,01/06/2011,PAY00387527,158.89,Revenue,Office Depot UK Limited
Brighton & Hove City Council,http://statistics.data.gov.uk/id/local-authority/00ML,Cultural Environment Planning,BVACEP,Culture & Heritage,CHG,Supplies and Services,E,Equip't Furniture n Materials,EA,01/06/2011,PAY00387527,96.96,Revenue,Office Depot UK Limited
Brighton & Hove City Council,http://statistics.data.gov.uk/id/local-authority/00ML,Cultural Environment Planning,BVACEP,Culture & Heritage,CHG,Supplies and Services,E,Goods for Resale,EG,01/06/2011,PAY00387527,53.87,Revenue,Office Depot UK Limited
Brighton & Hove City Council,http://statistics.data.gov.uk/id/local-authority/00ML,Cultural Environment Planning,BVACEP,Culture & Heritage,CHG,Supplies and Services,E,Print Stat & Gen Office Exps,ED,01/06/2011,PAY00387527,105.66,Revenue,Office Depot UK Limited
Brighton & Hove City Council,http://statistics.data.gov.uk/id/local-authority/00ML,Cultural Environment Planning,BVACEP,Development Control,DEV,Supplies and Services,E,Print Stat & Gen Office Exps,ED,01/06/2011,PAY00387527,219.29,Revenue,Office Depot UK Limited
Brighton & Hove City Council,http://statistics.data.gov.uk/id/local-authority/00ML,Cultural Environment Planning,BVACEP,Economic Development,ECD,Supplies and Services,E,Print Stat & Gen Office Exps,ED,01/06/2011,PAY00387527,142.56,Revenue,Office Depot UK Limited
Brighton & Hove City Council,http://statistics.data.gov.uk/id/local-authority/00ML,Cultural Environment Planning,BVACEP,Environmental Health,EVH,Supplies and Services,E,Equip't Furniture n Materials,EA,01/06/2011,PAY00387527,105.57,Revenue,Office Depot UK Limited
Brighton & Hove City Council,http://statistics.data.gov.uk/id/local-authority/00ML,Cultural Environment Planning,BVACEP,Environmental Health,EVH,Supplies and Services,E,Print Stat & Gen Office Exps,ED,01/06/2011,PAY00387527,264.82,Revenue,Office Depot UK Limited
Brighton & Hove City Council,http://statistics.data.gov.uk/id/local-authority/00ML,Cultural Environment Planning,BVACEP,Library Service,LBR,Premises Related,C,Cleaning n Domestic Supps,CH,01/06/2011,PAY00387527,168.65,Revenue,Office Depot UK Limited
Brighton & Hove City Council,http://statistics.data.gov.uk/id/local-authority/00ML,Cultural Environment Planning,BVACEP,Library Service,LBR,Supplies and Services,E,Catering,EB,01/06/2011,PAY00387527,126.36,Revenue,Office Depot UK Limited
Brighton & Hove City Council,http://statistics.data.gov.uk/id/local-authority/00ML,Cultural Environment Planning,BVACEP,Library Service,LBR,Supplies and Services,E,Communications n Computing,EH,01/06/2011,PAY00387527,36.00,Revenue,Office Depot UK Limited
Brighton & Hove City Council,http://statistics.data.gov.uk/id/local-authority/00ML,Cultural Environment Planning,BVACEP,Library Service,LBR,Supplies and Services,E,Equip't Furniture n Materials,EA,01/06/2011,PAY00387527,13.05,Revenue,Office Depot UK Limited
Brighton & Hove City Council,http://statistics.data.gov.uk/id/local-authority/00ML,Cultural Environment Planning,BVACEP,Library Service,LBR,Supplies and Services,E,Print Stat & Gen Office Exps,ED,01/06/2011,PAY00387527,2247.60,Revenue,Office Depot UK Limited
Brighton & Hove City Council,http://statistics.data.gov.uk/id/local-authority/00ML,Cultural Environment Planning,BVACEP,Management Services (DEC),MGT,Indirect Employees,B,Training,BM,01/06/2011,PAY00387527,74.40,Revenue,Office Depot UK Limited
Brighton & Hove City Council,http://statistics.data.gov.uk/id/local-authority/00ML,Cultural Environment Planning,BVACEP,Management Services (DEC),MGT,Premises Related,C,Repair Maint n Alterations,CA,01/06/2011,PAY00387527,36.93,Revenue,Office Depot UK Limited
Brighton & Hove City Council,http://statistics.data.gov.uk/id/local-authority/00ML,Cultural Environment Planning,BVACEP,Management Services (DEC),MGT,Supplies and Services,E,Communications n Computing,EH,01/06/2011,PAY00387527,89.36,Revenue,Office Depot UK Limited
Brighton & Hove City Council,http://statistics.data.gov.uk/id/local-authority/00ML,Cultural Environment Planning,BVACEP,Management Services (DEC),MGT,Supplies and Services,E,Equip't Furniture n Materials,EA,01/06/2011,PAY00387527,97.86,Revenue,Office Depot UK Limited
Brighton & Hove City Council,http://statistics.data.gov.uk/id/local-authority/00ML,Cultural Environment Planning,BVACEP,Management Services (DEC),MGT,Supplies and Services,E,Print Stat & Gen Office Exps,ED,01/06/2011,PAY00387527,1011.69,Revenue,Office Depot UK Limited
Brighton & Hove City Council,http://statistics.data.gov.uk/id/local-authority/00ML,Cultural Environment Planning,BVACEP,Open Spaces,PEN,Supplies and Services,E,Equip't Furniture n Materials,EA,01/06/2011,PAY00387527,5.78,Revenue,Office Depot UK Limited
Brighton & Hove City Council,http://statistics.data.gov.uk/id/local-authority/00ML,Cultural Environment Planning,BVACEP,Planning policy,PLP,Supplies and Services,E,Equip't Furniture n Materials,EA,01/06/2011,PAY00387527,12.60,Revenue,Office Depot UK Limited
Brighton & Hove City Council,http://statistics.data.gov.uk/id/local-authority/00ML,Cultural Environment Planning,BVACEP,Recreation and sport,REC,Supplies and Services,E,Print Stat & Gen Office Exps,ED,01/06/2011,PAY00387527,169.79,Revenue,Office Depot UK Limited
Brighton & Hove City Council,http://statistics.data.gov.uk/id/local-authority/00ML,Education Services,BVAEDU,Ed - Ed Other - Other,ENF,Supplies and Services,E,Communications n Computing,EH,01/06/2011,PAY00387527,24.34,Revenue,Office Depot UK Limited
Brighton & Hove City Council,http://statistics.data.gov.uk/id/local-authority/00ML,Education Services,BVAEDU,Ed - Ed Other - Other,ENF,Supplies and Services,E,Equip't Furniture n Materials,EA,01/06/2011,PAY00387527,4.83,Revenue,Office Depot UK Limited
Brighton & Hove City Council,http://statistics.data.gov.uk/id/local-authority/00ML,Education Services,BVAEDU,Ed - Ed Other - Other,ENF,Supplies and Services,E,Print Stat & Gen Office Exps,ED,01/06/2011,PAY00387527,248.53,Revenue,Office Depot UK Limited
Brighton & Hove City Council,http://statistics.data.gov.uk/id/local-authority/00ML,Education Services,BVAEDU,Ed - Ed Other - Standards Fund,ENN,Supplies and Services,E,Print Stat & Gen Office Exps,ED,01/06/2011,PAY00387527,8.73,Revenue,Office Depot UK Limited
Brighton & Hove City Council,http://statistics.data.gov.uk/id/local-authority/00ML,Education Services,BVAEDU,Ed - Ed Other - Strat Mgt,ENM,Supplies and Services,E,Print Stat & Gen Office Exps,ED,01/06/2011,PAY00387527,198.38,Revenue,Office Depot UK Limited
Brighton & Hove City Council,http://statistics.data.gov.uk/id/local-authority/00ML,Education Services,BVAEDU,Ed - EY - Central,EAE,Supplies and Services,E,Catering,EB,01/06/2011,PAY00387527,32.58,Revenue,Office Depot UK Limited
Brighton & Hove City Council,http://statistics.data.gov.uk/id/local-authority/00ML,Education Services,BVAEDU,Ed - EY - Central,EAE,Supplies and Services,E,Equip't Furniture n Materials,EA,01/06/2011,PAY00387527,20.67,Revenue,Office Depot UK Limited
Brighton & Hove City Council,http://statistics.data.gov.uk/id/local-authority/00ML,Education Services,BVAEDU,Ed - EY - Central,EAE,Supplies and Services,E,Print Stat & Gen Office Exps,ED,01/06/2011,PAY00387527,2115.66,Revenue,Office Depot UK Limited
Brighton & Hove City Council,http://statistics.data.gov.uk/id/local-authority/00ML,Education Services,BVAEDU,Ed - Mgmt & Support Services,EMG,Supplies and Services,E,Catering,EB,01/06/2011,PAY00387527,4.78,Revenue,Office Depot UK Limited
Brighton & Hove City Council,http://statistics.data.gov.uk/id/local-authority/00ML,Education Services,BVAEDU,Ed - Mgmt & Support Services,EMG,Supplies and Services,E,Equip't Furniture n Materials,EA,01/06/2011,PAY00387527,36.26,Revenue,Office Depot UK Limited
Brighton & Hove City Council,http://statistics.data.gov.uk/id/local-authority/00ML,Education Services,BVAEDU,Ed - Mgmt & Support Services,EMG,Supplies and Services,E,Print Stat & Gen Office Exps,ED,01/06/2011,PAY00387527,558.23,Revenue,Office Depot UK Limited
Brighton & Hove City Council,http://statistics.data.gov.uk/id/local-authority/00ML,Education Services,BVAEDU,Ed - Secondary Ed,EJE,Supplies and Services,E,Print Stat & Gen Office Exps,ED,01/06/2011,PAY00387527,133.71,Revenue,Office Depot UK Limited
Brighton & Hove City Council,http://statistics.data.gov.uk/id/local-authority/00ML,Education Services,BVAEDU,Ed - Special Ed,EKE,Premises Related,C,Cleaning n Domestic Supps,CH,01/06/2011,PAY00387527,288.06,Revenue,Office Depot UK Limited
Brighton & Hove City Council,http://statistics.data.gov.uk/id/local-authority/00ML,Education Services,BVAEDU,Ed - Special Ed,EKE,Supplies and Services,E,Equip't Furniture n Materials,EA,01/06/2011,PAY00387527,29.03,Revenue,Office Depot UK Limited
Brighton & Hove City Council,http://statistics.data.gov.uk/id/local-authority/00ML,Education Services,BVAEDU,Ed - Special Ed,EKE,Supplies and Services,E,Print Stat & Gen Office Exps,ED,01/06/2011,PAY00387527,136.08,Revenue,Office Depot UK Limited
Brighton & Hove City Council,http://statistics.data.gov.uk/id/local-authority/00ML,Education Services,BVAEDU,Ed - Srvcs YP - Ad & Cmty Ln,ENA,Supplies and Services,E,Print Stat & Gen Office Exps,ED,01/06/2011,PAY00387527,210.50,Revenue,Office Depot UK Limited
Brighton & Hove City Council,http://statistics.data.gov.uk/id/local-authority/00ML,Education Services,BVAEDU,Ed - Srvcs YP - Youth Srvcs,ENY,Premises Related,C,Cleaning n Domestic Supps,CH,01/06/2011,PAY00387527,2.23,Revenue,Office Depot UK Limited
Brighton & Hove City Council,http://statistics.data.gov.uk/id/local-authority/00ML,Education Services,BVAEDU,Ed - Srvcs YP - Youth Srvcs,ENY,Supplies and Services,E,Catering,EB,01/06/2011,PAY00387527,43.91,Revenue,Office Depot UK Limited
Brighton & Hove City Council,http://statistics.data.gov.uk/id/local-authority/00ML,Education Services,BVAEDU,Ed - Srvcs YP - Youth Srvcs,ENY,Supplies and Services,E,Equip't Furniture n Materials,EA,01/06/2011,PAY00387527,25.34,Revenue,Office Depot UK Limited
Brighton & Hove City Council,http://statistics.data.gov.uk/id/local-authority/00ML,Education Services,BVAEDU,Ed - Srvcs YP - Youth Srvcs,ENY,Supplies and Services,E,Miscellaneous Expenses,EM,01/06/2011,PAY00387527,59.84,Revenue,Office Depot UK Limited
Brighton & Hove City Council,http://statistics.data.gov.uk/id/local-authority/00ML,Education Services,BVAEDU,Ed - Srvcs YP - Youth Srvcs,ENY,Supplies and Services,E,Print Stat & Gen Office Exps,ED,01/06/2011,PAY00387527,716.14,Revenue,Office Depot UK Limited
Brighton & Hove City Council,http://statistics.data.gov.uk/id/local-authority/00ML,Highways and Transportation,BVAHRT,Highways and Roads - Mntnce,HRM,Supplies and Services,E,Print Stat & Gen Office Exps,ED,01/06/2011,PAY00387527,365.14,Revenue,Office Depot UK Limited
Brighton & Hove City Council,http://statistics.data.gov.uk/id/local-authority/00ML,Highways and Transportation,BVAHRT,Management Services (DEC),MGT,Supplies and Services,E,Equip't Furniture n Materials,EA,01/06/2011,PAY00387527,8.28,Revenue,Office Depot UK Limited
Brighton & Hove City Council,http://statistics.data.gov.uk/id/local-authority/00ML,Highways and Transportation,BVAHRT,Management Services (DEC),MGT,Supplies and Services,E,Print Stat & Gen Office Exps,ED,01/06/2011,PAY00387527,16.56,Revenue,Office Depot UK Limited
Brighton & Hove City Council,http://statistics.data.gov.uk/id/local-authority/00ML,Highways and Transportation,BVAHRT,Parking Services,PRK,Supplies and Services,E,Print Stat & Gen Office Exps,ED,01/06/2011,PAY00387527,1348.32,Revenue,Office Depot UK Limited
Brighton & Hove City Council,http://statistics.data.gov.uk/id/local-authority/00ML,Highways and Transportation,BVAHRT,Traffic Mgmnt and Road Safety,TMR,Supplies and Services,E,Equip't Furniture n Materials,EA,01/06/2011,PAY00387527,7.98,Revenue,Office Depot UK Limited
Brighton & Hove City Council,http://statistics.data.gov.uk/id/local-authority/00ML,Highways and Transportation,BVAHRT,Traffic Mgmnt and Road Safety,TMR,Supplies and Services,E,Print Stat & Gen Office Exps,ED,01/06/2011,PAY00387527,98.17,Revenue,Office Depot UK Limited
Brighton & Hove City Council,http://statistics.data.gov.uk/id/local-authority/00ML,Highways and Transportation,BVAHRT,Transport plan policy strategy,TPP,Supplies and Services,E,Print Stat & Gen Office Exps,ED,01/06/2011,PAY00387527,212.98,Revenue,Office Depot UK Limited
Brighton & Hove City Council,http://statistics.data.gov.uk/id/local-authority/00ML,Housing Services General Fund,BVAHOG,Homelessness,HML,Direct Employees,A,Wages,AB,01/06/2011,PAY00387527,75.80,Revenue,Office Depot UK Limited
Brighton & Hove City Council,http://statistics.data.gov.uk/id/local-authority/00ML,Housing Services General Fund,BVAHOG,Homelessness,HML,Supplies and Services,E,Print Stat & Gen Office Exps,ED,01/06/2011,PAY00387527,426.19,Revenue,Office Depot UK Limited
Brighton & Hove City Council,http://statistics.data.gov.uk/id/local-authority/00ML,Housing Services General Fund,BVAHOG,Hsing Benefits,HGB,Supplies and Services,E,Equip't Furniture n Materials,EA,01/06/2011,PAY00387527,158.43,Revenue,Office Depot UK Limited
Brighton & Hove City Council,http://statistics.data.gov.uk/id/local-authority/00ML,Housing Services General Fund,BVAHOG,Hsing Benefits,HGB,Supplies and Services,E,Print Stat & Gen Office Exps,ED,01/06/2011,PAY00387527,208.29,Revenue,Office Depot UK Limited
Brighton & Hove City Council,http://statistics.data.gov.uk/id/local-authority/00ML,Housing Services General Fund,BVAHOG,Hsing Strat Advice and RSLs,HGR,Supplies and Services,E,Print Stat & Gen Office Exps,ED,01/06/2011,PAY00387527,261.45,Revenue,Office Depot UK Limited
Brighton & Hove City Council,http://statistics.data.gov.uk/id/local-authority/00ML,Housing Services General Fund,BVAHOG,Hsing Welfare,HGW,Supplies and Services,E,Equip't Furniture n Materials,EA,01/06/2011,PAY00387527,18.76,Revenue,Office Depot UK Limited
Brighton & Hove City Council,http://statistics.data.gov.uk/id/local-authority/00ML,Housing Services General Fund,BVAHOG,Hsing Welfare,HGW,Supplies and Services,E,Print Stat & Gen Office Exps,ED,01/06/2011,PAY00387527,39.81,Revenue,Office Depot UK Limited
Brighton & Hove City Council,http://statistics.data.gov.uk/id/local-authority/00ML,Housing Services General Fund,BVAHOG,Private Sector Hsing Renewal,PHR,Supplies and Services,E,Equip't Furniture n Materials,EA,01/06/2011,PAY00387527,55.06,Revenue,Office Depot UK Limited
Brighton & Hove City Council,http://statistics.data.gov.uk/id/local-authority/00ML,Housing Services General Fund,BVAHOG,Private Sector Hsing Renewal,PHR,Supplies and Services,E,Print Stat & Gen Office Exps,ED,01/06/2011,PAY00387527,178.07,Revenue,Office Depot UK Limited
Brighton & Hove City Council,http://statistics.data.gov.uk/id/local-authority/00ML,Housing Services General Fund,BVAHOG,Support Services (SSC),PPT,Supplies and Services,E,Print Stat & Gen Office Exps,ED,01/06/2011,PAY00387527,16.20,Revenue,Office Depot UK Limited
Brighton & Hove City Council,http://statistics.data.gov.uk/id/local-authority/00ML,Housing Services Revnue Acc,BVAHOU,Hsing Management - HRA,HGM,Supplies and Services,E,Equip't Furniture n Materials,EA,01/06/2011,PAY00387527,1359.71,Revenue,Office Depot UK Limited
Brighton & Hove City Council,http://statistics.data.gov.uk/id/local-authority/00ML,Housing Services Revnue Acc,BVAHOU,Hsing Management - HRA,HGM,Supplies and Services,E,Miscellaneous Expenses,EM,01/06/2011,PAY00387527,3.38,Revenue,Office Depot UK Limited
Brighton & Hove City Council,http://statistics.data.gov.uk/id/local-authority/00ML,Housing Services Revnue Acc,BVAHOU,Hsing Management - HRA,HGM,Supplies and Services,E,Print Stat & Gen Office Exps,ED,01/06/2011,PAY00387527,2352.06,Revenue,Office Depot UK Limited
Brighton & Hove City Council,http://statistics.data.gov.uk/id/local-authority/00ML,Non BVACOP,BVANON,Trusts,TRT,Supplies and Services,E,Miscellaneous Expenses,EM,01/06/2011,PAY00387527,12.60,Revenue,Office Depot UK Limited
Brighton & Hove City Council,http://statistics.data.gov.uk/id/local-authority/00ML,Central Services To The Public,BVACEN,Support Services (SSC),PPT,Supplies and Services,E,Miscellaneous Expenses,EM,01/06/2011,PAY00387529,442.00,Revenue,St John Ambulance
Brighton & Hove City Council,http://statistics.data.gov.uk/id/local-authority/00ML,Adult Social Care,BVASOC,S Svcs - Learning Disability,LDY,Supplies and Services,E,Print Stat & Gen Office Exps,ED,01/06/2011,PAY00387532,34.46,Revenue,Posturite (UK) Ltd
Brighton & Hove City Council,http://statistics.data.gov.uk/id/local-authority/00ML,Central Services To The Public,BVACEN,Local Tax Collection,LTC,Supplies and Services,E,Communications n Computing,EH,01/06/2011,PAY00387532,7.50,Revenue,Posturite (UK) Ltd
Brighton & Hove City Council,http://statistics.data.gov.uk/id/local-authority/00ML,Central Services To The Public,BVACEN,Local Tax Collection,LTC,Supplies and Services,E,Equip't Furniture n Materials,EA,01/06/2011,PAY00387532,65.02,Revenue,Posturite (UK) Ltd
Brighton & Hove City Council,http://statistics.data.gov.uk/id/local-authority/00ML,Children�s Social Care,BVACSC,Child Srvcs - Family Centres,FFF,Supplies and Services,E,Equip't Furniture n Materials,EA,01/06/2011,PAY00387532,633.45,Revenue,Posturite (UK) Ltd
Brighton & Hove City Council,http://statistics.data.gov.uk/id/local-authority/00ML,Non BVACOP,BVANON,Non service costs,NVC,Third Party Payments,F,Other Agencies,FL,01/06/2011,PAY00387536,550.00,Revenue,Royal Crescent Enclosure Committee
Brighton & Hove City Council,http://statistics.data.gov.uk/id/local-authority/00ML,Highways and Transportation,BVAHRT,Parking Services,PRK,Premises Related,C,Repair Maint n Alterations,CA,01/06/2011,PAY00387541,245.00,Revenue,Thomas Door & Window Controls Ltd
Brighton & Hove City Council,http://statistics.data.gov.uk/id/local-authority/00ML,Non BVACOP,BVANON,Cap - Sport & Recreation,4RC,New Construction n Conversion,PB,Level not required,NR5026,01/06/2011,PAY00387541,885.00,Capital,Thomas Door & Window Controls Ltd
Brighton & Hove City Council,http://statistics.data.gov.uk/id/local-authority/00ML,Cultural Environment Planning,BVACEP,Environmental Health,EVH,Supplies and Services,E,Services,EF,01/06/2011,PAY00387542,5376.80,Revenue,Sthn Taxis (Btn) Ltd t/a B & H City Cabs
Brighton & Hove City Council,http://statistics.data.gov.uk/id/local-authority/00ML,Education Services,BVAEDU,Ed - Ed Other - LA Attrib Sch,ELA,Transport Related,D,Other Transport Costs,DG,01/06/2011,PAY00387542,16227.76,Revenue,Sthn Taxis (Btn) Ltd t/a B & H City Cabs
Brighton & Hove City Council,http://statistics.data.gov.uk/id/local-authority/00ML,Housing Services General Fund,BVAHOG,Homelessness,HML,Transport Related,D,Public Transport,DD,01/06/2011,PAY00387542,48.30,Revenue,Sthn Taxis (Btn) Ltd t/a B & H City Cabs
Brighton & Hove City Council,http://statistics.data.gov.uk/id/local-authority/00ML,Cultural Environment Planning,BVACEP,Management Services (DEC),MGT,Supplies and Services,E,Equip't Furniture n Materials,EA,01/06/2011,PAY00387545,1030.23,Revenue,Southern Counties Janitorial Supplies Ld
Brighton & Hove City Council,http://statistics.data.gov.uk/id/local-authority/00ML,Education Services,BVAEDU,Ed - Srvcs YP - Ad & Cmty Ln,ENA,Premises Related,C,Cleaning n Domestic Supps,CH,01/06/2011,PAY00387545,33.62,Revenue,Southern Counties Janitorial Supplies Ld
Brighton & Hove City Council,http://statistics.data.gov.uk/id/local-authority/00ML,Cultural Environment Planning,BVACEP,Culture & Heritage,CHG,Supplies and Services,E,Miscellaneous Expenses,EM,01/06/2011,PAY00387548,1295.00,Revenue,Technical Engineering Ltd
Brighton & Hove City Council,http://statistics.data.gov.uk/id/local-authority/00ML,Education Services,BVAEDU,Ed - Ed Other - LA Attrib Sch,ELA,Third Party Payments,F,Other Establishments,FH,01/06/2011,PAY00387553,3718.75,Revenue,University of Brighton Trading Co Ltd
Brighton & Hove City Council,http://statistics.data.gov.uk/id/local-authority/00ML,Central Services To The Public,BVACEN,Support Services (SSC),PPT,Premises Related,C,Cleaning n Domestic Supps,CH,01/06/2011,PAY00387555,542.30,Revenue,WF Electrical plc
Brighton & Hove City Council,http://statistics.data.gov.uk/id/local-authority/00ML,Cultural Environment Planning,BVACEP,Culture & Heritage,CHG,Premises Related,C,Repair Maint n Alterations,CA,01/06/2011,PAY00387555,79.80,Revenue,WF Electrical plc
Brighton & Hove City Council,http://statistics.data.gov.uk/id/local-authority/00ML,Adult Social Care,BVASOC,S Svcs - Learning Disability,LDY,Customer n Client Receipts,M,Fees n Charges,MB,01/06/2011,PAY00387557,-1836.00,Revenue,Acorn (Watford) Ltd
Brighton & Hove City Council,http://statistics.data.gov.uk/id/local-authority/00ML,Adult Social Care,BVASOC,S Svcs - Learning Disability,LDY,Third Party Payments,F,Other Establishments,FH,01/06/2011,PAY00387557,14738.52,Revenue,Acorn (Watford) Ltd
Brighton & Hove City Council,http://statistics.data.gov.uk/id/local-authority/00ML,Adult Social Care,BVASOC,S Svcs - Older People Svcs,PPL,Customer n Client Receipts,M,Fees n Charges,MB,01/06/2011,PAY00387558,-8521.88,Revenue,Zemouli & Clarke T/A Arlington House
Brighton & Hove City Council,http://statistics.data.gov.uk/id/local-authority/00ML,Adult Social Care,BVASOC,S Svcs - Older People Svcs,PPL,Supplies and Services,E,Miscellaneous Expenses,EM,01/06/2011,PAY00387558,250.00,Revenue,Zemouli & Clarke T/A Arlington House
Brighton & Hove City Council,http://statistics.data.gov.uk/id/local-authority/00ML,Adult Social Care,BVASOC,S Svcs - Older People Svcs,PPL,Third Party Payments,F,Other Establishments,FH,01/06/2011,PAY00387558,25338.29,Revenue,Zemouli & Clarke T/A Arlington House
Brighton & Hove City Council,http://statistics.data.gov.uk/id/local-authority/00ML,Adult Social Care,BVASOC,S Svcs - Older People Svcs,PPL,Customer n Client Receipts,M,Fees n Charges,MB,01/06/2011,PAY00387559,-5624.93,Revenue,Whytecliffe Ltd T/A Arundel Park Lodge
Brighton & Hove City Council,http://statistics.data.gov.uk/id/local-authority/00ML,Adult Social Care,BVASOC,S Svcs - Older People Svcs,PPL,Third Party Payments,F,Other Establishments,FH,01/06/2011,PAY00387559,27645.70,Revenue,Whytecliffe Ltd T/A Arundel Park Lodge
Brighton & Hove City Council,http://statistics.data.gov.uk/id/local-authority/00ML,Adult Social Care,BVASOC,S Svcs - Older People Svcs,PPL,Customer n Client Receipts,M,Fees n Charges,MB,01/06/2011,PAY00387563,-10045.56,Revenue,Grosvenor Lodge
Brighton & Hove City Council,http://statistics.data.gov.uk/id/local-authority/00ML,Adult Social Care,BVASOC,S Svcs - Older People Svcs,PPL,Third Party Payments,F,Other Establishments,FH,01/06/2011,PAY00387563,41837.14,Revenue,Grosvenor Lodge
Brighton & Hove City Council,http://statistics.data.gov.uk/id/local-authority/00ML,Adult Social Care,BVASOC,S Svcs - Older People Svcs,PPL,Customer n Client Receipts,M,Fees n Charges,MB,01/06/2011,PAY00387564,-1111.60,Revenue,Bramber Nursing Home Ltd
Brighton & Hove City Council,http://statistics.data.gov.uk/id/local-authority/00ML,Adult Social Care,BVASOC,S Svcs - Older People Svcs,PPL,Third Party Payments,F,Other Establishments,FH,01/06/2011,PAY00387564,7143.60,Revenue,Bramber Nursing Home Ltd
Brighton & Hove City Council,http://statistics.data.gov.uk/id/local-authority/00ML,Adult Social Care,BVASOC,S Svcs - Older People Svcs,PPL,Customer n Client Receipts,M,Fees n Charges,MB,01/06/2011,PAY00387565,-4176.90,Revenue,Caburn House
Brighton & Hove City Council,http://statistics.data.gov.uk/id/local-authority/00ML,Adult Social Care,BVASOC,S Svcs - Older People Svcs,PPL,Supplies and Services,E,Miscellaneous Expenses,EM,01/06/2011,PAY00387565,105.00,Revenue,Caburn House
Brighton & Hove City Council,http://statistics.data.gov.uk/id/local-authority/00ML,Adult Social Care,BVASOC,S Svcs - Older People Svcs,PPL,Third Party Payments,F,Other Establishments,FH,01/06/2011,PAY00387565,14264.29,Revenue,Caburn House
Brighton & Hove City Council,http://statistics.data.gov.uk/id/local-authority/00ML,Adult Social Care,BVASOC,S Svcs - Older People Svcs,PPL,Customer n Client Receipts,M,Fees n Charges,MB,01/06/2011,PAY00387566,-157.00,Revenue,A TAD Ltd t/a Carewatch (Brighton & Hove)
Brighton & Hove City Council,http://statistics.data.gov.uk/id/local-authority/00ML,Adult Social Care,BVASOC,S Svcs - Older People Svcs,PPL,Third Party Payments,F,Other Establishments,FH,01/06/2011,PAY00387566,2869.05,Revenue,A TAD Ltd t/a Carewatch (Brighton & Hove)
Brighton & Hove City Council,http://statistics.data.gov.uk/id/local-authority/00ML,Adult Social Care,BVASOC,S Svcs - Physical Disability,PDY,Customer n Client Receipts,M,Fees n Charges,MB,01/06/2011,PAY00387566,-528.00,Revenue,A TAD Ltd t/a Carewatch (Brighton & Hove)
Brighton & Hove City Council,http://statistics.data.gov.uk/id/local-authority/00ML,Adult Social Care,BVASOC,S Svcs - Physical Disability,PDY,Third Party Payments,F,Other Establishments,FH,01/06/2011,PAY00387566,984.00,Revenue,A TAD Ltd t/a Carewatch (Brighton & Hove)
Brighton & Hove City Council,http://statistics.data.gov.uk/id/local-authority/00ML,Adult Social Care,BVASOC,S Svcs - Older People Svcs,PPL,Customer n Client Receipts,M,Fees n Charges,MB,01/06/2011,PAY00387568,-4650.60,Revenue,Churchley Rest Home Ltd
Brighton & Hove City Council,http://statistics.data.gov.uk/id/local-authority/00ML,Adult Social Care,BVASOC,S Svcs - Older People Svcs,PPL,Third Party Payments,F,Other Establishments,FH,01/06/2011,PAY00387568,15552.00,Revenue,Churchley Rest Home Ltd
Brighton & Hove City Council,http://statistics.data.gov.uk/id/local-authority/00ML,Adult Social Care,BVASOC,S Svcs - Older People Svcs,PPL,Customer n Client Receipts,M,Fees n Charges,MB,01/06/2011,PAY00387569,-670.28,Revenue,Cliff Court Care Home
Brighton & Hove City Council,http://statistics.data.gov.uk/id/local-authority/00ML,Adult Social Care,BVASOC,S Svcs - Older People Svcs,PPL,Third Party Payments,F,Other Establishments,FH,01/06/2011,PAY00387569,1763.16,Revenue,Cliff Court Care Home
Brighton & Hove City Council,http://statistics.data.gov.uk/id/local-authority/00ML,Adult Social Care,BVASOC,S Svcs - Older People Svcs,PPL,Customer n Client Receipts,M,Fees n Charges,MB,01/06/2011,PAY00387570,-1028.00,Revenue,Enara Community Care
Brighton & Hove City Council,http://statistics.data.gov.uk/id/local-authority/00ML,Adult Social Care,BVASOC,S Svcs - Older People Svcs,PPL,Third Party Payments,F,Other Establishments,FH,01/06/2011,PAY00387570,5813.69,Revenue,Enara Community Care
Brighton & Hove City Council,http://statistics.data.gov.uk/id/local-authority/00ML,Adult Social Care,BVASOC,S Svcs - Older People Svcs,PPL,Customer n Client Receipts,M,Fees n Charges,MB,01/06/2011,PAY00387572,-2126.39,Revenue,Crescent House
Brighton & Hove City Council,http://statistics.data.gov.uk/id/local-authority/00ML,Adult Social Care,BVASOC,S Svcs - Older People Svcs,PPL,Third Party Payments,F,Other Establishments,FH,01/06/2011,PAY00387572,13646.86,Revenue,Crescent House
Brighton & Hove City Council,http://statistics.data.gov.uk/id/local-authority/00ML,Adult Social Care,BVASOC,S Svcs - Learning Disability,LDY,Customer n Client Receipts,M,Fees n Charges,MB,01/06/2011,PAY00387574,-295.00,Revenue,Davigdor Lodge Rest Home
Brighton & Hove City Council,http://statistics.data.gov.uk/id/local-authority/00ML,Adult Social Care,BVASOC,S Svcs - Learning Disability,LDY,Third Party Payments,F,Other Establishments,FH,01/06/2011,PAY00387574,3981.12,Revenue,Davigdor Lodge Rest Home
Brighton & Hove City Council,http://statistics.data.gov.uk/id/local-authority/00ML,Adult Social Care,BVASOC,S Svcs - Mental Health,MHT,Customer n Client Receipts,M,Fees n Charges,MB,01/06/2011,PAY00387574,-3887.52,Revenue,Davigdor Lodge Rest Home
Brighton & Hove City Council,http://statistics.data.gov.uk/id/local-authority/00ML,Adult Social Care,BVASOC,S Svcs - Mental Health,MHT,Third Party Payments,F,Other Establishments,FH,01/06/2011,PAY00387574,29427.00,Revenue,Davigdor Lodge Rest Home
Brighton & Hove City Council,http://statistics.data.gov.uk/id/local-authority/00ML,Adult Social Care,BVASOC,S Svcs - Older People Svcs,PPL,Customer n Client Receipts,M,Fees n Charges,MB,01/06/2011,PAY00387574,-463.84,Revenue,Davigdor Lodge Rest Home
Brighton & Hove City Council,http://statistics.data.gov.uk/id/local-authority/00ML,Adult Social Care,BVASOC,S Svcs - Older People Svcs,PPL,Third Party Payments,F,Other Establishments,FH,01/06/2011,PAY00387574,3890.92,Revenue,Davigdor Lodge Rest Home
Brighton & Hove City Council,http://statistics.data.gov.uk/id/local-authority/00ML,Adult Social Care,BVASOC,S Svcs - Older People Svcs,PPL,Customer n Client Receipts,M,Fees n Charges,MB,01/06/2011,PAY00387575,-13702.89,Revenue,Fairdene Lodge Care Home Ltd
Brighton & Hove City Council,http://statistics.data.gov.uk/id/local-authority/00ML,Adult Social Care,BVASOC,S Svcs - Older People Svcs,PPL,Third Party Payments,F,Other Establishments,FH,01/06/2011,PAY00387575,43365.72,Revenue,Fairdene Lodge Care Home Ltd
Brighton & Hove City Council,http://statistics.data.gov.uk/id/local-authority/00ML,Adult Social Care,BVASOC,S Svcs - Older People Svcs,PPL,Customer n Client Receipts,M,Fees n Charges,MB,01/06/2011,PAY00387576,-1277.24,Revenue,Fourways
Brighton & Hove City Council,http://statistics.data.gov.uk/id/local-authority/00ML,Adult Social Care,BVASOC,S Svcs - Older People Svcs,PPL,Third Party Payments,F,Other Establishments,FH,01/06/2011,PAY00387576,4940.00,Revenue,Fourways
Brighton & Hove City Council,http://statistics.data.gov.uk/id/local-authority/00ML,Adult Social Care,BVASOC,S Svcs - Physical Disability,PDY,Customer n Client Receipts,M,Fees n Charges,MB,01/06/2011,PAY00387576,-590.00,Revenue,Fourways
Brighton & Hove City Council,http://statistics.data.gov.uk/id/local-authority/00ML,Adult Social Care,BVASOC,S Svcs - Physical Disability,PDY,Third Party Payments,F,Other Establishments,FH,01/06/2011,PAY00387576,9416.80,Revenue,Fourways
Brighton & Hove City Council,http://statistics.data.gov.uk/id/local-authority/00ML,Adult Social Care,BVASOC,S Svcs - Older People Svcs,PPL,Customer n Client Receipts,M,Fees n Charges,MB,01/06/2011,PAY00387577,-9282.48,Revenue,Grange Rest Home
Brighton & Hove City Council,http://statistics.data.gov.uk/id/local-authority/00ML,Adult Social Care,BVASOC,S Svcs - Older People Svcs,PPL,Third Party Payments,F,Other Establishments,FH,01/06/2011,PAY00387577,34400.00,Revenue,Grange Rest Home
Brighton & Hove City Council,http://statistics.data.gov.uk/id/local-authority/00ML,Adult Social Care,BVASOC,S Svcs - Learning Disability,LDY,Customer n Client Receipts,M,Fees n Charges,MB,01/06/2011,PAY00387578,-636.80,Revenue,Hazeldene UK Ltd
Brighton & Hove City Council,http://statistics.data.gov.uk/id/local-authority/00ML,Adult Social Care,BVASOC,S Svcs - Learning Disability,LDY,Third Party Payments,F,Other Establishments,FH,01/06/2011,PAY00387578,9855.28,Revenue,Hazeldene UK Ltd
Brighton & Hove City Council,http://statistics.data.gov.uk/id/local-authority/00ML,Adult Social Care,BVASOC,S Svcs - Older People Svcs,PPL,Customer n Client Receipts,M,Fees n Charges,MB,01/06/2011,PAY00387581,-4087.44,Revenue,Highbury House Nursing & Rest Home
Brighton & Hove City Council,http://statistics.data.gov.uk/id/local-authority/00ML,Adult Social Care,BVASOC,S Svcs - Older People Svcs,PPL,Third Party Payments,F,Other Establishments,FH,01/06/2011,PAY00387581,14063.25,Revenue,Highbury House Nursing & Rest Home
Brighton & Hove City Council,http://statistics.data.gov.uk/id/local-authority/00ML,Education Services,BVAEDU,Ed - Special Ed,EKE,Third Party Payments,F,Other Agencies,FL,01/06/2011,PAY00387582,572.00,Revenue,Hollingbury Park Playgroup
Brighton & Hove City Council,http://statistics.data.gov.uk/id/local-authority/00ML,Education Services,BVAEDU,Ed - EY - Central,EAE,Third Party Payments,F,Other Establishments,FH,01/06/2011,PAY00387583,1250.00,Revenue,ACPH Ltd T/a Hopscotch Nursery
Brighton & Hove City Council,http://statistics.data.gov.uk/id/local-authority/00ML,Adult Social Care,BVASOC,S Svcs - Older People Svcs,PPL,Customer n Client Receipts,M,Fees n Charges,MB,01/06/2011,PAY00387584,-5689.76,Revenue,Charles Lodge
Brighton & Hove City Council,http://statistics.data.gov.uk/id/local-authority/00ML,Adult Social Care,BVASOC,S Svcs - Older People Svcs,PPL,Third Party Payments,F,Other Establishments,FH,01/06/2011,PAY00387584,18160.00,Revenue,Charles Lodge
Brighton & Hove City Council,http://statistics.data.gov.uk/id/local-authority/00ML,Adult Social Care,BVASOC,S Svcs - Older People Svcs,PPL,Customer n Client Receipts,M,Fees n Charges,MB,01/06/2011,PAY00387585,-1483.40,Revenue,Kathleens Lodge
Brighton & Hove City Council,http://statistics.data.gov.uk/id/local-authority/00ML,Adult Social Care,BVASOC,S Svcs - Older People Svcs,PPL,Third Party Payments,F,Other Establishments,FH,01/06/2011,PAY00387585,10354.00,Revenue,Kathleens Lodge
Brighton & Hove City Council,http://statistics.data.gov.uk/id/local-authority/00ML,Adult Social Care,BVASOC,S Svcs - Learning Disability,LDY,Customer n Client Receipts,M,Fees n Charges,MB,01/06/2011,PAY00387586,-1344.00,Revenue,Loxwood House Ltd
Brighton & Hove City Council,http://statistics.data.gov.uk/id/local-authority/00ML,Adult Social Care,BVASOC,S Svcs - Learning Disability,LDY,Third Party Payments,F,Other Establishments,FH,01/06/2011,PAY00387586,9915.24,Revenue,Loxwood House Ltd
Brighton & Hove City Council,http://statistics.data.gov.uk/id/local-authority/00ML,Adult Social Care,BVASOC,S Svcs - Older People Svcs,PPL,Customer n Client Receipts,M,Fees n Charges,MB,01/06/2011,PAY00387586,-459.00,Revenue,Loxwood House Ltd
Brighton & Hove City Council,http://statistics.data.gov.uk/id/local-authority/00ML,Adult Social Care,BVASOC,S Svcs - Older People Svcs,PPL,Third Party Payments,F,Other Establishments,FH,01/06/2011,PAY00387586,2122.20,Revenue,Loxwood House Ltd
Brighton & Hove City Council,http://statistics.data.gov.uk/id/local-authority/00ML,Adult Social Care,BVASOC,S Svcs - Learning Disability,LDY,Customer n Client Receipts,M,Fees n Charges,MB,01/06/2011,PAY00387587,-927.16,Revenue,Z & M Care Ltd
Brighton & Hove City Council,http://statistics.data.gov.uk/id/local-authority/00ML,Adult Social Care,BVASOC,S Svcs - Learning Disability,LDY,Third Party Payments,F,Other Establishments,FH,01/06/2011,PAY00387587,6524.00,Revenue,Z & M Care Ltd
Brighton & Hove City Council,http://statistics.data.gov.uk/id/local-authority/00ML,Adult Social Care,BVASOC,S Svcs - Older People Svcs,PPL,Customer n Client Receipts,M,Fees n Charges,MB,01/06/2011,PAY00387587,-7442.58,Revenue,Z & M Care Ltd
Brighton & Hove City Council,http://statistics.data.gov.uk/id/local-authority/00ML,Adult Social Care,BVASOC,S Svcs - Older People Svcs,PPL,Third Party Payments,F,Other Establishments,FH,01/06/2011,PAY00387587,36986.71,Revenue,Z & M Care Ltd
Brighton & Hove City Council,http://statistics.data.gov.uk/id/local-authority/00ML,Adult Social Care,BVASOC,S Svcs - Physical Disability,PDY,Third Party Payments,F,Other Establishments,FH,01/06/2011,PAY00387587,2000.00,Revenue,Z & M Care Ltd
Brighton & Hove City Council,http://statistics.data.gov.uk/id/local-authority/00ML,Adult Social Care,BVASOC,S Svcs - Older People Svcs,PPL,Customer n Client Receipts,M,Fees n Charges,MB,01/06/2011,PAY00387588,-6297.52,Revenue,Payment to Individual
Brighton & Hove City Council,http://statistics.data.gov.uk/id/local-authority/00ML,Adult Social Care,BVASOC,S Svcs - Older People Svcs,PPL,Third Party Payments,F,Other Establishments,FH,01/06/2011,PAY00387588,20320.00,Revenue,Payment to Individual
Brighton & Hove City Council,http://statistics.data.gov.uk/id/local-authority/00ML,Adult Social Care,BVASOC,S Svcs - Learning Disability,LDY,Premises Related,C,Cleaning n Domestic Supps,CH,01/06/2011,PAY00387589,284.75,Revenue,Nursing & Hygiene Supplies
Brighton & Hove City Council,http://statistics.data.gov.uk/id/local-authority/00ML,Adult Social Care,BVASOC,S Svcs - Older People Svcs,PPL,Supplies and Services,E,Equip't Furniture n Materials,EA,01/06/2011,PAY00387589,188.00,Revenue,Nursing & Hygiene Supplies
Brighton & Hove City Council,http://statistics.data.gov.uk/id/local-authority/00ML,Adult Social Care,BVASOC,S Svcs - Learning Disability,LDY,Customer n Client Receipts,M,Fees n Charges,MB,01/06/2011,PAY00387590,-978.60,Revenue,Oakdown House Ltd
Brighton & Hove City Council,http://statistics.data.gov.uk/id/local-authority/00ML,Adult Social Care,BVASOC,S Svcs - Learning Disability,LDY,Third Party Payments,F,Other Establishments,FH,01/06/2011,PAY00387590,15619.76,Revenue,Oakdown House Ltd
Brighton & Hove City Council,http://statistics.data.gov.uk/id/local-authority/00ML,Adult Social Care,BVASOC,S Svcs - Learning Disability,LDY,Customer n Client Receipts,M,Fees n Charges,MB,01/06/2011,PAY00387593,-459.00,Revenue,Patcham Nursing Home
Brighton & Hove City Council,http://statistics.data.gov.uk/id/local-authority/00ML,Adult Social Care,BVASOC,S Svcs - Learning Disability,LDY,Third Party Payments,F,Other Establishments,FH,01/06/2011,PAY00387593,3440.00,Revenue,Patcham Nursing Home
Brighton & Hove City Council,http://statistics.data.gov.uk/id/local-authority/00ML,Adult Social Care,BVASOC,S Svcs - Older People Svcs,PPL,Third Party Payments,F,Other Establishments,FH,01/06/2011,PAY00387593,-3416.29,Revenue,Patcham Nursing Home
Brighton & Hove City Council,http://statistics.data.gov.uk/id/local-authority/00ML,Adult Social Care,BVASOC,S Svcs - Physical Disability,PDY,Customer n Client Receipts,M,Fees n Charges,MB,01/06/2011,PAY00387593,-386.04,Revenue,Patcham Nursing Home
Brighton & Hove City Council,http://statistics.data.gov.uk/id/local-authority/00ML,Adult Social Care,BVASOC,S Svcs - Physical Disability,PDY,Third Party Payments,F,Other Establishments,FH,01/06/2011,PAY00387593,3409.60,Revenue,Patcham Nursing Home
Brighton & Hove City Council,http://statistics.data.gov.uk/id/local-authority/00ML,Adult Social Care,BVASOC,S Svcs - Older People Svcs,PPL,Customer n Client Receipts,M,Fees n Charges,MB,01/06/2011,PAY00387594,-2637.32,Revenue,The Pembroke Group
Brighton & Hove City Council,http://statistics.data.gov.uk/id/local-authority/00ML,Adult Social Care,BVASOC,S Svcs - Older People Svcs,PPL,Third Party Payments,F,Other Establishments,FH,01/06/2011,PAY00387594,6900.00,Revenue,The Pembroke Group
Brighton & Hove City Council,http://statistics.data.gov.uk/id/local-authority/00ML,Adult Social Care,BVASOC,S Svcs - Older People Svcs,PPL,Customer n Client Receipts,M,Fees n Charges,MB,01/06/2011,PAY00387596,-5830.18,Revenue,Pilgrim Homes
Brighton & Hove City Council,http://statistics.data.gov.uk/id/local-authority/00ML,Adult Social Care,BVASOC,S Svcs - Older People Svcs,PPL,Third Party Payments,F,Other Establishments,FH,01/06/2011,PAY00387596,15812.00,Revenue,Pilgrim Homes
Brighton & Hove City Council,http://statistics.data.gov.uk/id/local-authority/00ML,Adult Social Care,BVASOC,S Svcs - Older People Svcs,PPL,Customer n Client Receipts,M,Fees n Charges,MB,01/06/2011,PAY00387599,-1726.32,Revenue,Princess Alexandra House
Brighton & Hove City Council,http://statistics.data.gov.uk/id/local-authority/00ML,Adult Social Care,BVASOC,S Svcs - Older People Svcs,PPL,Third Party Payments,F,Other Establishments,FH,01/06/2011,PAY00387599,5380.00,Revenue,Princess Alexandra House
Brighton & Hove City Council,http://statistics.data.gov.uk/id/local-authority/00ML,Adult Social Care,BVASOC,S Svcs - Older People Svcs,PPL,Customer n Client Receipts,M,Fees n Charges,MB,01/06/2011,PAY00387601,-8292.30,Revenue,Regent House Nursing Home
Brighton & Hove City Council,http://statistics.data.gov.uk/id/local-authority/00ML,Adult Social Care,BVASOC,S Svcs - Older People Svcs,PPL,Third Party Payments,F,Other Establishments,FH,01/06/2011,PAY00387601,34024.77,Revenue,Regent House Nursing Home
Brighton & Hove City Council,http://statistics.data.gov.uk/id/local-authority/00ML,Adult Social Care,BVASOC,S Svcs - Older People Svcs,PPL,Customer n Client Receipts,M,Fees n Charges,MB,01/06/2011,PAY00387603,-1660.40,Revenue,Roclyns Retirement Home
Brighton & Hove City Council,http://statistics.data.gov.uk/id/local-authority/00ML,Adult Social Care,BVASOC,S Svcs - Older People Svcs,PPL,Third Party Payments,F,Other Establishments,FH,01/06/2011,PAY00387603,4492.44,Revenue,Roclyns Retirement Home
Brighton & Hove City Council,http://statistics.data.gov.uk/id/local-authority/00ML,Adult Social Care,BVASOC,S Svcs - Older People Svcs,PPL,Customer n Client Receipts,M,Fees n Charges,MB,01/06/2011,PAY00387605,-6176.18,Revenue,Rottingdean Nursing Home
Brighton & Hove City Council,http://statistics.data.gov.uk/id/local-authority/00ML,Adult Social Care,BVASOC,S Svcs - Older People Svcs,PPL,Third Party Payments,F,Other Establishments,FH,01/06/2011,PAY00387605,14680.80,Revenue,Rottingdean Nursing Home
Brighton & Hove City Council,http://statistics.data.gov.uk/id/local-authority/00ML,Adult Social Care,BVASOC,S Svcs - Older People Svcs,PPL,Customer n Client Receipts,M,Fees n Charges,MB,01/06/2011,PAY00387607,-8481.92,Revenue,Rukba 
Brighton & Hove City Council,http://statistics.data.gov.uk/id/local-authority/00ML,Adult Social Care,BVASOC,S Svcs - Older People Svcs,PPL,Third Party Payments,F,Other Establishments,FH,01/06/2011,PAY00387607,37559.20,Revenue,Rukba 
Brighton & Hove City Council,http://statistics.data.gov.uk/id/local-authority/00ML,Adult Social Care,BVASOC,S Svcs - Older People Svcs,PPL,Customer n Client Receipts,M,Fees n Charges,MB,01/06/2011,PAY00387609,-2361.52,Revenue,St Christopher`s Rest Home
Brighton & Hove City Council,http://statistics.data.gov.uk/id/local-authority/00ML,Adult Social Care,BVASOC,S Svcs - Older People Svcs,PPL,Third Party Payments,F,Other Establishments,FH,01/06/2011,PAY00387609,8580.00,Revenue,St Christopher`s Rest Home
Brighton & Hove City Council,http://statistics.data.gov.uk/id/local-authority/00ML,Adult Social Care,BVASOC,S Svcs - Older People Svcs,PPL,Customer n Client Receipts,M,Fees n Charges,MB,01/06/2011,PAY00387610,-3545.04,Revenue,St Josephs Rest Home
Brighton & Hove City Council,http://statistics.data.gov.uk/id/local-authority/00ML,Adult Social Care,BVASOC,S Svcs - Older People Svcs,PPL,Third Party Payments,F,Other Establishments,FH,01/06/2011,PAY00387610,11640.00,Revenue,St Josephs Rest Home
Brighton & Hove City Council,http://statistics.data.gov.uk/id/local-authority/00ML,Adult Social Care,BVASOC,S Svcs - Mental Health,MHT,Customer n Client Receipts,M,Fees n Charges,MB,01/06/2011,PAY00387614,-295.00,Revenue,Searchlight Workshops
Brighton & Hove City Council,http://statistics.data.gov.uk/id/local-authority/00ML,Adult Social Care,BVASOC,S Svcs - Mental Health,MHT,Third Party Payments,F,Other Establishments,FH,01/06/2011,PAY00387614,3956.16,Revenue,Searchlight Workshops
Brighton & Hove City Council,http://statistics.data.gov.uk/id/local-authority/00ML,Adult Social Care,BVASOC,S Svcs - Older People Svcs,PPL,Customer n Client Receipts,M,Fees n Charges,MB,01/06/2011,PAY00387614,-1012.52,Revenue,Searchlight Workshops
Brighton & Hove City Council,http://statistics.data.gov.uk/id/local-authority/00ML,Adult Social Care,BVASOC,S Svcs - Older People Svcs,PPL,Third Party Payments,F,Other Establishments,FH,01/06/2011,PAY00387614,5224.48,Revenue,Searchlight Workshops
Brighton & Hove City Council,http://statistics.data.gov.uk/id/local-authority/00ML,Adult Social Care,BVASOC,S Svcs - Physical Disability,PDY,Customer n Client Receipts,M,Fees n Charges,MB,01/06/2011,PAY00387614,-2956.84,Revenue,Searchlight Workshops
Brighton & Hove City Council,http://statistics.data.gov.uk/id/local-authority/00ML,Adult Social Care,BVASOC,S Svcs - Physical Disability,PDY,Third Party Payments,F,Other Establishments,FH,01/06/2011,PAY00387614,17374.44,Revenue,Searchlight Workshops
Brighton & Hove City Council,http://statistics.data.gov.uk/id/local-authority/00ML,Adult Social Care,BVASOC,S Svcs - Learning Disability,LDY,Customer n Client Receipts,M,Fees n Charges,MB,01/06/2011,PAY00387615,-342.60,Revenue,SeeAbility
Brighton & Hove City Council,http://statistics.data.gov.uk/id/local-authority/00ML,Adult Social Care,BVASOC,S Svcs - Learning Disability,LDY,Third Party Payments,F,Other Establishments,FH,01/06/2011,PAY00387615,4720.00,Revenue,SeeAbility
Brighton & Hove City Council,http://statistics.data.gov.uk/id/local-authority/00ML,Adult Social Care,BVASOC,S Svcs - Learning Disability,LDY,Customer n Client Receipts,M,Fees n Charges,MB,01/06/2011,PAY00387616,-590.00,Revenue,Sense - Children & Adult Services
Brighton & Hove City Council,http://statistics.data.gov.uk/id/local-authority/00ML,Adult Social Care,BVASOC,S Svcs - Learning Disability,LDY,Third Party Payments,F,Other Establishments,FH,01/06/2011,PAY00387616,18168.52,Revenue,Sense - Children & Adult Services
Brighton & Hove City Council,http://statistics.data.gov.uk/id/local-authority/00ML,Adult Social Care,BVASOC,S Svcs - Physical Disability,PDY,Supplies and Services,E,Equip't Furniture n Materials,EA,01/06/2011,PAY00387617,912.79,Revenue,Homecraft Rolyan/Patterson Medical Ltd
Brighton & Hove City Council,http://statistics.data.gov.uk/id/local-authority/00ML,Education Services,BVAEDU,Ed - EY - Central,EAE,Premises Related,C,Repair Maint n Alterations,CA,01/06/2011,PAY00387618,796.99,Revenue,Sovereign Alarms
Brighton & Hove City Council,http://statistics.data.gov.uk/id/local-authority/00ML,Adult Social Care,BVASOC,S Svcs - Older People Svcs,PPL,Customer n Client Receipts,M,Fees n Charges,MB,01/06/2011,PAY00387619,-8139.58,Revenue,Springfields Nursing Home
Brighton & Hove City Council,http://statistics.data.gov.uk/id/local-authority/00ML,Adult Social Care,BVASOC,S Svcs - Older People Svcs,PPL,Third Party Payments,F,Other Establishments,FH,01/06/2011,PAY00387619,37772.93,Revenue,Springfields Nursing Home
Brighton & Hove City Council,http://statistics.data.gov.uk/id/local-authority/00ML,Adult Social Care,BVASOC,S Svcs - Learning Disability,LDY,Customer n Client Receipts,M,Fees n Charges,MB,01/06/2011,PAY00387622,-1803.00,Revenue,The Frances Taylor Foundation
Brighton & Hove City Council,http://statistics.data.gov.uk/id/local-authority/00ML,Adult Social Care,BVASOC,S Svcs - Learning Disability,LDY,Third Party Payments,F,Other Establishments,FH,01/06/2011,PAY00387622,14717.44,Revenue,The Frances Taylor Foundation
Brighton & Hove City Council,http://statistics.data.gov.uk/id/local-authority/00ML,Adult Social Care,BVASOC,S Svcs - Older People Svcs,PPL,Customer n Client Receipts,M,Fees n Charges,MB,01/06/2011,PAY00387623,-1315.00,Revenue,Payment to Individual
Brighton & Hove City Council,http://statistics.data.gov.uk/id/local-authority/00ML,Adult Social Care,BVASOC,S Svcs - Older People Svcs,PPL,Third Party Payments,F,Other Establishments,FH,01/06/2011,PAY00387623,2440.00,Revenue,Payment to Individual
Brighton & Hove City Council,http://statistics.data.gov.uk/id/local-authority/00ML,Adult Social Care,BVASOC,S Svcs - Older People Svcs,PPL,Customer n Client Receipts,M,Fees n Charges,MB,01/06/2011,PAY00387624,-10225.65,Revenue,Victoria Nursing Homes Ltd
Brighton & Hove City Council,http://statistics.data.gov.uk/id/local-authority/00ML,Adult Social Care,BVASOC,S Svcs - Older People Svcs,PPL,Third Party Payments,F,Other Establishments,FH,01/06/2011,PAY00387624,33743.42,Revenue,Victoria Nursing Homes Ltd
Brighton & Hove City Council,http://statistics.data.gov.uk/id/local-authority/00ML,Adult Social Care,BVASOC,S Svcs - Older People Svcs,PPL,Customer n Client Receipts,M,Fees n Charges,MB,01/06/2011,PAY00387626,-11915.51,Revenue,Westwood Rest Home
Brighton & Hove City Council,http://statistics.data.gov.uk/id/local-authority/00ML,Adult Social Care,BVASOC,S Svcs - Older People Svcs,PPL,Third Party Payments,F,Other Establishments,FH,01/06/2011,PAY00387626,31475.71,Revenue,Westwood Rest Home
Brighton & Hove City Council,http://statistics.data.gov.uk/id/local-authority/00ML,Adult Social Care,BVASOC,S Svcs - Older People Svcs,PPL,Customer n Client Receipts,M,Fees n Charges,MB,01/06/2011,PAY00387627,-3712.02,Revenue,Dean Care Ltd t/a Wilbury Rest Home
Brighton & Hove City Council,http://statistics.data.gov.uk/id/local-authority/00ML,Adult Social Care,BVASOC,S Svcs - Older People Svcs,PPL,Third Party Payments,F,Other Establishments,FH,01/06/2011,PAY00387627,12845.14,Revenue,Dean Care Ltd t/a Wilbury Rest Home
Brighton & Hove City Council,http://statistics.data.gov.uk/id/local-authority/00ML,Adult Social Care,BVASOC,S Svcs - Learning Disability,LDY,Customer n Client Receipts,M,Fees n Charges,MB,01/06/2011,PAY00387628,-1770.00,Revenue,The Yellow House Care Home
Brighton & Hove City Council,http://statistics.data.gov.uk/id/local-authority/00ML,Adult Social Care,BVASOC,S Svcs - Learning Disability,LDY,Third Party Payments,F,Other Establishments,FH,01/06/2011,PAY00387628,17486.64,Revenue,The Yellow House Care Home
Brighton & Hove City Council,http://statistics.data.gov.uk/id/local-authority/00ML,Adult Social Care,BVASOC,S Svcs - Learning Disability,LDY,Customer n Client Receipts,M,Fees n Charges,MB,01/06/2011,PAY00387629,-1144.84,Revenue,Norwood Ravenwood Services
Brighton & Hove City Council,http://statistics.data.gov.uk/id/local-authority/00ML,Adult Social Care,BVASOC,S Svcs - Learning Disability,LDY,Third Party Payments,F,Other Establishments,FH,01/06/2011,PAY00387629,6593.60,Revenue,Norwood Ravenwood Services
Brighton & Hove City Council,http://statistics.data.gov.uk/id/local-authority/00ML,Education Services,BVAEDU,Ed - EY - Central,EAE,Supplies and Services,E,Services,EF,01/06/2011,PAY00387630,59.99,Revenue,NCMA Services Ltd
Brighton & Hove City Council,http://statistics.data.gov.uk/id/local-authority/00ML,Education Services,BVAEDU,Ed - EY - Central,EAE,Third Party Payments,F,Other Establishments,FH,01/06/2011,PAY00387630,419.82,Revenue,NCMA Services Ltd
Brighton & Hove City Council,http://statistics.data.gov.uk/id/local-authority/00ML,Adult Social Care,BVASOC,S Svcs - Learning Disability,LDY,Customer n Client Receipts,M,Fees n Charges,MB,01/06/2011,PAY00387631,-931.80,Revenue,Gary Richard Homes Ltd
Brighton & Hove City Council,http://statistics.data.gov.uk/id/local-authority/00ML,Adult Social Care,BVASOC,S Svcs - Learning Disability,LDY,Third Party Payments,F,Other Establishments,FH,01/06/2011,PAY00387631,13336.72,Revenue,Gary Richard Homes Ltd
Brighton & Hove City Council,http://statistics.data.gov.uk/id/local-authority/00ML,Adult Social Care,BVASOC,S Svcs - Older People Svcs,PPL,Customer n Client Receipts,M,Fees n Charges,MB,01/06/2011,PAY00387632,-8149.58,Revenue,Bravery Care
Brighton & Hove City Council,http://statistics.data.gov.uk/id/local-authority/00ML,Adult Social Care,BVASOC,S Svcs - Older People Svcs,PPL,Third Party Payments,F,Other Establishments,FH,01/06/2011,PAY00387632,27731.54,Revenue,Bravery Care
Brighton & Hove City Council,http://statistics.data.gov.uk/id/local-authority/00ML,Adult Social Care,BVASOC,S Svcs - Older People Svcs,PPL,Customer n Client Receipts,M,Fees n Charges,MB,01/06/2011,PAY00387633,-1705.12,Revenue,Sunrise Apartments Ltd
Brighton & Hove City Council,http://statistics.data.gov.uk/id/local-authority/00ML,Adult Social Care,BVASOC,S Svcs - Older People Svcs,PPL,Third Party Payments,F,Other Establishments,FH,01/06/2011,PAY00387633,3328.00,Revenue,Sunrise Apartments Ltd
Brighton & Hove City Council,http://statistics.data.gov.uk/id/local-authority/00ML,Adult Social Care,BVASOC,S Svcs - Mental Health,MHT,Customer n Client Receipts,M,Fees n Charges,MB,01/06/2011,PAY00387634,-1116.00,Revenue,Payment to Individual
Brighton & Hove City Council,http://statistics.data.gov.uk/id/local-authority/00ML,Adult Social Care,BVASOC,S Svcs - Mental Health,MHT,Third Party Payments,F,Other Establishments,FH,01/06/2011,PAY00387634,5172.00,Revenue,Payment to Individual
Brighton & Hove City Council,http://statistics.data.gov.uk/id/local-authority/00ML,Adult Social Care,BVASOC,S Svcs - Older People Svcs,PPL,Customer n Client Receipts,M,Fees n Charges,MB,01/06/2011,PAY00387635,-2092.72,Revenue,Royal Masonic Benevolent Inst
Brighton & Hove City Council,http://statistics.data.gov.uk/id/local-authority/00ML,Adult Social Care,BVASOC,S Svcs - Older People Svcs,PPL,Third Party Payments,F,Other Establishments,FH,01/06/2011,PAY00387635,6857.20,Revenue,Royal Masonic Benevolent Inst
Brighton & Hove City Council,http://statistics.data.gov.uk/id/local-authority/00ML,Adult Social Care,BVASOC,S Svcs - Learning Disability,LDY,Customer n Client Receipts,M,Fees n Charges,MB,01/06/2011,PAY00387636,-332.00,Revenue,Payment to Individual
Brighton & Hove City Council,http://statistics.data.gov.uk/id/local-authority/00ML,Adult Social Care,BVASOC,S Svcs - Learning Disability,LDY,Third Party Payments,F,Other Establishments,FH,01/06/2011,PAY00387636,3993.60,Revenue,Payment to Individual
Brighton & Hove City Council,http://statistics.data.gov.uk/id/local-authority/00ML,Adult Social Care,BVASOC,S Svcs - Older People Svcs,PPL,Customer n Client Receipts,M,Fees n Charges,MB,01/06/2011,PAY00387638,-4728.28,Revenue,BUPA Care Services
Brighton & Hove City Council,http://statistics.data.gov.uk/id/local-authority/00ML,Adult Social Care,BVASOC,S Svcs - Older People Svcs,PPL,Third Party Payments,F,Other Establishments,FH,01/06/2011,PAY00387638,14928.96,Revenue,BUPA Care Services
Brighton & Hove City Council,http://statistics.data.gov.uk/id/local-authority/00ML,Adult Social Care,BVASOC,S Svcs - Older People Svcs,PPL,Customer n Client Receipts,M,Fees n Charges,MB,01/06/2011,PAY00387639,-230.00,Revenue,Hallifax Care Ltd
Brighton & Hove City Council,http://statistics.data.gov.uk/id/local-authority/00ML,Adult Social Care,BVASOC,S Svcs - Older People Svcs,PPL,Third Party Payments,F,Other Establishments,FH,01/06/2011,PAY00387639,749.45,Revenue,Hallifax Care Ltd
Brighton & Hove City Council,http://statistics.data.gov.uk/id/local-authority/00ML,Adult Social Care,BVASOC,S Svcs - Older People Svcs,PPL,Customer n Client Receipts,M,Fees n Charges,MB,01/06/2011,PAY00387640,-790.06,Revenue,The Brittany Rest Home
Brighton & Hove City Council,http://statistics.data.gov.uk/id/local-authority/00ML,Adult Social Care,BVASOC,S Svcs - Older People Svcs,PPL,Third Party Payments,F,Other Establishments,FH,01/06/2011,PAY00387640,4362.29,Revenue,The Brittany Rest Home
Brighton & Hove City Council,http://statistics.data.gov.uk/id/local-authority/00ML,Education Services,BVAEDU,Ed - Special Ed,EKE,Third Party Payments,F,Other Agencies,FL,01/06/2011,PAY00387642,572.00,Revenue,St Anthonys Pre-School
Brighton & Hove City Council,http://statistics.data.gov.uk/id/local-authority/00ML,Adult Social Care,BVASOC,S Svcs - Learning Disability,LDY,Customer n Client Receipts,M,Fees n Charges,MB,01/06/2011,PAY00387651,-44.00,Revenue,Payment to Individual
Brighton & Hove City Council,http://statistics.data.gov.uk/id/local-authority/00ML,Adult Social Care,BVASOC,S Svcs - Learning Disability,LDY,Third Party Payments,F,Other Establishments,FH,01/06/2011,PAY00387651,1607.88,Revenue,Payment to Individual
Brighton & Hove City Council,http://statistics.data.gov.uk/id/local-authority/00ML,Adult Social Care,BVASOC,S Svcs - Older People Svcs,PPL,Customer n Client Receipts,M,Fees n Charges,MB,01/06/2011,PAY00387656,-4602.76,Revenue,Vallance Rest Home
Brighton & Hove City Council,http://statistics.data.gov.uk/id/local-authority/00ML,Adult Social Care,BVASOC,S Svcs - Older People Svcs,PPL,Third Party Payments,F,Other Establishments,FH,01/06/2011,PAY00387656,16152.85,Revenue,Vallance Rest Home
Brighton & Hove City Council,http://statistics.data.gov.uk/id/local-authority/00ML,Cultural Environment Planning,BVACEP,Culture & Heritage,CHG,Premises Related,C,Repair Maint n Alterations,CA,01/06/2011,PAY00387657,438.00,Revenue,Discreet Pest Control Services
Brighton & Hove City Council,http://statistics.data.gov.uk/id/local-authority/00ML,Cultural Environment Planning,BVACEP,Culture & Heritage,CHG,Supplies and Services,E,Equip't Furniture n Materials,EA,01/06/2011,PAY00387657,240.00,Revenue,Discreet Pest Control Services
Brighton & Hove City Council,http://statistics.data.gov.uk/id/local-authority/00ML,Adult Social Care,BVASOC,S Svcs - Learning Disability,LDY,Customer n Client Receipts,M,Fees n Charges,MB,01/06/2011,PAY00387659,-1273.60,Revenue,Sx Autistic Comm Trust(Care Services)Ltd
Brighton & Hove City Council,http://statistics.data.gov.uk/id/local-authority/00ML,Adult Social Care,BVASOC,S Svcs - Learning Disability,LDY,Third Party Payments,F,Other Establishments,FH,01/06/2011,PAY00387659,31141.36,Revenue,Sx Autistic Comm Trust(Care Services)Ltd
Brighton & Hove City Council,http://statistics.data.gov.uk/id/local-authority/00ML,Cultural Environment Planning,BVACEP,Culture & Heritage,CHG,Premises Related,C,Repair Maint n Alterations,CA,01/06/2011,PAY00387661,425.15,Revenue,ADT Fire & Security Plc
